{"text_format":"1","workbook":"xlsx","n_sheets":14,"sheets":["Menu","Seq. Operacional","Transf Seq Op.","Consulta Seq. Operacional","BD Seq Op","Ficha Acompanhamento","Cliente","OP","Consulta OP","BD da OP","Operações","Ref","Cores","Tamanhos"],"not_rendered":{"charts":0,"images":1,"macros":1,"external_links":0,"defined_names":36,"comments":6,"pivot_tables":0},"unopened":[],"bounds":{"document_bytes":16777216,"sheet_cells":100000,"rows_first":2000,"rows_last":500,"rows_between":2000,"halvings":0,"cell_chars":16384,"cell_head_chars":4096},"cells_cut":0,"cells_raw":0,"read":"whole","date_system":"1900"}

{"sheet":"Menu","index":0,"n_rows":64,"n_cols":9,"rows_kept":64,"cut":false,"hidden":false,"merged":[[19,2,19,9],[21,8,21,10],[21,3,21,7],[23,1,23,10]]}
[]
[]
[]
[]
[]
[]
[]
[]
[]
[]
[]
[]
[]
[]
[]
[]
[]
[null,null,null,null,null,"VERSÃO  GRATUITA"]
[]
[null,null,"Proibido vender, copiar, divulgar ou postar em sites sem prévia autorização. LEI Nº 9.610"]
[]
[null,null,null,"© 2012 - Pedro Paulo Andriani. Todos os direitos reservados.\n",null,null,null,null,"Planilhas para Confecção"]
[]
[null,"Versão 2.0 - Gratuita"]
[]
[]
[]
[]
[]
[]
[]
[]
[]
[]
[]
[]
[]
[]
[]
[]
[]
[]
[]
[]
[]
[]
[]
[]
[]
[]
[null,null,null,null,null,null,"2100-01-01"]
[null,null,null,null,null,null,{"$f":"IF(G60=0,0,IF(G51<TODAY(),0,1))","v":1}]
[]
[null,null,null,null,{"$f":"Menu!F18","v":"VERSÃO  GRATUITA"},null,"VERSÃO  GRATUITA"]
[null,null,null,null,{"$f":"Menu!C20","v":"Proibido vender, copiar, divulgar ou postar em sites sem prévia autorização. LEI Nº 9.610"},null,"Proibido vender, copiar, divulgar ou postar em sites sem prévia autorização. LEI Nº 9.610"]
[null,null,null,null,null,null,"© 2012 - Pedro Paulo Andriani. Todos os direitos reservados.\n"]
[null,null,null,null,null,null,"Planilhas para Confecção"]
[null,null,null,null,null,null,{"$f":"CONCATENATE(G54,G55,G56,G57)","v":"VERSÃO  GRATUITAProibido vender, copiar, divulgar ou postar em sites sem prévia autorização. LEI Nº 9.610© 2012 - Pedro Paulo Andriani. Todos os direitos reservados.\nPlanilhas para Confecção"}]
[null,null,null,null,null,null,{"$f":"CONCATENATE(Menu!C61,Menu!C62,Menu!C63,Menu!C64)","v":"VERSÃO  GRATUITAProibido vender, copiar, divulgar ou postar em sites sem prévia autorização. LEI Nº 9.610© 2012 - Pedro Paulo Andriani. Todos os direitos reservados.\nPlanilhas para Confecção"}]
[null,null,null,null,null,null,{"$f":"IF(G58<>G59,0,1)","v":1}]
[null,null,{"$f":"F18","v":"VERSÃO  GRATUITA"}]
[null,null,{"$f":"C20","v":"Proibido vender, copiar, divulgar ou postar em sites sem prévia autorização. LEI Nº 9.610"}]
[null,null,{"$f":"D22","v":"© 2012 - Pedro Paulo Andriani. Todos os direitos reservados.\n"}]
[null,null,{"$f":"I22","v":"Planilhas para Confecção"}]

{"sheet":"Seq. Operacional","index":1,"n_rows":130,"n_cols":14,"rows_kept":130,"cut":false,"hidden":false,"merged":[[2,2,2,5],[1,3,1,4]]}
[null,null,"Sequência Operacional e Tempo Padrão",null,"Data cadastro:",{"$f":"TODAY()","v":"2016-09-16"},null,null,null,null,null,null,null,{"$f":"IF(OR(F1=0,C2=0),0,1)","v":0}]
[null,null,null,null,null,null,null,null,null,null,null,null,null,{"$f":"IF(OR(C6=0,C7=0),0,1)","v":0}]
[null,null,{"$f":"IF(C2=0,\"\",VLOOKUP(C2,Ref!A:B,2,FALSE))","v":""},null,null,null,null,null,null,null,null,null,null,{"$f":"IF(C2=0,\"\",IF(ISERROR(VLOOKUP(C2,'BD Seq Op'!B:H,1,FALSE)),\"\",\"Já cadastrada.\"))","v":""}]
["Filtro","Seq.","Descrição operacional","Tipo\nMáq.","Tipo\nApar.","Tempo\nPadrão"]
["Sim","Seq.","Descrição  das  Operações","Tipo\nMáq.","Tipo\nApar.","Tempo\nPadrão",null,{"$f":"IF(SUM(G6:G125)>0,\" ATENÇÃO! Você deixou alguma linha acima em branco, não é permitido.\",\"\")","v":""},null,null,null,null,null,{"$f":"IF(N3=\"Já cadastrada.\",\"- - -\",IF(SUM(N6:N125)>0,\"- - -\",IF(N1+N2=2,\"Cadastrar\",\"- - -\")))","v":"- - -"}]
[{"$f":"IF(C6=0,\"Não\",\"Sim\")","v":"Não"},10,null,null,null,{"$f":"IF(C6=0,0,IF(ISERROR(VLOOKUP(C6,Operações!A:D,4,FALSE)),0,VLOOKUP(C6,Operações!A:D,4,FALSE)))","v":0},null,null,null,null,null,null,null,{"$f":"IF(C6=0,0,IF(F6<>0,0,1))","v":0}]
[{"$f":"IF(C7=0,\"Não\",\"Sim\")","v":"Não"},20,null,null,null,{"$f":"IF(C7=0,0,IF(ISERROR(VLOOKUP(C7,Operações!A:D,4,FALSE)),0,VLOOKUP(C7,Operações!A:D,4,FALSE)))","v":0},{"$f":"IF(AND(C6=0,C7<>0),1,0)","v":0},null,null,null,null,null,null,{"$f":"IF(C7=0,0,IF(F7<>0,0,1))","v":0}]
["Não",30,null,null,null,{"$f":"IF(C8=0,0,IF(ISERROR(VLOOKUP(C8,Operações!A:D,4,FALSE)),0,VLOOKUP(C8,Operações!A:D,4,FALSE)))","v":0},{"$f":"IF(AND(C7=0,C8<>0),1,0)","v":0},null,null,null,null,null,null,0]
["Não",40,null,null,null,{"$f":"IF(C9=0,0,IF(ISERROR(VLOOKUP(C9,Operações!A:D,4,FALSE)),0,VLOOKUP(C9,Operações!A:D,4,FALSE)))","v":0},{"$f":"IF(AND(C8=0,C9<>0),1,0)","v":0},null,null,null,null,null,null,0]
["Não",50,null,null,null,{"$f":"IF(C10=0,0,IF(ISERROR(VLOOKUP(C10,Operações!A:D,4,FALSE)),0,VLOOKUP(C10,Operações!A:D,4,FALSE)))","v":0},0,null,null,null,null,null,null,0]
["Não",60,null,null,null,{"$f":"IF(C11=0,0,IF(ISERROR(VLOOKUP(C11,Operações!A:D,4,FALSE)),0,VLOOKUP(C11,Operações!A:D,4,FALSE)))","v":0},0,null,null,null,null,null,null,0]
["Não",70,null,null,null,{"$f":"IF(C12=0,0,IF(ISERROR(VLOOKUP(C12,Operações!A:D,4,FALSE)),0,VLOOKUP(C12,Operações!A:D,4,FALSE)))","v":0},0,null,null,null,null,null,null,0]
["Não",80,null,null,null,{"$f":"IF(C13=0,0,IF(ISERROR(VLOOKUP(C13,Operações!A:D,4,FALSE)),0,VLOOKUP(C13,Operações!A:D,4,FALSE)))","v":0},0,null,null,null,null,null,null,0]
["Não",90,null,null,null,{"$f":"IF(C14=0,0,IF(ISERROR(VLOOKUP(C14,Operações!A:D,4,FALSE)),0,VLOOKUP(C14,Operações!A:D,4,FALSE)))","v":0},0,null,null,null,null,null,null,0]
["Não",100,null,null,null,{"$f":"IF(C15=0,0,IF(ISERROR(VLOOKUP(C15,Operações!A:D,4,FALSE)),0,VLOOKUP(C15,Operações!A:D,4,FALSE)))","v":0},0,null,null,null,null,null,null,0]
["Não",110,null,null,null,{"$f":"IF(C16=0,0,IF(ISERROR(VLOOKUP(C16,Operações!A:D,4,FALSE)),0,VLOOKUP(C16,Operações!A:D,4,FALSE)))","v":0},0,null,null,null,null,null,null,0]
["Não",120,null,null,null,{"$f":"IF(C17=0,0,IF(ISERROR(VLOOKUP(C17,Operações!A:D,4,FALSE)),0,VLOOKUP(C17,Operações!A:D,4,FALSE)))","v":0},0,null,null,null,null,null,null,0]
["Não",130,null,null,null,{"$f":"IF(C18=0,0,IF(ISERROR(VLOOKUP(C18,Operações!A:D,4,FALSE)),0,VLOOKUP(C18,Operações!A:D,4,FALSE)))","v":0},0,null,null,null,null,null,null,0]
["Não",140,null,null,null,{"$f":"IF(C19=0,0,IF(ISERROR(VLOOKUP(C19,Operações!A:D,4,FALSE)),0,VLOOKUP(C19,Operações!A:D,4,FALSE)))","v":0},0,null,null,null,null,null,null,0]
["Não",150,null,null,null,{"$f":"IF(C20=0,0,IF(ISERROR(VLOOKUP(C20,Operações!A:D,4,FALSE)),0,VLOOKUP(C20,Operações!A:D,4,FALSE)))","v":0},0,null,null,null,null,null,null,0]
["Não",160,null,null,null,{"$f":"IF(C21=0,0,IF(ISERROR(VLOOKUP(C21,Operações!A:D,4,FALSE)),0,VLOOKUP(C21,Operações!A:D,4,FALSE)))","v":0},0,null,null,null,null,null,null,0]
["Não",170,null,null,null,{"$f":"IF(C22=0,0,IF(ISERROR(VLOOKUP(C22,Operações!A:D,4,FALSE)),0,VLOOKUP(C22,Operações!A:D,4,FALSE)))","v":0},0,null,null,null,null,null,null,0]
["Não",180,null,null,null,{"$f":"IF(C23=0,0,IF(ISERROR(VLOOKUP(C23,Operações!A:D,4,FALSE)),0,VLOOKUP(C23,Operações!A:D,4,FALSE)))","v":0},0,null,null,null,null,null,null,0]
["Não",190,null,null,null,{"$f":"IF(C24=0,0,IF(ISERROR(VLOOKUP(C24,Operações!A:D,4,FALSE)),0,VLOOKUP(C24,Operações!A:D,4,FALSE)))","v":0},0,null,null,null,null,null,null,0]
["Não",200,null,null,null,{"$f":"IF(C25=0,0,IF(ISERROR(VLOOKUP(C25,Operações!A:D,4,FALSE)),0,VLOOKUP(C25,Operações!A:D,4,FALSE)))","v":0},0,null,null,null,null,null,null,0]
["Não",210,null,null,null,{"$f":"IF(C26=0,0,IF(ISERROR(VLOOKUP(C26,Operações!A:D,4,FALSE)),0,VLOOKUP(C26,Operações!A:D,4,FALSE)))","v":0},0,null,null,null,null,null,null,0]
["Não",220,null,null,null,{"$f":"IF(C27=0,0,IF(ISERROR(VLOOKUP(C27,Operações!A:D,4,FALSE)),0,VLOOKUP(C27,Operações!A:D,4,FALSE)))","v":0},0,null,null,null,null,null,null,0]
["Não",230,null,null,null,{"$f":"IF(C28=0,0,IF(ISERROR(VLOOKUP(C28,Operações!A:D,4,FALSE)),0,VLOOKUP(C28,Operações!A:D,4,FALSE)))","v":0},0,null,null,null,null,null,null,0]
["Não",240,null,null,null,{"$f":"IF(C29=0,0,IF(ISERROR(VLOOKUP(C29,Operações!A:D,4,FALSE)),0,VLOOKUP(C29,Operações!A:D,4,FALSE)))","v":0},0,null,null,null,null,null,null,0]
["Não",250,null,null,null,{"$f":"IF(C30=0,0,IF(ISERROR(VLOOKUP(C30,Operações!A:D,4,FALSE)),0,VLOOKUP(C30,Operações!A:D,4,FALSE)))","v":0},0,null,null,null,null,null,null,0]
["Não",260,null,null,null,{"$f":"IF(C31=0,0,IF(ISERROR(VLOOKUP(C31,Operações!A:D,4,FALSE)),0,VLOOKUP(C31,Operações!A:D,4,FALSE)))","v":0},0,null,null,null,null,null,null,0]
["Não",270,null,null,null,{"$f":"IF(C32=0,0,IF(ISERROR(VLOOKUP(C32,Operações!A:D,4,FALSE)),0,VLOOKUP(C32,Operações!A:D,4,FALSE)))","v":0},0,null,null,null,null,null,null,0]
["Não",280,null,null,null,{"$f":"IF(C33=0,0,IF(ISERROR(VLOOKUP(C33,Operações!A:D,4,FALSE)),0,VLOOKUP(C33,Operações!A:D,4,FALSE)))","v":0},0,null,null,null,null,null,null,0]
["Não",290,null,null,null,{"$f":"IF(C34=0,0,IF(ISERROR(VLOOKUP(C34,Operações!A:D,4,FALSE)),0,VLOOKUP(C34,Operações!A:D,4,FALSE)))","v":0},0,null,null,null,null,null,null,0]
["Não",300,null,null,null,{"$f":"IF(C35=0,0,IF(ISERROR(VLOOKUP(C35,Operações!A:D,4,FALSE)),0,VLOOKUP(C35,Operações!A:D,4,FALSE)))","v":0},0,null,null,null,null,null,null,0]
["Não",310,null,null,null,{"$f":"IF(C36=0,0,IF(ISERROR(VLOOKUP(C36,Operações!A:D,4,FALSE)),0,VLOOKUP(C36,Operações!A:D,4,FALSE)))","v":0},0,null,null,null,null,null,null,0]
["Não",320,null,null,null,{"$f":"IF(C37=0,0,IF(ISERROR(VLOOKUP(C37,Operações!A:D,4,FALSE)),0,VLOOKUP(C37,Operações!A:D,4,FALSE)))","v":0},0,null,null,null,null,null,null,0]
["Não",330,null,null,null,{"$f":"IF(C38=0,0,IF(ISERROR(VLOOKUP(C38,Operações!A:D,4,FALSE)),0,VLOOKUP(C38,Operações!A:D,4,FALSE)))","v":0},0,null,null,null,null,null,null,0]
["Não",340,null,null,null,{"$f":"IF(C39=0,0,IF(ISERROR(VLOOKUP(C39,Operações!A:D,4,FALSE)),0,VLOOKUP(C39,Operações!A:D,4,FALSE)))","v":0},0,null,null,null,null,null,null,0]
["Não",350,null,null,null,{"$f":"IF(C40=0,0,IF(ISERROR(VLOOKUP(C40,Operações!A:D,4,FALSE)),0,VLOOKUP(C40,Operações!A:D,4,FALSE)))","v":0},0,null,null,null,null,null,null,0]
["Não",360,null,null,null,{"$f":"IF(C41=0,0,IF(ISERROR(VLOOKUP(C41,Operações!A:D,4,FALSE)),0,VLOOKUP(C41,Operações!A:D,4,FALSE)))","v":0},0,null,null,null,null,null,null,0]
["Não",370,null,null,null,{"$f":"IF(C42=0,0,IF(ISERROR(VLOOKUP(C42,Operações!A:D,4,FALSE)),0,VLOOKUP(C42,Operações!A:D,4,FALSE)))","v":0},0,null,null,null,null,null,null,0]
["Não",380,null,null,null,{"$f":"IF(C43=0,0,IF(ISERROR(VLOOKUP(C43,Operações!A:D,4,FALSE)),0,VLOOKUP(C43,Operações!A:D,4,FALSE)))","v":0},0,null,null,null,null,null,null,0]
["Não",390,null,null,null,{"$f":"IF(C44=0,0,IF(ISERROR(VLOOKUP(C44,Operações!A:D,4,FALSE)),0,VLOOKUP(C44,Operações!A:D,4,FALSE)))","v":0},0,null,null,null,null,null,null,0]
["Não",400,null,null,null,{"$f":"IF(C45=0,0,IF(ISERROR(VLOOKUP(C45,Operações!A:D,4,FALSE)),0,VLOOKUP(C45,Operações!A:D,4,FALSE)))","v":0},0,null,null,null,null,null,null,0]
["Não",410,null,null,null,{"$f":"IF(C46=0,0,IF(ISERROR(VLOOKUP(C46,Operações!A:D,4,FALSE)),0,VLOOKUP(C46,Operações!A:D,4,FALSE)))","v":0},0,null,null,null,null,null,null,0]
["Não",420,null,null,null,{"$f":"IF(C47=0,0,IF(ISERROR(VLOOKUP(C47,Operações!A:D,4,FALSE)),0,VLOOKUP(C47,Operações!A:D,4,FALSE)))","v":0},0,null,null,null,null,null,null,0]
["Não",430,null,null,null,{"$f":"IF(C48=0,0,IF(ISERROR(VLOOKUP(C48,Operações!A:D,4,FALSE)),0,VLOOKUP(C48,Operações!A:D,4,FALSE)))","v":0},0,null,null,null,null,null,null,0]
["Não",440,null,null,null,{"$f":"IF(C49=0,0,IF(ISERROR(VLOOKUP(C49,Operações!A:D,4,FALSE)),0,VLOOKUP(C49,Operações!A:D,4,FALSE)))","v":0},0,null,null,null,null,null,null,0]
["Não",450,null,null,null,{"$f":"IF(C50=0,0,IF(ISERROR(VLOOKUP(C50,Operações!A:D,4,FALSE)),0,VLOOKUP(C50,Operações!A:D,4,FALSE)))","v":0},0,null,null,null,null,null,null,0]
["Não",460,null,null,null,{"$f":"IF(C51=0,0,IF(ISERROR(VLOOKUP(C51,Operações!A:D,4,FALSE)),0,VLOOKUP(C51,Operações!A:D,4,FALSE)))","v":0},0,null,null,null,null,null,null,0]
["Não",470,null,null,null,{"$f":"IF(C52=0,0,IF(ISERROR(VLOOKUP(C52,Operações!A:D,4,FALSE)),0,VLOOKUP(C52,Operações!A:D,4,FALSE)))","v":0},0,null,null,null,null,null,null,0]
["Não",480,null,null,null,{"$f":"IF(C53=0,0,IF(ISERROR(VLOOKUP(C53,Operações!A:D,4,FALSE)),0,VLOOKUP(C53,Operações!A:D,4,FALSE)))","v":0},0,null,null,null,null,null,null,0]
["Não",490,null,null,null,{"$f":"IF(C54=0,0,IF(ISERROR(VLOOKUP(C54,Operações!A:D,4,FALSE)),0,VLOOKUP(C54,Operações!A:D,4,FALSE)))","v":0},0,null,null,null,null,null,null,0]
["Não",500,null,null,null,{"$f":"IF(C55=0,0,IF(ISERROR(VLOOKUP(C55,Operações!A:D,4,FALSE)),0,VLOOKUP(C55,Operações!A:D,4,FALSE)))","v":0},0,null,null,null,null,null,null,0]
["Não",510,null,null,null,{"$f":"IF(C56=0,0,IF(ISERROR(VLOOKUP(C56,Operações!A:D,4,FALSE)),0,VLOOKUP(C56,Operações!A:D,4,FALSE)))","v":0},0,null,null,null,null,null,null,0]
["Não",520,null,null,null,{"$f":"IF(C57=0,0,IF(ISERROR(VLOOKUP(C57,Operações!A:D,4,FALSE)),0,VLOOKUP(C57,Operações!A:D,4,FALSE)))","v":0},0,null,null,null,null,null,null,0]
["Não",530,null,null,null,{"$f":"IF(C58=0,0,IF(ISERROR(VLOOKUP(C58,Operações!A:D,4,FALSE)),0,VLOOKUP(C58,Operações!A:D,4,FALSE)))","v":0},0,null,null,null,null,null,null,0]
["Não",540,null,null,null,{"$f":"IF(C59=0,0,IF(ISERROR(VLOOKUP(C59,Operações!A:D,4,FALSE)),0,VLOOKUP(C59,Operações!A:D,4,FALSE)))","v":0},0,null,null,null,null,null,null,0]
["Não",550,null,null,null,{"$f":"IF(C60=0,0,IF(ISERROR(VLOOKUP(C60,Operações!A:D,4,FALSE)),0,VLOOKUP(C60,Operações!A:D,4,FALSE)))","v":0},0,null,null,null,null,null,null,0]
["Não",560,null,null,null,{"$f":"IF(C61=0,0,IF(ISERROR(VLOOKUP(C61,Operações!A:D,4,FALSE)),0,VLOOKUP(C61,Operações!A:D,4,FALSE)))","v":0},0,null,null,null,null,null,null,0]
["Não",570,null,null,null,{"$f":"IF(C62=0,0,IF(ISERROR(VLOOKUP(C62,Operações!A:D,4,FALSE)),0,VLOOKUP(C62,Operações!A:D,4,FALSE)))","v":0},0,null,null,null,null,null,null,0]
["Não",580,null,null,null,{"$f":"IF(C63=0,0,IF(ISERROR(VLOOKUP(C63,Operações!A:D,4,FALSE)),0,VLOOKUP(C63,Operações!A:D,4,FALSE)))","v":0},0,null,null,null,null,null,null,0]
["Não",590,null,null,null,{"$f":"IF(C64=0,0,IF(ISERROR(VLOOKUP(C64,Operações!A:D,4,FALSE)),0,VLOOKUP(C64,Operações!A:D,4,FALSE)))","v":0},0,null,null,null,null,null,null,0]
["Não",600,null,null,null,{"$f":"IF(C65=0,0,IF(ISERROR(VLOOKUP(C65,Operações!A:D,4,FALSE)),0,VLOOKUP(C65,Operações!A:D,4,FALSE)))","v":0},0,null,null,null,null,null,null,0]
["Não",610,null,null,null,{"$f":"IF(C66=0,0,IF(ISERROR(VLOOKUP(C66,Operações!A:D,4,FALSE)),0,VLOOKUP(C66,Operações!A:D,4,FALSE)))","v":0},0,null,null,null,null,null,null,0]
["Não",620,null,null,null,{"$f":"IF(C67=0,0,IF(ISERROR(VLOOKUP(C67,Operações!A:D,4,FALSE)),0,VLOOKUP(C67,Operações!A:D,4,FALSE)))","v":0},0,null,null,null,null,null,null,0]
["Não",630,null,null,null,{"$f":"IF(C68=0,0,IF(ISERROR(VLOOKUP(C68,Operações!A:D,4,FALSE)),0,VLOOKUP(C68,Operações!A:D,4,FALSE)))","v":0},0,null,null,null,null,null,null,0]
["Não",640,null,null,null,{"$f":"IF(C69=0,0,IF(ISERROR(VLOOKUP(C69,Operações!A:D,4,FALSE)),0,VLOOKUP(C69,Operações!A:D,4,FALSE)))","v":0},0,null,null,null,null,null,null,0]
["Não",650,null,null,null,{"$f":"IF(C70=0,0,IF(ISERROR(VLOOKUP(C70,Operações!A:D,4,FALSE)),0,VLOOKUP(C70,Operações!A:D,4,FALSE)))","v":0},0,null,null,null,null,null,null,0]
[{"$f":"IF(C71=0,\"Não\",\"Sim\")","v":"Não"},660,null,null,null,{"$f":"IF(C71=0,0,IF(ISERROR(VLOOKUP(C71,Operações!A:D,4,FALSE)),0,VLOOKUP(C71,Operações!A:D,4,FALSE)))","v":0},0,null,null,null,null,null,null,{"$f":"IF(C71=0,0,IF(F71<>0,0,1))","v":0}]
["Não",670,null,null,null,{"$f":"IF(C72=0,0,IF(ISERROR(VLOOKUP(C72,Operações!A:D,4,FALSE)),0,VLOOKUP(C72,Operações!A:D,4,FALSE)))","v":0},0,null,null,null,null,null,null,0]
["Não",680,null,null,null,{"$f":"IF(C73=0,0,IF(ISERROR(VLOOKUP(C73,Operações!A:D,4,FALSE)),0,VLOOKUP(C73,Operações!A:D,4,FALSE)))","v":0},{"$f":"IF(AND(C72=0,C73<>0),1,0)","v":0},null,null,null,null,null,null,0]
["Não",690,null,null,null,{"$f":"IF(C74=0,0,IF(ISERROR(VLOOKUP(C74,Operações!A:D,4,FALSE)),0,VLOOKUP(C74,Operações!A:D,4,FALSE)))","v":0},0,null,null,null,null,null,null,0]
["Não",700,null,null,null,{"$f":"IF(C75=0,0,IF(ISERROR(VLOOKUP(C75,Operações!A:D,4,FALSE)),0,VLOOKUP(C75,Operações!A:D,4,FALSE)))","v":0},0,null,null,null,null,null,null,0]
["Não",710,null,null,null,{"$f":"IF(C76=0,0,IF(ISERROR(VLOOKUP(C76,Operações!A:D,4,FALSE)),0,VLOOKUP(C76,Operações!A:D,4,FALSE)))","v":0},0,null,null,null,null,null,null,0]
["Não",720,null,null,null,{"$f":"IF(C77=0,0,IF(ISERROR(VLOOKUP(C77,Operações!A:D,4,FALSE)),0,VLOOKUP(C77,Operações!A:D,4,FALSE)))","v":0},0,null,null,null,null,null,null,0]
["Não",730,null,null,null,{"$f":"IF(C78=0,0,IF(ISERROR(VLOOKUP(C78,Operações!A:D,4,FALSE)),0,VLOOKUP(C78,Operações!A:D,4,FALSE)))","v":0},0,null,null,null,null,null,null,0]
["Não",740,null,null,null,{"$f":"IF(C79=0,0,IF(ISERROR(VLOOKUP(C79,Operações!A:D,4,FALSE)),0,VLOOKUP(C79,Operações!A:D,4,FALSE)))","v":0},0,null,null,null,null,null,null,0]
["Não",750,null,null,null,{"$f":"IF(C80=0,0,IF(ISERROR(VLOOKUP(C80,Operações!A:D,4,FALSE)),0,VLOOKUP(C80,Operações!A:D,4,FALSE)))","v":0},0,null,null,null,null,null,null,0]
["Não",760,null,null,null,{"$f":"IF(C81=0,0,IF(ISERROR(VLOOKUP(C81,Operações!A:D,4,FALSE)),0,VLOOKUP(C81,Operações!A:D,4,FALSE)))","v":0},0,null,null,null,null,null,null,0]
["Não",770,null,null,null,{"$f":"IF(C82=0,0,IF(ISERROR(VLOOKUP(C82,Operações!A:D,4,FALSE)),0,VLOOKUP(C82,Operações!A:D,4,FALSE)))","v":0},0,null,null,null,null,null,null,0]
["Não",780,null,null,null,{"$f":"IF(C83=0,0,IF(ISERROR(VLOOKUP(C83,Operações!A:D,4,FALSE)),0,VLOOKUP(C83,Operações!A:D,4,FALSE)))","v":0},0,null,null,null,null,null,null,0]
["Não",790,null,null,null,{"$f":"IF(C84=0,0,IF(ISERROR(VLOOKUP(C84,Operações!A:D,4,FALSE)),0,VLOOKUP(C84,Operações!A:D,4,FALSE)))","v":0},0,null,null,null,null,null,null,0]
["Não",800,null,null,null,{"$f":"IF(C85=0,0,IF(ISERROR(VLOOKUP(C85,Operações!A:D,4,FALSE)),0,VLOOKUP(C85,Operações!A:D,4,FALSE)))","v":0},0,null,null,null,null,null,null,0]
["Não",810,null,null,null,{"$f":"IF(C86=0,0,IF(ISERROR(VLOOKUP(C86,Operações!A:D,4,FALSE)),0,VLOOKUP(C86,Operações!A:D,4,FALSE)))","v":0},0,null,null,null,null,null,null,0]
["Não",820,null,null,null,{"$f":"IF(C87=0,0,IF(ISERROR(VLOOKUP(C87,Operações!A:D,4,FALSE)),0,VLOOKUP(C87,Operações!A:D,4,FALSE)))","v":0},0,null,null,null,null,null,null,0]
["Não",830,null,null,null,{"$f":"IF(C88=0,0,IF(ISERROR(VLOOKUP(C88,Operações!A:D,4,FALSE)),0,VLOOKUP(C88,Operações!A:D,4,FALSE)))","v":0},0,null,null,null,null,null,null,0]
["Não",840,null,null,null,{"$f":"IF(C89=0,0,IF(ISERROR(VLOOKUP(C89,Operações!A:D,4,FALSE)),0,VLOOKUP(C89,Operações!A:D,4,FALSE)))","v":0},0,null,null,null,null,null,null,0]
["Não",850,null,null,null,{"$f":"IF(C90=0,0,IF(ISERROR(VLOOKUP(C90,Operações!A:D,4,FALSE)),0,VLOOKUP(C90,Operações!A:D,4,FALSE)))","v":0},0,null,null,null,null,null,null,0]
["Não",860,null,null,null,{"$f":"IF(C91=0,0,IF(ISERROR(VLOOKUP(C91,Operações!A:D,4,FALSE)),0,VLOOKUP(C91,Operações!A:D,4,FALSE)))","v":0},0,null,null,null,null,null,null,0]
["Não",870,null,null,null,{"$f":"IF(C92=0,0,IF(ISERROR(VLOOKUP(C92,Operações!A:D,4,FALSE)),0,VLOOKUP(C92,Operações!A:D,4,FALSE)))","v":0},0,null,null,null,null,null,null,0]
["Não",880,null,null,null,{"$f":"IF(C93=0,0,IF(ISERROR(VLOOKUP(C93,Operações!A:D,4,FALSE)),0,VLOOKUP(C93,Operações!A:D,4,FALSE)))","v":0},0,null,null,null,null,null,null,0]
["Não",890,null,null,null,{"$f":"IF(C94=0,0,IF(ISERROR(VLOOKUP(C94,Operações!A:D,4,FALSE)),0,VLOOKUP(C94,Operações!A:D,4,FALSE)))","v":0},0,null,null,null,null,null,null,0]
["Não",900,null,null,null,{"$f":"IF(C95=0,0,IF(ISERROR(VLOOKUP(C95,Operações!A:D,4,FALSE)),0,VLOOKUP(C95,Operações!A:D,4,FALSE)))","v":0},0,null,null,null,null,null,null,0]
["Não",910,null,null,null,{"$f":"IF(C96=0,0,IF(ISERROR(VLOOKUP(C96,Operações!A:D,4,FALSE)),0,VLOOKUP(C96,Operações!A:D,4,FALSE)))","v":0},0,null,null,null,null,null,null,0]
["Não",920,null,null,null,{"$f":"IF(C97=0,0,IF(ISERROR(VLOOKUP(C97,Operações!A:D,4,FALSE)),0,VLOOKUP(C97,Operações!A:D,4,FALSE)))","v":0},0,null,null,null,null,null,null,0]
["Não",930,null,null,null,{"$f":"IF(C98=0,0,IF(ISERROR(VLOOKUP(C98,Operações!A:D,4,FALSE)),0,VLOOKUP(C98,Operações!A:D,4,FALSE)))","v":0},0,null,null,null,null,null,null,0]
["Não",940,null,null,null,{"$f":"IF(C99=0,0,IF(ISERROR(VLOOKUP(C99,Operações!A:D,4,FALSE)),0,VLOOKUP(C99,Operações!A:D,4,FALSE)))","v":0},0,null,null,null,null,null,null,0]
["Não",950,null,null,null,{"$f":"IF(C100=0,0,IF(ISERROR(VLOOKUP(C100,Operações!A:D,4,FALSE)),0,VLOOKUP(C100,Operações!A:D,4,FALSE)))","v":0},0,null,null,null,null,null,null,0]
["Não",960,null,null,null,{"$f":"IF(C101=0,0,IF(ISERROR(VLOOKUP(C101,Operações!A:D,4,FALSE)),0,VLOOKUP(C101,Operações!A:D,4,FALSE)))","v":0},0,null,null,null,null,null,null,0]
["Não",970,null,null,null,{"$f":"IF(C102=0,0,IF(ISERROR(VLOOKUP(C102,Operações!A:D,4,FALSE)),0,VLOOKUP(C102,Operações!A:D,4,FALSE)))","v":0},0,null,null,null,null,null,null,0]
["Não",980,null,null,null,{"$f":"IF(C103=0,0,IF(ISERROR(VLOOKUP(C103,Operações!A:D,4,FALSE)),0,VLOOKUP(C103,Operações!A:D,4,FALSE)))","v":0},0,null,null,null,null,null,null,0]
[{"$f":"IF(C104=0,\"Não\",\"Sim\")","v":"Não"},990,null,null,null,{"$f":"IF(C104=0,0,IF(ISERROR(VLOOKUP(C104,Operações!A:D,4,FALSE)),0,VLOOKUP(C104,Operações!A:D,4,FALSE)))","v":0},0,null,null,null,null,null,null,0]
["Não",1000,null,null,null,{"$f":"IF(C105=0,0,IF(ISERROR(VLOOKUP(C105,Operações!A:D,4,FALSE)),0,VLOOKUP(C105,Operações!A:D,4,FALSE)))","v":0},0,null,null,null,null,null,null,0]
["Não",1010,null,null,null,{"$f":"IF(C106=0,0,IF(ISERROR(VLOOKUP(C106,Operações!A:D,4,FALSE)),0,VLOOKUP(C106,Operações!A:D,4,FALSE)))","v":0},0,null,null,null,null,null,null,0]
["Não",1020,null,null,null,{"$f":"IF(C107=0,0,IF(ISERROR(VLOOKUP(C107,Operações!A:D,4,FALSE)),0,VLOOKUP(C107,Operações!A:D,4,FALSE)))","v":0},0,null,null,null,null,null,null,0]
["Não",1030,null,null,null,{"$f":"IF(C108=0,0,IF(ISERROR(VLOOKUP(C108,Operações!A:D,4,FALSE)),0,VLOOKUP(C108,Operações!A:D,4,FALSE)))","v":0},0,null,null,null,null,null,null,0]
["Não",1040,null,null,null,{"$f":"IF(C109=0,0,IF(ISERROR(VLOOKUP(C109,Operações!A:D,4,FALSE)),0,VLOOKUP(C109,Operações!A:D,4,FALSE)))","v":0},0,null,null,null,null,null,null,0]
["Não",1050,null,null,null,{"$f":"IF(C110=0,0,IF(ISERROR(VLOOKUP(C110,Operações!A:D,4,FALSE)),0,VLOOKUP(C110,Operações!A:D,4,FALSE)))","v":0},0,null,null,null,null,null,null,0]
["Não",1060,null,null,null,{"$f":"IF(C111=0,0,IF(ISERROR(VLOOKUP(C111,Operações!A:D,4,FALSE)),0,VLOOKUP(C111,Operações!A:D,4,FALSE)))","v":0},0,null,null,null,null,null,null,0]
["Não",1070,null,null,null,{"$f":"IF(C112=0,0,IF(ISERROR(VLOOKUP(C112,Operações!A:D,4,FALSE)),0,VLOOKUP(C112,Operações!A:D,4,FALSE)))","v":0},0,null,null,null,null,null,null,0]
["Não",1080,null,null,null,{"$f":"IF(C113=0,0,IF(ISERROR(VLOOKUP(C113,Operações!A:D,4,FALSE)),0,VLOOKUP(C113,Operações!A:D,4,FALSE)))","v":0},0,null,null,null,null,null,null,0]
["Não",1090,null,null,null,{"$f":"IF(C114=0,0,IF(ISERROR(VLOOKUP(C114,Operações!A:D,4,FALSE)),0,VLOOKUP(C114,Operações!A:D,4,FALSE)))","v":0},0,null,null,null,null,null,null,0]
["Não",1100,null,null,null,{"$f":"IF(C115=0,0,IF(ISERROR(VLOOKUP(C115,Operações!A:D,4,FALSE)),0,VLOOKUP(C115,Operações!A:D,4,FALSE)))","v":0},0,null,null,null,null,null,null,0]
["Não",1110,null,null,null,{"$f":"IF(C116=0,0,IF(ISERROR(VLOOKUP(C116,Operações!A:D,4,FALSE)),0,VLOOKUP(C116,Operações!A:D,4,FALSE)))","v":0},0,null,null,null,null,null,null,0]
["Não",1120,null,null,null,{"$f":"IF(C117=0,0,IF(ISERROR(VLOOKUP(C117,Operações!A:D,4,FALSE)),0,VLOOKUP(C117,Operações!A:D,4,FALSE)))","v":0},0,null,null,null,null,null,null,0]
["Não",1130,null,null,null,{"$f":"IF(C118=0,0,IF(ISERROR(VLOOKUP(C118,Operações!A:D,4,FALSE)),0,VLOOKUP(C118,Operações!A:D,4,FALSE)))","v":0},0,null,null,null,null,null,null,0]
["Não",1140,null,null,null,{"$f":"IF(C119=0,0,IF(ISERROR(VLOOKUP(C119,Operações!A:D,4,FALSE)),0,VLOOKUP(C119,Operações!A:D,4,FALSE)))","v":0},0,null,null,null,null,null,null,0]
["Não",1150,null,null,null,{"$f":"IF(C120=0,0,IF(ISERROR(VLOOKUP(C120,Operações!A:D,4,FALSE)),0,VLOOKUP(C120,Operações!A:D,4,FALSE)))","v":0},0,null,null,null,null,null,null,0]
["Não",1160,null,null,null,{"$f":"IF(C121=0,0,IF(ISERROR(VLOOKUP(C121,Operações!A:D,4,FALSE)),0,VLOOKUP(C121,Operações!A:D,4,FALSE)))","v":0},0,null,null,null,null,null,null,0]
["Não",1170,null,null,null,{"$f":"IF(C122=0,0,IF(ISERROR(VLOOKUP(C122,Operações!A:D,4,FALSE)),0,VLOOKUP(C122,Operações!A:D,4,FALSE)))","v":0},0,null,null,null,null,null,null,0]
["Não",1180,null,null,null,{"$f":"IF(C123=0,0,IF(ISERROR(VLOOKUP(C123,Operações!A:D,4,FALSE)),0,VLOOKUP(C123,Operações!A:D,4,FALSE)))","v":0},0,null,null,null,null,null,null,0]
["Não",1190,null,null,null,{"$f":"IF(C124=0,0,IF(ISERROR(VLOOKUP(C124,Operações!A:D,4,FALSE)),0,VLOOKUP(C124,Operações!A:D,4,FALSE)))","v":0},0,null,null,null,null,null,null,0]
["Não",1200,null,null,null,{"$f":"IF(C125=0,0,IF(ISERROR(VLOOKUP(C125,Operações!A:D,4,FALSE)),0,VLOOKUP(C125,Operações!A:D,4,FALSE)))","v":0},0,null,null,null,null,null,null,0]
["Sim",null,null,null,"Tempo Total =>",{"$f":"SUM(F6:F125)","v":0}]
[]
[]
[]
[null,null,null,null,null,{"$f":"IF(C130=0,0,IF(ISERROR(VLOOKUP(C130,Operações!A:D,4,FALSE)),0,VLOOKUP(C130,Operações!A:D,4,FALSE)))","v":0}]

{"sheet":"Transf Seq Op.","index":2,"n_rows":2,"n_cols":10,"rows_kept":2,"cut":false,"hidden":false,"merged":[]}
[null,{"$f":"'Seq. Operacional'!$C$2","v":0},{"$f":"CONCATENATE(B1,\"-\",A1)","v":"0-"},null,null,null,null,{"$f":"'Seq. Operacional'!$F$1","v":"2016-09-16"},{"$f":"IF(E1=0,0,CONCATENATE(B1,\"-\",E1))","v":0},{"$f":"IF(F1=0,0,CONCATENATE(B1,\"-\",F1))","v":0}]
["Seq.","Ref.","Concatenar","Descrição  das  Operações","Tipo\nMáq.","Tipo\nApar.","Tempo\nPadrão","Data do\nCadastro","Somase\nMáquina","Somase\nAparelho"]

{"sheet":"Consulta Seq. Operacional","index":3,"n_rows":130,"n_cols":14,"rows_kept":130,"cut":false,"hidden":false,"merged":[[2,2,2,5]]}
[null,null,"Sequência Operacional e Tempo Padrão",null,"Data cadastro:",{"$f":"IF($C$2=0,\"\",IF(ISERROR(VLOOKUP($C$2&\"-\"&B6,'BD Seq Op'!C:H,6,FALSE)),\"\",VLOOKUP($C$2&\"-\"&B6,'BD Seq Op'!C:H,6,FALSE)))","v":""},null,null,null,null,null,null,null,{"$f":"IF(C2=0,\"\",IF(ISERROR(VLOOKUP(C2&\"-\"&B6,'BD Seq Op'!C:H,6,FALSE)),\"Não cadastrada.\",\"\"))","v":""}]
[]
[null,null,{"$f":"IF(C2=0,\"\",IF(N1=\"Não cadastrada.\",\"\",VLOOKUP(C2,Ref!A:B,2,FALSE)))","v":""}]
["Filtro","Seq.","Descrição operacional","Tipo\nMáq.","Tipo\nApar.","Tempo\nPadrão"]
["Sim","Seq.","Descrição  das  Operações","Tipo\nMáq.","Tipo\nApar.","Tempo\nPadrão"]
[{"$f":"IF(C6=\"\",\"Não\",\"Sim\")","v":"Não"},1,{"$f":"IF($C$2=0,\"\",IF(ISERROR(VLOOKUP($C$2&\"-\"&$B6,'BD Seq Op'!$C:$H,2,FALSE)),\"\",VLOOKUP($C$2&\"-\"&$B6,'BD Seq Op'!$C:$H,2,FALSE)))","v":""},null,null,{"$f":"IF($C$2=0,\"\",IF(ISERROR(VLOOKUP($C$2&\"-\"&$B6,'BD Seq Op'!$C:$H,5,FALSE)),\"\",VLOOKUP($C$2&\"-\"&$B6,'BD Seq Op'!$C:$H,5,FALSE)))","v":""}]
[{"$f":"IF(C7=\"\",\"Não\",\"Sim\")","v":"Não"},2,{"$f":"IF($C$2=0,\"\",IF(ISERROR(VLOOKUP($C$2&\"-\"&$B7,'BD Seq Op'!$C:$H,2,FALSE)),\"\",VLOOKUP($C$2&\"-\"&$B7,'BD Seq Op'!$C:$H,2,FALSE)))","v":""},null,null,{"$f":"IF($C$2=0,\"\",IF(ISERROR(VLOOKUP($C$2&\"-\"&$B7,'BD Seq Op'!$C:$H,5,FALSE)),\"\",VLOOKUP($C$2&\"-\"&$B7,'BD Seq Op'!$C:$H,5,FALSE)))","v":""}]
["Não",3,{"$f":"IF($C$2=0,\"\",IF(ISERROR(VLOOKUP($C$2&\"-\"&$B8,'BD Seq Op'!$C:$H,2,FALSE)),\"\",VLOOKUP($C$2&\"-\"&$B8,'BD Seq Op'!$C:$H,2,FALSE)))","v":""},null,null,{"$f":"IF($C$2=0,\"\",IF(ISERROR(VLOOKUP($C$2&\"-\"&$B8,'BD Seq Op'!$C:$H,5,FALSE)),\"\",VLOOKUP($C$2&\"-\"&$B8,'BD Seq Op'!$C:$H,5,FALSE)))","v":""}]
["Não",4,{"$f":"IF($C$2=0,\"\",IF(ISERROR(VLOOKUP($C$2&\"-\"&$B9,'BD Seq Op'!$C:$H,2,FALSE)),\"\",VLOOKUP($C$2&\"-\"&$B9,'BD Seq Op'!$C:$H,2,FALSE)))","v":""},null,null,{"$f":"IF($C$2=0,\"\",IF(ISERROR(VLOOKUP($C$2&\"-\"&$B9,'BD Seq Op'!$C:$H,5,FALSE)),\"\",VLOOKUP($C$2&\"-\"&$B9,'BD Seq Op'!$C:$H,5,FALSE)))","v":""}]
["Não",5,{"$f":"IF($C$2=0,\"\",IF(ISERROR(VLOOKUP($C$2&\"-\"&$B10,'BD Seq Op'!$C:$H,2,FALSE)),\"\",VLOOKUP($C$2&\"-\"&$B10,'BD Seq Op'!$C:$H,2,FALSE)))","v":""},null,null,{"$f":"IF($C$2=0,\"\",IF(ISERROR(VLOOKUP($C$2&\"-\"&$B10,'BD Seq Op'!$C:$H,5,FALSE)),\"\",VLOOKUP($C$2&\"-\"&$B10,'BD Seq Op'!$C:$H,5,FALSE)))","v":""}]
["Não",6,{"$f":"IF($C$2=0,\"\",IF(ISERROR(VLOOKUP($C$2&\"-\"&$B11,'BD Seq Op'!$C:$H,2,FALSE)),\"\",VLOOKUP($C$2&\"-\"&$B11,'BD Seq Op'!$C:$H,2,FALSE)))","v":""},null,null,{"$f":"IF($C$2=0,\"\",IF(ISERROR(VLOOKUP($C$2&\"-\"&$B11,'BD Seq Op'!$C:$H,5,FALSE)),\"\",VLOOKUP($C$2&\"-\"&$B11,'BD Seq Op'!$C:$H,5,FALSE)))","v":""}]
["Não",7,{"$f":"IF($C$2=0,\"\",IF(ISERROR(VLOOKUP($C$2&\"-\"&$B12,'BD Seq Op'!$C:$H,2,FALSE)),\"\",VLOOKUP($C$2&\"-\"&$B12,'BD Seq Op'!$C:$H,2,FALSE)))","v":""},null,null,{"$f":"IF($C$2=0,\"\",IF(ISERROR(VLOOKUP($C$2&\"-\"&$B12,'BD Seq Op'!$C:$H,5,FALSE)),\"\",VLOOKUP($C$2&\"-\"&$B12,'BD Seq Op'!$C:$H,5,FALSE)))","v":""}]
["Não",8,{"$f":"IF($C$2=0,\"\",IF(ISERROR(VLOOKUP($C$2&\"-\"&$B13,'BD Seq Op'!$C:$H,2,FALSE)),\"\",VLOOKUP($C$2&\"-\"&$B13,'BD Seq Op'!$C:$H,2,FALSE)))","v":""},null,null,{"$f":"IF($C$2=0,\"\",IF(ISERROR(VLOOKUP($C$2&\"-\"&$B13,'BD Seq Op'!$C:$H,5,FALSE)),\"\",VLOOKUP($C$2&\"-\"&$B13,'BD Seq Op'!$C:$H,5,FALSE)))","v":""}]
["Não",9,{"$f":"IF($C$2=0,\"\",IF(ISERROR(VLOOKUP($C$2&\"-\"&$B14,'BD Seq Op'!$C:$H,2,FALSE)),\"\",VLOOKUP($C$2&\"-\"&$B14,'BD Seq Op'!$C:$H,2,FALSE)))","v":""},null,null,{"$f":"IF($C$2=0,\"\",IF(ISERROR(VLOOKUP($C$2&\"-\"&$B14,'BD Seq Op'!$C:$H,5,FALSE)),\"\",VLOOKUP($C$2&\"-\"&$B14,'BD Seq Op'!$C:$H,5,FALSE)))","v":""}]
["Não",10,{"$f":"IF($C$2=0,\"\",IF(ISERROR(VLOOKUP($C$2&\"-\"&$B15,'BD Seq Op'!$C:$H,2,FALSE)),\"\",VLOOKUP($C$2&\"-\"&$B15,'BD Seq Op'!$C:$H,2,FALSE)))","v":""},null,null,{"$f":"IF($C$2=0,\"\",IF(ISERROR(VLOOKUP($C$2&\"-\"&$B15,'BD Seq Op'!$C:$H,5,FALSE)),\"\",VLOOKUP($C$2&\"-\"&$B15,'BD Seq Op'!$C:$H,5,FALSE)))","v":""}]
["Não",11,{"$f":"IF($C$2=0,\"\",IF(ISERROR(VLOOKUP($C$2&\"-\"&$B16,'BD Seq Op'!$C:$H,2,FALSE)),\"\",VLOOKUP($C$2&\"-\"&$B16,'BD Seq Op'!$C:$H,2,FALSE)))","v":""},null,null,{"$f":"IF($C$2=0,\"\",IF(ISERROR(VLOOKUP($C$2&\"-\"&$B16,'BD Seq Op'!$C:$H,5,FALSE)),\"\",VLOOKUP($C$2&\"-\"&$B16,'BD Seq Op'!$C:$H,5,FALSE)))","v":""}]
["Não",12,{"$f":"IF($C$2=0,\"\",IF(ISERROR(VLOOKUP($C$2&\"-\"&$B17,'BD Seq Op'!$C:$H,2,FALSE)),\"\",VLOOKUP($C$2&\"-\"&$B17,'BD Seq Op'!$C:$H,2,FALSE)))","v":""},null,null,{"$f":"IF($C$2=0,\"\",IF(ISERROR(VLOOKUP($C$2&\"-\"&$B17,'BD Seq Op'!$C:$H,5,FALSE)),\"\",VLOOKUP($C$2&\"-\"&$B17,'BD Seq Op'!$C:$H,5,FALSE)))","v":""}]
["Não",13,{"$f":"IF($C$2=0,\"\",IF(ISERROR(VLOOKUP($C$2&\"-\"&$B18,'BD Seq Op'!$C:$H,2,FALSE)),\"\",VLOOKUP($C$2&\"-\"&$B18,'BD Seq Op'!$C:$H,2,FALSE)))","v":""},null,null,{"$f":"IF($C$2=0,\"\",IF(ISERROR(VLOOKUP($C$2&\"-\"&$B18,'BD Seq Op'!$C:$H,5,FALSE)),\"\",VLOOKUP($C$2&\"-\"&$B18,'BD Seq Op'!$C:$H,5,FALSE)))","v":""}]
["Não",14,{"$f":"IF($C$2=0,\"\",IF(ISERROR(VLOOKUP($C$2&\"-\"&$B19,'BD Seq Op'!$C:$H,2,FALSE)),\"\",VLOOKUP($C$2&\"-\"&$B19,'BD Seq Op'!$C:$H,2,FALSE)))","v":""},null,null,{"$f":"IF($C$2=0,\"\",IF(ISERROR(VLOOKUP($C$2&\"-\"&$B19,'BD Seq Op'!$C:$H,5,FALSE)),\"\",VLOOKUP($C$2&\"-\"&$B19,'BD Seq Op'!$C:$H,5,FALSE)))","v":""}]
["Não",15,{"$f":"IF($C$2=0,\"\",IF(ISERROR(VLOOKUP($C$2&\"-\"&$B20,'BD Seq Op'!$C:$H,2,FALSE)),\"\",VLOOKUP($C$2&\"-\"&$B20,'BD Seq Op'!$C:$H,2,FALSE)))","v":""},null,null,{"$f":"IF($C$2=0,\"\",IF(ISERROR(VLOOKUP($C$2&\"-\"&$B20,'BD Seq Op'!$C:$H,5,FALSE)),\"\",VLOOKUP($C$2&\"-\"&$B20,'BD Seq Op'!$C:$H,5,FALSE)))","v":""}]
["Não",16,{"$f":"IF($C$2=0,\"\",IF(ISERROR(VLOOKUP($C$2&\"-\"&$B21,'BD Seq Op'!$C:$H,2,FALSE)),\"\",VLOOKUP($C$2&\"-\"&$B21,'BD Seq Op'!$C:$H,2,FALSE)))","v":""},null,null,{"$f":"IF($C$2=0,\"\",IF(ISERROR(VLOOKUP($C$2&\"-\"&$B21,'BD Seq Op'!$C:$H,5,FALSE)),\"\",VLOOKUP($C$2&\"-\"&$B21,'BD Seq Op'!$C:$H,5,FALSE)))","v":""}]
["Não",17,{"$f":"IF($C$2=0,\"\",IF(ISERROR(VLOOKUP($C$2&\"-\"&$B22,'BD Seq Op'!$C:$H,2,FALSE)),\"\",VLOOKUP($C$2&\"-\"&$B22,'BD Seq Op'!$C:$H,2,FALSE)))","v":""},null,null,{"$f":"IF($C$2=0,\"\",IF(ISERROR(VLOOKUP($C$2&\"-\"&$B22,'BD Seq Op'!$C:$H,5,FALSE)),\"\",VLOOKUP($C$2&\"-\"&$B22,'BD Seq Op'!$C:$H,5,FALSE)))","v":""}]
["Não",18,{"$f":"IF($C$2=0,\"\",IF(ISERROR(VLOOKUP($C$2&\"-\"&$B23,'BD Seq Op'!$C:$H,2,FALSE)),\"\",VLOOKUP($C$2&\"-\"&$B23,'BD Seq Op'!$C:$H,2,FALSE)))","v":""},null,null,{"$f":"IF($C$2=0,\"\",IF(ISERROR(VLOOKUP($C$2&\"-\"&$B23,'BD Seq Op'!$C:$H,5,FALSE)),\"\",VLOOKUP($C$2&\"-\"&$B23,'BD Seq Op'!$C:$H,5,FALSE)))","v":""}]
["Não",19,{"$f":"IF($C$2=0,\"\",IF(ISERROR(VLOOKUP($C$2&\"-\"&$B24,'BD Seq Op'!$C:$H,2,FALSE)),\"\",VLOOKUP($C$2&\"-\"&$B24,'BD Seq Op'!$C:$H,2,FALSE)))","v":""},null,null,{"$f":"IF($C$2=0,\"\",IF(ISERROR(VLOOKUP($C$2&\"-\"&$B24,'BD Seq Op'!$C:$H,5,FALSE)),\"\",VLOOKUP($C$2&\"-\"&$B24,'BD Seq Op'!$C:$H,5,FALSE)))","v":""}]
["Não",20,{"$f":"IF($C$2=0,\"\",IF(ISERROR(VLOOKUP($C$2&\"-\"&$B25,'BD Seq Op'!$C:$H,2,FALSE)),\"\",VLOOKUP($C$2&\"-\"&$B25,'BD Seq Op'!$C:$H,2,FALSE)))","v":""},null,null,{"$f":"IF($C$2=0,\"\",IF(ISERROR(VLOOKUP($C$2&\"-\"&$B25,'BD Seq Op'!$C:$H,5,FALSE)),\"\",VLOOKUP($C$2&\"-\"&$B25,'BD Seq Op'!$C:$H,5,FALSE)))","v":""}]
["Não",21,{"$f":"IF($C$2=0,\"\",IF(ISERROR(VLOOKUP($C$2&\"-\"&$B26,'BD Seq Op'!$C:$H,2,FALSE)),\"\",VLOOKUP($C$2&\"-\"&$B26,'BD Seq Op'!$C:$H,2,FALSE)))","v":""},null,null,{"$f":"IF($C$2=0,\"\",IF(ISERROR(VLOOKUP($C$2&\"-\"&$B26,'BD Seq Op'!$C:$H,5,FALSE)),\"\",VLOOKUP($C$2&\"-\"&$B26,'BD Seq Op'!$C:$H,5,FALSE)))","v":""}]
["Não",22,{"$f":"IF($C$2=0,\"\",IF(ISERROR(VLOOKUP($C$2&\"-\"&$B27,'BD Seq Op'!$C:$H,2,FALSE)),\"\",VLOOKUP($C$2&\"-\"&$B27,'BD Seq Op'!$C:$H,2,FALSE)))","v":""},null,null,{"$f":"IF($C$2=0,\"\",IF(ISERROR(VLOOKUP($C$2&\"-\"&$B27,'BD Seq Op'!$C:$H,5,FALSE)),\"\",VLOOKUP($C$2&\"-\"&$B27,'BD Seq Op'!$C:$H,5,FALSE)))","v":""}]
["Não",23,{"$f":"IF($C$2=0,\"\",IF(ISERROR(VLOOKUP($C$2&\"-\"&$B28,'BD Seq Op'!$C:$H,2,FALSE)),\"\",VLOOKUP($C$2&\"-\"&$B28,'BD Seq Op'!$C:$H,2,FALSE)))","v":""},null,null,{"$f":"IF($C$2=0,\"\",IF(ISERROR(VLOOKUP($C$2&\"-\"&$B28,'BD Seq Op'!$C:$H,5,FALSE)),\"\",VLOOKUP($C$2&\"-\"&$B28,'BD Seq Op'!$C:$H,5,FALSE)))","v":""}]
["Não",24,{"$f":"IF($C$2=0,\"\",IF(ISERROR(VLOOKUP($C$2&\"-\"&$B29,'BD Seq Op'!$C:$H,2,FALSE)),\"\",VLOOKUP($C$2&\"-\"&$B29,'BD Seq Op'!$C:$H,2,FALSE)))","v":""},null,null,{"$f":"IF($C$2=0,\"\",IF(ISERROR(VLOOKUP($C$2&\"-\"&$B29,'BD Seq Op'!$C:$H,5,FALSE)),\"\",VLOOKUP($C$2&\"-\"&$B29,'BD Seq Op'!$C:$H,5,FALSE)))","v":""}]
["Não",25,{"$f":"IF($C$2=0,\"\",IF(ISERROR(VLOOKUP($C$2&\"-\"&$B30,'BD Seq Op'!$C:$H,2,FALSE)),\"\",VLOOKUP($C$2&\"-\"&$B30,'BD Seq Op'!$C:$H,2,FALSE)))","v":""},null,null,{"$f":"IF($C$2=0,\"\",IF(ISERROR(VLOOKUP($C$2&\"-\"&$B30,'BD Seq Op'!$C:$H,5,FALSE)),\"\",VLOOKUP($C$2&\"-\"&$B30,'BD Seq Op'!$C:$H,5,FALSE)))","v":""}]
["Não",26,{"$f":"IF($C$2=0,\"\",IF(ISERROR(VLOOKUP($C$2&\"-\"&$B31,'BD Seq Op'!$C:$H,2,FALSE)),\"\",VLOOKUP($C$2&\"-\"&$B31,'BD Seq Op'!$C:$H,2,FALSE)))","v":""},null,null,{"$f":"IF($C$2=0,\"\",IF(ISERROR(VLOOKUP($C$2&\"-\"&$B31,'BD Seq Op'!$C:$H,5,FALSE)),\"\",VLOOKUP($C$2&\"-\"&$B31,'BD Seq Op'!$C:$H,5,FALSE)))","v":""}]
["Não",27,{"$f":"IF($C$2=0,\"\",IF(ISERROR(VLOOKUP($C$2&\"-\"&$B32,'BD Seq Op'!$C:$H,2,FALSE)),\"\",VLOOKUP($C$2&\"-\"&$B32,'BD Seq Op'!$C:$H,2,FALSE)))","v":""},null,null,{"$f":"IF($C$2=0,\"\",IF(ISERROR(VLOOKUP($C$2&\"-\"&$B32,'BD Seq Op'!$C:$H,5,FALSE)),\"\",VLOOKUP($C$2&\"-\"&$B32,'BD Seq Op'!$C:$H,5,FALSE)))","v":""}]
["Não",28,{"$f":"IF($C$2=0,\"\",IF(ISERROR(VLOOKUP($C$2&\"-\"&$B33,'BD Seq Op'!$C:$H,2,FALSE)),\"\",VLOOKUP($C$2&\"-\"&$B33,'BD Seq Op'!$C:$H,2,FALSE)))","v":""},null,null,{"$f":"IF($C$2=0,\"\",IF(ISERROR(VLOOKUP($C$2&\"-\"&$B33,'BD Seq Op'!$C:$H,5,FALSE)),\"\",VLOOKUP($C$2&\"-\"&$B33,'BD Seq Op'!$C:$H,5,FALSE)))","v":""}]
["Não",29,{"$f":"IF($C$2=0,\"\",IF(ISERROR(VLOOKUP($C$2&\"-\"&$B34,'BD Seq Op'!$C:$H,2,FALSE)),\"\",VLOOKUP($C$2&\"-\"&$B34,'BD Seq Op'!$C:$H,2,FALSE)))","v":""},null,null,{"$f":"IF($C$2=0,\"\",IF(ISERROR(VLOOKUP($C$2&\"-\"&$B34,'BD Seq Op'!$C:$H,5,FALSE)),\"\",VLOOKUP($C$2&\"-\"&$B34,'BD Seq Op'!$C:$H,5,FALSE)))","v":""}]
["Não",30,{"$f":"IF($C$2=0,\"\",IF(ISERROR(VLOOKUP($C$2&\"-\"&$B35,'BD Seq Op'!$C:$H,2,FALSE)),\"\",VLOOKUP($C$2&\"-\"&$B35,'BD Seq Op'!$C:$H,2,FALSE)))","v":""},null,null,{"$f":"IF($C$2=0,\"\",IF(ISERROR(VLOOKUP($C$2&\"-\"&$B35,'BD Seq Op'!$C:$H,5,FALSE)),\"\",VLOOKUP($C$2&\"-\"&$B35,'BD Seq Op'!$C:$H,5,FALSE)))","v":""}]
["Não",31,{"$f":"IF($C$2=0,\"\",IF(ISERROR(VLOOKUP($C$2&\"-\"&$B36,'BD Seq Op'!$C:$H,2,FALSE)),\"\",VLOOKUP($C$2&\"-\"&$B36,'BD Seq Op'!$C:$H,2,FALSE)))","v":""},null,null,{"$f":"IF($C$2=0,\"\",IF(ISERROR(VLOOKUP($C$2&\"-\"&$B36,'BD Seq Op'!$C:$H,5,FALSE)),\"\",VLOOKUP($C$2&\"-\"&$B36,'BD Seq Op'!$C:$H,5,FALSE)))","v":""}]
["Não",32,{"$f":"IF($C$2=0,\"\",IF(ISERROR(VLOOKUP($C$2&\"-\"&$B37,'BD Seq Op'!$C:$H,2,FALSE)),\"\",VLOOKUP($C$2&\"-\"&$B37,'BD Seq Op'!$C:$H,2,FALSE)))","v":""},null,null,{"$f":"IF($C$2=0,\"\",IF(ISERROR(VLOOKUP($C$2&\"-\"&$B37,'BD Seq Op'!$C:$H,5,FALSE)),\"\",VLOOKUP($C$2&\"-\"&$B37,'BD Seq Op'!$C:$H,5,FALSE)))","v":""}]
["Não",33,{"$f":"IF($C$2=0,\"\",IF(ISERROR(VLOOKUP($C$2&\"-\"&$B38,'BD Seq Op'!$C:$H,2,FALSE)),\"\",VLOOKUP($C$2&\"-\"&$B38,'BD Seq Op'!$C:$H,2,FALSE)))","v":""},null,null,{"$f":"IF($C$2=0,\"\",IF(ISERROR(VLOOKUP($C$2&\"-\"&$B38,'BD Seq Op'!$C:$H,5,FALSE)),\"\",VLOOKUP($C$2&\"-\"&$B38,'BD Seq Op'!$C:$H,5,FALSE)))","v":""}]
["Não",34,{"$f":"IF($C$2=0,\"\",IF(ISERROR(VLOOKUP($C$2&\"-\"&$B39,'BD Seq Op'!$C:$H,2,FALSE)),\"\",VLOOKUP($C$2&\"-\"&$B39,'BD Seq Op'!$C:$H,2,FALSE)))","v":""},null,null,{"$f":"IF($C$2=0,\"\",IF(ISERROR(VLOOKUP($C$2&\"-\"&$B39,'BD Seq Op'!$C:$H,5,FALSE)),\"\",VLOOKUP($C$2&\"-\"&$B39,'BD Seq Op'!$C:$H,5,FALSE)))","v":""}]
["Não",35,{"$f":"IF($C$2=0,\"\",IF(ISERROR(VLOOKUP($C$2&\"-\"&$B40,'BD Seq Op'!$C:$H,2,FALSE)),\"\",VLOOKUP($C$2&\"-\"&$B40,'BD Seq Op'!$C:$H,2,FALSE)))","v":""},null,null,{"$f":"IF($C$2=0,\"\",IF(ISERROR(VLOOKUP($C$2&\"-\"&$B40,'BD Seq Op'!$C:$H,5,FALSE)),\"\",VLOOKUP($C$2&\"-\"&$B40,'BD Seq Op'!$C:$H,5,FALSE)))","v":""}]
["Não",36,{"$f":"IF($C$2=0,\"\",IF(ISERROR(VLOOKUP($C$2&\"-\"&$B41,'BD Seq Op'!$C:$H,2,FALSE)),\"\",VLOOKUP($C$2&\"-\"&$B41,'BD Seq Op'!$C:$H,2,FALSE)))","v":""},null,null,{"$f":"IF($C$2=0,\"\",IF(ISERROR(VLOOKUP($C$2&\"-\"&$B41,'BD Seq Op'!$C:$H,5,FALSE)),\"\",VLOOKUP($C$2&\"-\"&$B41,'BD Seq Op'!$C:$H,5,FALSE)))","v":""}]
["Não",37,{"$f":"IF($C$2=0,\"\",IF(ISERROR(VLOOKUP($C$2&\"-\"&$B42,'BD Seq Op'!$C:$H,2,FALSE)),\"\",VLOOKUP($C$2&\"-\"&$B42,'BD Seq Op'!$C:$H,2,FALSE)))","v":""},null,null,{"$f":"IF($C$2=0,\"\",IF(ISERROR(VLOOKUP($C$2&\"-\"&$B42,'BD Seq Op'!$C:$H,5,FALSE)),\"\",VLOOKUP($C$2&\"-\"&$B42,'BD Seq Op'!$C:$H,5,FALSE)))","v":""}]
["Não",38,{"$f":"IF($C$2=0,\"\",IF(ISERROR(VLOOKUP($C$2&\"-\"&$B43,'BD Seq Op'!$C:$H,2,FALSE)),\"\",VLOOKUP($C$2&\"-\"&$B43,'BD Seq Op'!$C:$H,2,FALSE)))","v":""},null,null,{"$f":"IF($C$2=0,\"\",IF(ISERROR(VLOOKUP($C$2&\"-\"&$B43,'BD Seq Op'!$C:$H,5,FALSE)),\"\",VLOOKUP($C$2&\"-\"&$B43,'BD Seq Op'!$C:$H,5,FALSE)))","v":""}]
["Não",39,{"$f":"IF($C$2=0,\"\",IF(ISERROR(VLOOKUP($C$2&\"-\"&$B44,'BD Seq Op'!$C:$H,2,FALSE)),\"\",VLOOKUP($C$2&\"-\"&$B44,'BD Seq Op'!$C:$H,2,FALSE)))","v":""},null,null,{"$f":"IF($C$2=0,\"\",IF(ISERROR(VLOOKUP($C$2&\"-\"&$B44,'BD Seq Op'!$C:$H,5,FALSE)),\"\",VLOOKUP($C$2&\"-\"&$B44,'BD Seq Op'!$C:$H,5,FALSE)))","v":""}]
["Não",40,{"$f":"IF($C$2=0,\"\",IF(ISERROR(VLOOKUP($C$2&\"-\"&$B45,'BD Seq Op'!$C:$H,2,FALSE)),\"\",VLOOKUP($C$2&\"-\"&$B45,'BD Seq Op'!$C:$H,2,FALSE)))","v":""},null,null,{"$f":"IF($C$2=0,\"\",IF(ISERROR(VLOOKUP($C$2&\"-\"&$B45,'BD Seq Op'!$C:$H,5,FALSE)),\"\",VLOOKUP($C$2&\"-\"&$B45,'BD Seq Op'!$C:$H,5,FALSE)))","v":""}]
["Não",41,{"$f":"IF($C$2=0,\"\",IF(ISERROR(VLOOKUP($C$2&\"-\"&$B46,'BD Seq Op'!$C:$H,2,FALSE)),\"\",VLOOKUP($C$2&\"-\"&$B46,'BD Seq Op'!$C:$H,2,FALSE)))","v":""},null,null,{"$f":"IF($C$2=0,\"\",IF(ISERROR(VLOOKUP($C$2&\"-\"&$B46,'BD Seq Op'!$C:$H,5,FALSE)),\"\",VLOOKUP($C$2&\"-\"&$B46,'BD Seq Op'!$C:$H,5,FALSE)))","v":""}]
["Não",42,{"$f":"IF($C$2=0,\"\",IF(ISERROR(VLOOKUP($C$2&\"-\"&$B47,'BD Seq Op'!$C:$H,2,FALSE)),\"\",VLOOKUP($C$2&\"-\"&$B47,'BD Seq Op'!$C:$H,2,FALSE)))","v":""},null,null,{"$f":"IF($C$2=0,\"\",IF(ISERROR(VLOOKUP($C$2&\"-\"&$B47,'BD Seq Op'!$C:$H,5,FALSE)),\"\",VLOOKUP($C$2&\"-\"&$B47,'BD Seq Op'!$C:$H,5,FALSE)))","v":""}]
["Não",43,{"$f":"IF($C$2=0,\"\",IF(ISERROR(VLOOKUP($C$2&\"-\"&$B48,'BD Seq Op'!$C:$H,2,FALSE)),\"\",VLOOKUP($C$2&\"-\"&$B48,'BD Seq Op'!$C:$H,2,FALSE)))","v":""},null,null,{"$f":"IF($C$2=0,\"\",IF(ISERROR(VLOOKUP($C$2&\"-\"&$B48,'BD Seq Op'!$C:$H,5,FALSE)),\"\",VLOOKUP($C$2&\"-\"&$B48,'BD Seq Op'!$C:$H,5,FALSE)))","v":""}]
["Não",44,{"$f":"IF($C$2=0,\"\",IF(ISERROR(VLOOKUP($C$2&\"-\"&$B49,'BD Seq Op'!$C:$H,2,FALSE)),\"\",VLOOKUP($C$2&\"-\"&$B49,'BD Seq Op'!$C:$H,2,FALSE)))","v":""},null,null,{"$f":"IF($C$2=0,\"\",IF(ISERROR(VLOOKUP($C$2&\"-\"&$B49,'BD Seq Op'!$C:$H,5,FALSE)),\"\",VLOOKUP($C$2&\"-\"&$B49,'BD Seq Op'!$C:$H,5,FALSE)))","v":""}]
["Não",45,{"$f":"IF($C$2=0,\"\",IF(ISERROR(VLOOKUP($C$2&\"-\"&$B50,'BD Seq Op'!$C:$H,2,FALSE)),\"\",VLOOKUP($C$2&\"-\"&$B50,'BD Seq Op'!$C:$H,2,FALSE)))","v":""},null,null,{"$f":"IF($C$2=0,\"\",IF(ISERROR(VLOOKUP($C$2&\"-\"&$B50,'BD Seq Op'!$C:$H,5,FALSE)),\"\",VLOOKUP($C$2&\"-\"&$B50,'BD Seq Op'!$C:$H,5,FALSE)))","v":""}]
["Não",46,{"$f":"IF($C$2=0,\"\",IF(ISERROR(VLOOKUP($C$2&\"-\"&$B51,'BD Seq Op'!$C:$H,2,FALSE)),\"\",VLOOKUP($C$2&\"-\"&$B51,'BD Seq Op'!$C:$H,2,FALSE)))","v":""},null,null,{"$f":"IF($C$2=0,\"\",IF(ISERROR(VLOOKUP($C$2&\"-\"&$B51,'BD Seq Op'!$C:$H,5,FALSE)),\"\",VLOOKUP($C$2&\"-\"&$B51,'BD Seq Op'!$C:$H,5,FALSE)))","v":""}]
["Não",47,{"$f":"IF($C$2=0,\"\",IF(ISERROR(VLOOKUP($C$2&\"-\"&$B52,'BD Seq Op'!$C:$H,2,FALSE)),\"\",VLOOKUP($C$2&\"-\"&$B52,'BD Seq Op'!$C:$H,2,FALSE)))","v":""},null,null,{"$f":"IF($C$2=0,\"\",IF(ISERROR(VLOOKUP($C$2&\"-\"&$B52,'BD Seq Op'!$C:$H,5,FALSE)),\"\",VLOOKUP($C$2&\"-\"&$B52,'BD Seq Op'!$C:$H,5,FALSE)))","v":""}]
["Não",48,{"$f":"IF($C$2=0,\"\",IF(ISERROR(VLOOKUP($C$2&\"-\"&$B53,'BD Seq Op'!$C:$H,2,FALSE)),\"\",VLOOKUP($C$2&\"-\"&$B53,'BD Seq Op'!$C:$H,2,FALSE)))","v":""},null,null,{"$f":"IF($C$2=0,\"\",IF(ISERROR(VLOOKUP($C$2&\"-\"&$B53,'BD Seq Op'!$C:$H,5,FALSE)),\"\",VLOOKUP($C$2&\"-\"&$B53,'BD Seq Op'!$C:$H,5,FALSE)))","v":""}]
["Não",49,{"$f":"IF($C$2=0,\"\",IF(ISERROR(VLOOKUP($C$2&\"-\"&$B54,'BD Seq Op'!$C:$H,2,FALSE)),\"\",VLOOKUP($C$2&\"-\"&$B54,'BD Seq Op'!$C:$H,2,FALSE)))","v":""},null,null,{"$f":"IF($C$2=0,\"\",IF(ISERROR(VLOOKUP($C$2&\"-\"&$B54,'BD Seq Op'!$C:$H,5,FALSE)),\"\",VLOOKUP($C$2&\"-\"&$B54,'BD Seq Op'!$C:$H,5,FALSE)))","v":""}]
["Não",50,{"$f":"IF($C$2=0,\"\",IF(ISERROR(VLOOKUP($C$2&\"-\"&$B55,'BD Seq Op'!$C:$H,2,FALSE)),\"\",VLOOKUP($C$2&\"-\"&$B55,'BD Seq Op'!$C:$H,2,FALSE)))","v":""},null,null,{"$f":"IF($C$2=0,\"\",IF(ISERROR(VLOOKUP($C$2&\"-\"&$B55,'BD Seq Op'!$C:$H,5,FALSE)),\"\",VLOOKUP($C$2&\"-\"&$B55,'BD Seq Op'!$C:$H,5,FALSE)))","v":""}]
["Não",51,{"$f":"IF($C$2=0,\"\",IF(ISERROR(VLOOKUP($C$2&\"-\"&$B56,'BD Seq Op'!$C:$H,2,FALSE)),\"\",VLOOKUP($C$2&\"-\"&$B56,'BD Seq Op'!$C:$H,2,FALSE)))","v":""},null,null,{"$f":"IF($C$2=0,\"\",IF(ISERROR(VLOOKUP($C$2&\"-\"&$B56,'BD Seq Op'!$C:$H,5,FALSE)),\"\",VLOOKUP($C$2&\"-\"&$B56,'BD Seq Op'!$C:$H,5,FALSE)))","v":""}]
["Não",52,{"$f":"IF($C$2=0,\"\",IF(ISERROR(VLOOKUP($C$2&\"-\"&$B57,'BD Seq Op'!$C:$H,2,FALSE)),\"\",VLOOKUP($C$2&\"-\"&$B57,'BD Seq Op'!$C:$H,2,FALSE)))","v":""},null,null,{"$f":"IF($C$2=0,\"\",IF(ISERROR(VLOOKUP($C$2&\"-\"&$B57,'BD Seq Op'!$C:$H,5,FALSE)),\"\",VLOOKUP($C$2&\"-\"&$B57,'BD Seq Op'!$C:$H,5,FALSE)))","v":""}]
["Não",53,{"$f":"IF($C$2=0,\"\",IF(ISERROR(VLOOKUP($C$2&\"-\"&$B58,'BD Seq Op'!$C:$H,2,FALSE)),\"\",VLOOKUP($C$2&\"-\"&$B58,'BD Seq Op'!$C:$H,2,FALSE)))","v":""},null,null,{"$f":"IF($C$2=0,\"\",IF(ISERROR(VLOOKUP($C$2&\"-\"&$B58,'BD Seq Op'!$C:$H,5,FALSE)),\"\",VLOOKUP($C$2&\"-\"&$B58,'BD Seq Op'!$C:$H,5,FALSE)))","v":""}]
["Não",54,{"$f":"IF($C$2=0,\"\",IF(ISERROR(VLOOKUP($C$2&\"-\"&$B59,'BD Seq Op'!$C:$H,2,FALSE)),\"\",VLOOKUP($C$2&\"-\"&$B59,'BD Seq Op'!$C:$H,2,FALSE)))","v":""},null,null,{"$f":"IF($C$2=0,\"\",IF(ISERROR(VLOOKUP($C$2&\"-\"&$B59,'BD Seq Op'!$C:$H,5,FALSE)),\"\",VLOOKUP($C$2&\"-\"&$B59,'BD Seq Op'!$C:$H,5,FALSE)))","v":""}]
["Não",55,{"$f":"IF($C$2=0,\"\",IF(ISERROR(VLOOKUP($C$2&\"-\"&$B60,'BD Seq Op'!$C:$H,2,FALSE)),\"\",VLOOKUP($C$2&\"-\"&$B60,'BD Seq Op'!$C:$H,2,FALSE)))","v":""},null,null,{"$f":"IF($C$2=0,\"\",IF(ISERROR(VLOOKUP($C$2&\"-\"&$B60,'BD Seq Op'!$C:$H,5,FALSE)),\"\",VLOOKUP($C$2&\"-\"&$B60,'BD Seq Op'!$C:$H,5,FALSE)))","v":""}]
["Não",56,{"$f":"IF($C$2=0,\"\",IF(ISERROR(VLOOKUP($C$2&\"-\"&$B61,'BD Seq Op'!$C:$H,2,FALSE)),\"\",VLOOKUP($C$2&\"-\"&$B61,'BD Seq Op'!$C:$H,2,FALSE)))","v":""},null,null,{"$f":"IF($C$2=0,\"\",IF(ISERROR(VLOOKUP($C$2&\"-\"&$B61,'BD Seq Op'!$C:$H,5,FALSE)),\"\",VLOOKUP($C$2&\"-\"&$B61,'BD Seq Op'!$C:$H,5,FALSE)))","v":""}]
["Não",57,{"$f":"IF($C$2=0,\"\",IF(ISERROR(VLOOKUP($C$2&\"-\"&$B62,'BD Seq Op'!$C:$H,2,FALSE)),\"\",VLOOKUP($C$2&\"-\"&$B62,'BD Seq Op'!$C:$H,2,FALSE)))","v":""},null,null,{"$f":"IF($C$2=0,\"\",IF(ISERROR(VLOOKUP($C$2&\"-\"&$B62,'BD Seq Op'!$C:$H,5,FALSE)),\"\",VLOOKUP($C$2&\"-\"&$B62,'BD Seq Op'!$C:$H,5,FALSE)))","v":""}]
["Não",58,{"$f":"IF($C$2=0,\"\",IF(ISERROR(VLOOKUP($C$2&\"-\"&$B63,'BD Seq Op'!$C:$H,2,FALSE)),\"\",VLOOKUP($C$2&\"-\"&$B63,'BD Seq Op'!$C:$H,2,FALSE)))","v":""},null,null,{"$f":"IF($C$2=0,\"\",IF(ISERROR(VLOOKUP($C$2&\"-\"&$B63,'BD Seq Op'!$C:$H,5,FALSE)),\"\",VLOOKUP($C$2&\"-\"&$B63,'BD Seq Op'!$C:$H,5,FALSE)))","v":""}]
["Não",59,{"$f":"IF($C$2=0,\"\",IF(ISERROR(VLOOKUP($C$2&\"-\"&$B64,'BD Seq Op'!$C:$H,2,FALSE)),\"\",VLOOKUP($C$2&\"-\"&$B64,'BD Seq Op'!$C:$H,2,FALSE)))","v":""},null,null,{"$f":"IF($C$2=0,\"\",IF(ISERROR(VLOOKUP($C$2&\"-\"&$B64,'BD Seq Op'!$C:$H,5,FALSE)),\"\",VLOOKUP($C$2&\"-\"&$B64,'BD Seq Op'!$C:$H,5,FALSE)))","v":""}]
["Não",60,{"$f":"IF($C$2=0,\"\",IF(ISERROR(VLOOKUP($C$2&\"-\"&$B65,'BD Seq Op'!$C:$H,2,FALSE)),\"\",VLOOKUP($C$2&\"-\"&$B65,'BD Seq Op'!$C:$H,2,FALSE)))","v":""},null,null,{"$f":"IF($C$2=0,\"\",IF(ISERROR(VLOOKUP($C$2&\"-\"&$B65,'BD Seq Op'!$C:$H,5,FALSE)),\"\",VLOOKUP($C$2&\"-\"&$B65,'BD Seq Op'!$C:$H,5,FALSE)))","v":""}]
["Não",61,{"$f":"IF($C$2=0,\"\",IF(ISERROR(VLOOKUP($C$2&\"-\"&$B66,'BD Seq Op'!$C:$H,2,FALSE)),\"\",VLOOKUP($C$2&\"-\"&$B66,'BD Seq Op'!$C:$H,2,FALSE)))","v":""},null,null,{"$f":"IF($C$2=0,\"\",IF(ISERROR(VLOOKUP($C$2&\"-\"&$B66,'BD Seq Op'!$C:$H,5,FALSE)),\"\",VLOOKUP($C$2&\"-\"&$B66,'BD Seq Op'!$C:$H,5,FALSE)))","v":""}]
["Não",62,{"$f":"IF($C$2=0,\"\",IF(ISERROR(VLOOKUP($C$2&\"-\"&$B67,'BD Seq Op'!$C:$H,2,FALSE)),\"\",VLOOKUP($C$2&\"-\"&$B67,'BD Seq Op'!$C:$H,2,FALSE)))","v":""},null,null,{"$f":"IF($C$2=0,\"\",IF(ISERROR(VLOOKUP($C$2&\"-\"&$B67,'BD Seq Op'!$C:$H,5,FALSE)),\"\",VLOOKUP($C$2&\"-\"&$B67,'BD Seq Op'!$C:$H,5,FALSE)))","v":""}]
["Não",63,{"$f":"IF($C$2=0,\"\",IF(ISERROR(VLOOKUP($C$2&\"-\"&$B68,'BD Seq Op'!$C:$H,2,FALSE)),\"\",VLOOKUP($C$2&\"-\"&$B68,'BD Seq Op'!$C:$H,2,FALSE)))","v":""},null,null,{"$f":"IF($C$2=0,\"\",IF(ISERROR(VLOOKUP($C$2&\"-\"&$B68,'BD Seq Op'!$C:$H,5,FALSE)),\"\",VLOOKUP($C$2&\"-\"&$B68,'BD Seq Op'!$C:$H,5,FALSE)))","v":""}]
["Não",64,{"$f":"IF($C$2=0,\"\",IF(ISERROR(VLOOKUP($C$2&\"-\"&$B69,'BD Seq Op'!$C:$H,2,FALSE)),\"\",VLOOKUP($C$2&\"-\"&$B69,'BD Seq Op'!$C:$H,2,FALSE)))","v":""},null,null,{"$f":"IF($C$2=0,\"\",IF(ISERROR(VLOOKUP($C$2&\"-\"&$B69,'BD Seq Op'!$C:$H,5,FALSE)),\"\",VLOOKUP($C$2&\"-\"&$B69,'BD Seq Op'!$C:$H,5,FALSE)))","v":""}]
["Não",65,{"$f":"IF($C$2=0,\"\",IF(ISERROR(VLOOKUP($C$2&\"-\"&$B70,'BD Seq Op'!$C:$H,2,FALSE)),\"\",VLOOKUP($C$2&\"-\"&$B70,'BD Seq Op'!$C:$H,2,FALSE)))","v":""},null,null,{"$f":"IF($C$2=0,\"\",IF(ISERROR(VLOOKUP($C$2&\"-\"&$B70,'BD Seq Op'!$C:$H,5,FALSE)),\"\",VLOOKUP($C$2&\"-\"&$B70,'BD Seq Op'!$C:$H,5,FALSE)))","v":""}]
[{"$f":"IF(C71=\"\",\"Não\",\"Sim\")","v":"Não"},66,{"$f":"IF($C$2=0,\"\",IF(ISERROR(VLOOKUP($C$2&\"-\"&$B71,'BD Seq Op'!$C:$H,2,FALSE)),\"\",VLOOKUP($C$2&\"-\"&$B71,'BD Seq Op'!$C:$H,2,FALSE)))","v":""},null,null,{"$f":"IF($C$2=0,\"\",IF(ISERROR(VLOOKUP($C$2&\"-\"&$B71,'BD Seq Op'!$C:$H,5,FALSE)),\"\",VLOOKUP($C$2&\"-\"&$B71,'BD Seq Op'!$C:$H,5,FALSE)))","v":""}]
["Não",67,{"$f":"IF($C$2=0,\"\",IF(ISERROR(VLOOKUP($C$2&\"-\"&$B72,'BD Seq Op'!$C:$H,2,FALSE)),\"\",VLOOKUP($C$2&\"-\"&$B72,'BD Seq Op'!$C:$H,2,FALSE)))","v":""},null,null,{"$f":"IF($C$2=0,\"\",IF(ISERROR(VLOOKUP($C$2&\"-\"&$B72,'BD Seq Op'!$C:$H,5,FALSE)),\"\",VLOOKUP($C$2&\"-\"&$B72,'BD Seq Op'!$C:$H,5,FALSE)))","v":""}]
["Não",68,{"$f":"IF($C$2=0,\"\",IF(ISERROR(VLOOKUP($C$2&\"-\"&$B73,'BD Seq Op'!$C:$H,2,FALSE)),\"\",VLOOKUP($C$2&\"-\"&$B73,'BD Seq Op'!$C:$H,2,FALSE)))","v":""},null,null,{"$f":"IF($C$2=0,\"\",IF(ISERROR(VLOOKUP($C$2&\"-\"&$B73,'BD Seq Op'!$C:$H,5,FALSE)),\"\",VLOOKUP($C$2&\"-\"&$B73,'BD Seq Op'!$C:$H,5,FALSE)))","v":""}]
["Não",69,{"$f":"IF($C$2=0,\"\",IF(ISERROR(VLOOKUP($C$2&\"-\"&$B74,'BD Seq Op'!$C:$H,2,FALSE)),\"\",VLOOKUP($C$2&\"-\"&$B74,'BD Seq Op'!$C:$H,2,FALSE)))","v":""},null,null,{"$f":"IF($C$2=0,\"\",IF(ISERROR(VLOOKUP($C$2&\"-\"&$B74,'BD Seq Op'!$C:$H,5,FALSE)),\"\",VLOOKUP($C$2&\"-\"&$B74,'BD Seq Op'!$C:$H,5,FALSE)))","v":""}]
["Não",70,{"$f":"IF($C$2=0,\"\",IF(ISERROR(VLOOKUP($C$2&\"-\"&$B75,'BD Seq Op'!$C:$H,2,FALSE)),\"\",VLOOKUP($C$2&\"-\"&$B75,'BD Seq Op'!$C:$H,2,FALSE)))","v":""},null,null,{"$f":"IF($C$2=0,\"\",IF(ISERROR(VLOOKUP($C$2&\"-\"&$B75,'BD Seq Op'!$C:$H,5,FALSE)),\"\",VLOOKUP($C$2&\"-\"&$B75,'BD Seq Op'!$C:$H,5,FALSE)))","v":""}]
["Não",71,{"$f":"IF($C$2=0,\"\",IF(ISERROR(VLOOKUP($C$2&\"-\"&$B76,'BD Seq Op'!$C:$H,2,FALSE)),\"\",VLOOKUP($C$2&\"-\"&$B76,'BD Seq Op'!$C:$H,2,FALSE)))","v":""},null,null,{"$f":"IF($C$2=0,\"\",IF(ISERROR(VLOOKUP($C$2&\"-\"&$B76,'BD Seq Op'!$C:$H,5,FALSE)),\"\",VLOOKUP($C$2&\"-\"&$B76,'BD Seq Op'!$C:$H,5,FALSE)))","v":""}]
["Não",72,{"$f":"IF($C$2=0,\"\",IF(ISERROR(VLOOKUP($C$2&\"-\"&$B77,'BD Seq Op'!$C:$H,2,FALSE)),\"\",VLOOKUP($C$2&\"-\"&$B77,'BD Seq Op'!$C:$H,2,FALSE)))","v":""},null,null,{"$f":"IF($C$2=0,\"\",IF(ISERROR(VLOOKUP($C$2&\"-\"&$B77,'BD Seq Op'!$C:$H,5,FALSE)),\"\",VLOOKUP($C$2&\"-\"&$B77,'BD Seq Op'!$C:$H,5,FALSE)))","v":""}]
["Não",73,{"$f":"IF($C$2=0,\"\",IF(ISERROR(VLOOKUP($C$2&\"-\"&$B78,'BD Seq Op'!$C:$H,2,FALSE)),\"\",VLOOKUP($C$2&\"-\"&$B78,'BD Seq Op'!$C:$H,2,FALSE)))","v":""},null,null,{"$f":"IF($C$2=0,\"\",IF(ISERROR(VLOOKUP($C$2&\"-\"&$B78,'BD Seq Op'!$C:$H,5,FALSE)),\"\",VLOOKUP($C$2&\"-\"&$B78,'BD Seq Op'!$C:$H,5,FALSE)))","v":""}]
["Não",74,{"$f":"IF($C$2=0,\"\",IF(ISERROR(VLOOKUP($C$2&\"-\"&$B79,'BD Seq Op'!$C:$H,2,FALSE)),\"\",VLOOKUP($C$2&\"-\"&$B79,'BD Seq Op'!$C:$H,2,FALSE)))","v":""},null,null,{"$f":"IF($C$2=0,\"\",IF(ISERROR(VLOOKUP($C$2&\"-\"&$B79,'BD Seq Op'!$C:$H,5,FALSE)),\"\",VLOOKUP($C$2&\"-\"&$B79,'BD Seq Op'!$C:$H,5,FALSE)))","v":""}]
["Não",75,{"$f":"IF($C$2=0,\"\",IF(ISERROR(VLOOKUP($C$2&\"-\"&$B80,'BD Seq Op'!$C:$H,2,FALSE)),\"\",VLOOKUP($C$2&\"-\"&$B80,'BD Seq Op'!$C:$H,2,FALSE)))","v":""},null,null,{"$f":"IF($C$2=0,\"\",IF(ISERROR(VLOOKUP($C$2&\"-\"&$B80,'BD Seq Op'!$C:$H,5,FALSE)),\"\",VLOOKUP($C$2&\"-\"&$B80,'BD Seq Op'!$C:$H,5,FALSE)))","v":""}]
["Não",76,{"$f":"IF($C$2=0,\"\",IF(ISERROR(VLOOKUP($C$2&\"-\"&$B81,'BD Seq Op'!$C:$H,2,FALSE)),\"\",VLOOKUP($C$2&\"-\"&$B81,'BD Seq Op'!$C:$H,2,FALSE)))","v":""},null,null,{"$f":"IF($C$2=0,\"\",IF(ISERROR(VLOOKUP($C$2&\"-\"&$B81,'BD Seq Op'!$C:$H,5,FALSE)),\"\",VLOOKUP($C$2&\"-\"&$B81,'BD Seq Op'!$C:$H,5,FALSE)))","v":""}]
["Não",77,{"$f":"IF($C$2=0,\"\",IF(ISERROR(VLOOKUP($C$2&\"-\"&$B82,'BD Seq Op'!$C:$H,2,FALSE)),\"\",VLOOKUP($C$2&\"-\"&$B82,'BD Seq Op'!$C:$H,2,FALSE)))","v":""},null,null,{"$f":"IF($C$2=0,\"\",IF(ISERROR(VLOOKUP($C$2&\"-\"&$B82,'BD Seq Op'!$C:$H,5,FALSE)),\"\",VLOOKUP($C$2&\"-\"&$B82,'BD Seq Op'!$C:$H,5,FALSE)))","v":""}]
["Não",78,{"$f":"IF($C$2=0,\"\",IF(ISERROR(VLOOKUP($C$2&\"-\"&$B83,'BD Seq Op'!$C:$H,2,FALSE)),\"\",VLOOKUP($C$2&\"-\"&$B83,'BD Seq Op'!$C:$H,2,FALSE)))","v":""},null,null,{"$f":"IF($C$2=0,\"\",IF(ISERROR(VLOOKUP($C$2&\"-\"&$B83,'BD Seq Op'!$C:$H,5,FALSE)),\"\",VLOOKUP($C$2&\"-\"&$B83,'BD Seq Op'!$C:$H,5,FALSE)))","v":""}]
["Não",79,{"$f":"IF($C$2=0,\"\",IF(ISERROR(VLOOKUP($C$2&\"-\"&$B84,'BD Seq Op'!$C:$H,2,FALSE)),\"\",VLOOKUP($C$2&\"-\"&$B84,'BD Seq Op'!$C:$H,2,FALSE)))","v":""},null,null,{"$f":"IF($C$2=0,\"\",IF(ISERROR(VLOOKUP($C$2&\"-\"&$B84,'BD Seq Op'!$C:$H,5,FALSE)),\"\",VLOOKUP($C$2&\"-\"&$B84,'BD Seq Op'!$C:$H,5,FALSE)))","v":""}]
["Não",80,{"$f":"IF($C$2=0,\"\",IF(ISERROR(VLOOKUP($C$2&\"-\"&$B85,'BD Seq Op'!$C:$H,2,FALSE)),\"\",VLOOKUP($C$2&\"-\"&$B85,'BD Seq Op'!$C:$H,2,FALSE)))","v":""},null,null,{"$f":"IF($C$2=0,\"\",IF(ISERROR(VLOOKUP($C$2&\"-\"&$B85,'BD Seq Op'!$C:$H,5,FALSE)),\"\",VLOOKUP($C$2&\"-\"&$B85,'BD Seq Op'!$C:$H,5,FALSE)))","v":""}]
["Não",81,{"$f":"IF($C$2=0,\"\",IF(ISERROR(VLOOKUP($C$2&\"-\"&$B86,'BD Seq Op'!$C:$H,2,FALSE)),\"\",VLOOKUP($C$2&\"-\"&$B86,'BD Seq Op'!$C:$H,2,FALSE)))","v":""},null,null,{"$f":"IF($C$2=0,\"\",IF(ISERROR(VLOOKUP($C$2&\"-\"&$B86,'BD Seq Op'!$C:$H,5,FALSE)),\"\",VLOOKUP($C$2&\"-\"&$B86,'BD Seq Op'!$C:$H,5,FALSE)))","v":""}]
["Não",82,{"$f":"IF($C$2=0,\"\",IF(ISERROR(VLOOKUP($C$2&\"-\"&$B87,'BD Seq Op'!$C:$H,2,FALSE)),\"\",VLOOKUP($C$2&\"-\"&$B87,'BD Seq Op'!$C:$H,2,FALSE)))","v":""},null,null,{"$f":"IF($C$2=0,\"\",IF(ISERROR(VLOOKUP($C$2&\"-\"&$B87,'BD Seq Op'!$C:$H,5,FALSE)),\"\",VLOOKUP($C$2&\"-\"&$B87,'BD Seq Op'!$C:$H,5,FALSE)))","v":""}]
["Não",83,{"$f":"IF($C$2=0,\"\",IF(ISERROR(VLOOKUP($C$2&\"-\"&$B88,'BD Seq Op'!$C:$H,2,FALSE)),\"\",VLOOKUP($C$2&\"-\"&$B88,'BD Seq Op'!$C:$H,2,FALSE)))","v":""},null,null,{"$f":"IF($C$2=0,\"\",IF(ISERROR(VLOOKUP($C$2&\"-\"&$B88,'BD Seq Op'!$C:$H,5,FALSE)),\"\",VLOOKUP($C$2&\"-\"&$B88,'BD Seq Op'!$C:$H,5,FALSE)))","v":""}]
["Não",84,{"$f":"IF($C$2=0,\"\",IF(ISERROR(VLOOKUP($C$2&\"-\"&$B89,'BD Seq Op'!$C:$H,2,FALSE)),\"\",VLOOKUP($C$2&\"-\"&$B89,'BD Seq Op'!$C:$H,2,FALSE)))","v":""},null,null,{"$f":"IF($C$2=0,\"\",IF(ISERROR(VLOOKUP($C$2&\"-\"&$B89,'BD Seq Op'!$C:$H,5,FALSE)),\"\",VLOOKUP($C$2&\"-\"&$B89,'BD Seq Op'!$C:$H,5,FALSE)))","v":""}]
["Não",85,{"$f":"IF($C$2=0,\"\",IF(ISERROR(VLOOKUP($C$2&\"-\"&$B90,'BD Seq Op'!$C:$H,2,FALSE)),\"\",VLOOKUP($C$2&\"-\"&$B90,'BD Seq Op'!$C:$H,2,FALSE)))","v":""},null,null,{"$f":"IF($C$2=0,\"\",IF(ISERROR(VLOOKUP($C$2&\"-\"&$B90,'BD Seq Op'!$C:$H,5,FALSE)),\"\",VLOOKUP($C$2&\"-\"&$B90,'BD Seq Op'!$C:$H,5,FALSE)))","v":""}]
["Não",86,{"$f":"IF($C$2=0,\"\",IF(ISERROR(VLOOKUP($C$2&\"-\"&$B91,'BD Seq Op'!$C:$H,2,FALSE)),\"\",VLOOKUP($C$2&\"-\"&$B91,'BD Seq Op'!$C:$H,2,FALSE)))","v":""},null,null,{"$f":"IF($C$2=0,\"\",IF(ISERROR(VLOOKUP($C$2&\"-\"&$B91,'BD Seq Op'!$C:$H,5,FALSE)),\"\",VLOOKUP($C$2&\"-\"&$B91,'BD Seq Op'!$C:$H,5,FALSE)))","v":""}]
["Não",87,{"$f":"IF($C$2=0,\"\",IF(ISERROR(VLOOKUP($C$2&\"-\"&$B92,'BD Seq Op'!$C:$H,2,FALSE)),\"\",VLOOKUP($C$2&\"-\"&$B92,'BD Seq Op'!$C:$H,2,FALSE)))","v":""},null,null,{"$f":"IF($C$2=0,\"\",IF(ISERROR(VLOOKUP($C$2&\"-\"&$B92,'BD Seq Op'!$C:$H,5,FALSE)),\"\",VLOOKUP($C$2&\"-\"&$B92,'BD Seq Op'!$C:$H,5,FALSE)))","v":""}]
["Não",88,{"$f":"IF($C$2=0,\"\",IF(ISERROR(VLOOKUP($C$2&\"-\"&$B93,'BD Seq Op'!$C:$H,2,FALSE)),\"\",VLOOKUP($C$2&\"-\"&$B93,'BD Seq Op'!$C:$H,2,FALSE)))","v":""},null,null,{"$f":"IF($C$2=0,\"\",IF(ISERROR(VLOOKUP($C$2&\"-\"&$B93,'BD Seq Op'!$C:$H,5,FALSE)),\"\",VLOOKUP($C$2&\"-\"&$B93,'BD Seq Op'!$C:$H,5,FALSE)))","v":""}]
["Não",89,{"$f":"IF($C$2=0,\"\",IF(ISERROR(VLOOKUP($C$2&\"-\"&$B94,'BD Seq Op'!$C:$H,2,FALSE)),\"\",VLOOKUP($C$2&\"-\"&$B94,'BD Seq Op'!$C:$H,2,FALSE)))","v":""},null,null,{"$f":"IF($C$2=0,\"\",IF(ISERROR(VLOOKUP($C$2&\"-\"&$B94,'BD Seq Op'!$C:$H,5,FALSE)),\"\",VLOOKUP($C$2&\"-\"&$B94,'BD Seq Op'!$C:$H,5,FALSE)))","v":""}]
["Não",90,{"$f":"IF($C$2=0,\"\",IF(ISERROR(VLOOKUP($C$2&\"-\"&$B95,'BD Seq Op'!$C:$H,2,FALSE)),\"\",VLOOKUP($C$2&\"-\"&$B95,'BD Seq Op'!$C:$H,2,FALSE)))","v":""},null,null,{"$f":"IF($C$2=0,\"\",IF(ISERROR(VLOOKUP($C$2&\"-\"&$B95,'BD Seq Op'!$C:$H,5,FALSE)),\"\",VLOOKUP($C$2&\"-\"&$B95,'BD Seq Op'!$C:$H,5,FALSE)))","v":""}]
["Não",91,{"$f":"IF($C$2=0,\"\",IF(ISERROR(VLOOKUP($C$2&\"-\"&$B96,'BD Seq Op'!$C:$H,2,FALSE)),\"\",VLOOKUP($C$2&\"-\"&$B96,'BD Seq Op'!$C:$H,2,FALSE)))","v":""},null,null,{"$f":"IF($C$2=0,\"\",IF(ISERROR(VLOOKUP($C$2&\"-\"&$B96,'BD Seq Op'!$C:$H,5,FALSE)),\"\",VLOOKUP($C$2&\"-\"&$B96,'BD Seq Op'!$C:$H,5,FALSE)))","v":""}]
["Não",92,{"$f":"IF($C$2=0,\"\",IF(ISERROR(VLOOKUP($C$2&\"-\"&$B97,'BD Seq Op'!$C:$H,2,FALSE)),\"\",VLOOKUP($C$2&\"-\"&$B97,'BD Seq Op'!$C:$H,2,FALSE)))","v":""},null,null,{"$f":"IF($C$2=0,\"\",IF(ISERROR(VLOOKUP($C$2&\"-\"&$B97,'BD Seq Op'!$C:$H,5,FALSE)),\"\",VLOOKUP($C$2&\"-\"&$B97,'BD Seq Op'!$C:$H,5,FALSE)))","v":""}]
["Não",93,{"$f":"IF($C$2=0,\"\",IF(ISERROR(VLOOKUP($C$2&\"-\"&$B98,'BD Seq Op'!$C:$H,2,FALSE)),\"\",VLOOKUP($C$2&\"-\"&$B98,'BD Seq Op'!$C:$H,2,FALSE)))","v":""},null,null,{"$f":"IF($C$2=0,\"\",IF(ISERROR(VLOOKUP($C$2&\"-\"&$B98,'BD Seq Op'!$C:$H,5,FALSE)),\"\",VLOOKUP($C$2&\"-\"&$B98,'BD Seq Op'!$C:$H,5,FALSE)))","v":""}]
["Não",94,{"$f":"IF($C$2=0,\"\",IF(ISERROR(VLOOKUP($C$2&\"-\"&$B99,'BD Seq Op'!$C:$H,2,FALSE)),\"\",VLOOKUP($C$2&\"-\"&$B99,'BD Seq Op'!$C:$H,2,FALSE)))","v":""},null,null,{"$f":"IF($C$2=0,\"\",IF(ISERROR(VLOOKUP($C$2&\"-\"&$B99,'BD Seq Op'!$C:$H,5,FALSE)),\"\",VLOOKUP($C$2&\"-\"&$B99,'BD Seq Op'!$C:$H,5,FALSE)))","v":""}]
["Não",95,{"$f":"IF($C$2=0,\"\",IF(ISERROR(VLOOKUP($C$2&\"-\"&$B100,'BD Seq Op'!$C:$H,2,FALSE)),\"\",VLOOKUP($C$2&\"-\"&$B100,'BD Seq Op'!$C:$H,2,FALSE)))","v":""},null,null,{"$f":"IF($C$2=0,\"\",IF(ISERROR(VLOOKUP($C$2&\"-\"&$B100,'BD Seq Op'!$C:$H,5,FALSE)),\"\",VLOOKUP($C$2&\"-\"&$B100,'BD Seq Op'!$C:$H,5,FALSE)))","v":""}]
["Não",96,{"$f":"IF($C$2=0,\"\",IF(ISERROR(VLOOKUP($C$2&\"-\"&$B101,'BD Seq Op'!$C:$H,2,FALSE)),\"\",VLOOKUP($C$2&\"-\"&$B101,'BD Seq Op'!$C:$H,2,FALSE)))","v":""},null,null,{"$f":"IF($C$2=0,\"\",IF(ISERROR(VLOOKUP($C$2&\"-\"&$B101,'BD Seq Op'!$C:$H,5,FALSE)),\"\",VLOOKUP($C$2&\"-\"&$B101,'BD Seq Op'!$C:$H,5,FALSE)))","v":""}]
["Não",97,{"$f":"IF($C$2=0,\"\",IF(ISERROR(VLOOKUP($C$2&\"-\"&$B102,'BD Seq Op'!$C:$H,2,FALSE)),\"\",VLOOKUP($C$2&\"-\"&$B102,'BD Seq Op'!$C:$H,2,FALSE)))","v":""},null,null,{"$f":"IF($C$2=0,\"\",IF(ISERROR(VLOOKUP($C$2&\"-\"&$B102,'BD Seq Op'!$C:$H,5,FALSE)),\"\",VLOOKUP($C$2&\"-\"&$B102,'BD Seq Op'!$C:$H,5,FALSE)))","v":""}]
["Não",98,{"$f":"IF($C$2=0,\"\",IF(ISERROR(VLOOKUP($C$2&\"-\"&$B103,'BD Seq Op'!$C:$H,2,FALSE)),\"\",VLOOKUP($C$2&\"-\"&$B103,'BD Seq Op'!$C:$H,2,FALSE)))","v":""},null,null,{"$f":"IF($C$2=0,\"\",IF(ISERROR(VLOOKUP($C$2&\"-\"&$B103,'BD Seq Op'!$C:$H,5,FALSE)),\"\",VLOOKUP($C$2&\"-\"&$B103,'BD Seq Op'!$C:$H,5,FALSE)))","v":""}]
["Não",99,{"$f":"IF($C$2=0,\"\",IF(ISERROR(VLOOKUP($C$2&\"-\"&$B104,'BD Seq Op'!$C:$H,2,FALSE)),\"\",VLOOKUP($C$2&\"-\"&$B104,'BD Seq Op'!$C:$H,2,FALSE)))","v":""},null,null,{"$f":"IF($C$2=0,\"\",IF(ISERROR(VLOOKUP($C$2&\"-\"&$B104,'BD Seq Op'!$C:$H,5,FALSE)),\"\",VLOOKUP($C$2&\"-\"&$B104,'BD Seq Op'!$C:$H,5,FALSE)))","v":""}]
["Não",100,{"$f":"IF($C$2=0,\"\",IF(ISERROR(VLOOKUP($C$2&\"-\"&$B105,'BD Seq Op'!$C:$H,2,FALSE)),\"\",VLOOKUP($C$2&\"-\"&$B105,'BD Seq Op'!$C:$H,2,FALSE)))","v":""},null,null,{"$f":"IF($C$2=0,\"\",IF(ISERROR(VLOOKUP($C$2&\"-\"&$B105,'BD Seq Op'!$C:$H,5,FALSE)),\"\",VLOOKUP($C$2&\"-\"&$B105,'BD Seq Op'!$C:$H,5,FALSE)))","v":""}]
["Não",101,{"$f":"IF($C$2=0,\"\",IF(ISERROR(VLOOKUP($C$2&\"-\"&$B106,'BD Seq Op'!$C:$H,2,FALSE)),\"\",VLOOKUP($C$2&\"-\"&$B106,'BD Seq Op'!$C:$H,2,FALSE)))","v":""},null,null,{"$f":"IF($C$2=0,\"\",IF(ISERROR(VLOOKUP($C$2&\"-\"&$B106,'BD Seq Op'!$C:$H,5,FALSE)),\"\",VLOOKUP($C$2&\"-\"&$B106,'BD Seq Op'!$C:$H,5,FALSE)))","v":""}]
["Não",102,{"$f":"IF($C$2=0,\"\",IF(ISERROR(VLOOKUP($C$2&\"-\"&$B107,'BD Seq Op'!$C:$H,2,FALSE)),\"\",VLOOKUP($C$2&\"-\"&$B107,'BD Seq Op'!$C:$H,2,FALSE)))","v":""},null,null,{"$f":"IF($C$2=0,\"\",IF(ISERROR(VLOOKUP($C$2&\"-\"&$B107,'BD Seq Op'!$C:$H,5,FALSE)),\"\",VLOOKUP($C$2&\"-\"&$B107,'BD Seq Op'!$C:$H,5,FALSE)))","v":""}]
["Não",103,{"$f":"IF($C$2=0,\"\",IF(ISERROR(VLOOKUP($C$2&\"-\"&$B108,'BD Seq Op'!$C:$H,2,FALSE)),\"\",VLOOKUP($C$2&\"-\"&$B108,'BD Seq Op'!$C:$H,2,FALSE)))","v":""},null,null,{"$f":"IF($C$2=0,\"\",IF(ISERROR(VLOOKUP($C$2&\"-\"&$B108,'BD Seq Op'!$C:$H,5,FALSE)),\"\",VLOOKUP($C$2&\"-\"&$B108,'BD Seq Op'!$C:$H,5,FALSE)))","v":""}]
["Não",104,{"$f":"IF($C$2=0,\"\",IF(ISERROR(VLOOKUP($C$2&\"-\"&$B109,'BD Seq Op'!$C:$H,2,FALSE)),\"\",VLOOKUP($C$2&\"-\"&$B109,'BD Seq Op'!$C:$H,2,FALSE)))","v":""},null,null,{"$f":"IF($C$2=0,\"\",IF(ISERROR(VLOOKUP($C$2&\"-\"&$B109,'BD Seq Op'!$C:$H,5,FALSE)),\"\",VLOOKUP($C$2&\"-\"&$B109,'BD Seq Op'!$C:$H,5,FALSE)))","v":""}]
["Não",105,{"$f":"IF($C$2=0,\"\",IF(ISERROR(VLOOKUP($C$2&\"-\"&$B110,'BD Seq Op'!$C:$H,2,FALSE)),\"\",VLOOKUP($C$2&\"-\"&$B110,'BD Seq Op'!$C:$H,2,FALSE)))","v":""},null,null,{"$f":"IF($C$2=0,\"\",IF(ISERROR(VLOOKUP($C$2&\"-\"&$B110,'BD Seq Op'!$C:$H,5,FALSE)),\"\",VLOOKUP($C$2&\"-\"&$B110,'BD Seq Op'!$C:$H,5,FALSE)))","v":""}]
["Não",106,{"$f":"IF($C$2=0,\"\",IF(ISERROR(VLOOKUP($C$2&\"-\"&$B111,'BD Seq Op'!$C:$H,2,FALSE)),\"\",VLOOKUP($C$2&\"-\"&$B111,'BD Seq Op'!$C:$H,2,FALSE)))","v":""},null,null,{"$f":"IF($C$2=0,\"\",IF(ISERROR(VLOOKUP($C$2&\"-\"&$B111,'BD Seq Op'!$C:$H,5,FALSE)),\"\",VLOOKUP($C$2&\"-\"&$B111,'BD Seq Op'!$C:$H,5,FALSE)))","v":""}]
["Não",107,{"$f":"IF($C$2=0,\"\",IF(ISERROR(VLOOKUP($C$2&\"-\"&$B112,'BD Seq Op'!$C:$H,2,FALSE)),\"\",VLOOKUP($C$2&\"-\"&$B112,'BD Seq Op'!$C:$H,2,FALSE)))","v":""},null,null,{"$f":"IF($C$2=0,\"\",IF(ISERROR(VLOOKUP($C$2&\"-\"&$B112,'BD Seq Op'!$C:$H,5,FALSE)),\"\",VLOOKUP($C$2&\"-\"&$B112,'BD Seq Op'!$C:$H,5,FALSE)))","v":""}]
["Não",108,{"$f":"IF($C$2=0,\"\",IF(ISERROR(VLOOKUP($C$2&\"-\"&$B113,'BD Seq Op'!$C:$H,2,FALSE)),\"\",VLOOKUP($C$2&\"-\"&$B113,'BD Seq Op'!$C:$H,2,FALSE)))","v":""},null,null,{"$f":"IF($C$2=0,\"\",IF(ISERROR(VLOOKUP($C$2&\"-\"&$B113,'BD Seq Op'!$C:$H,5,FALSE)),\"\",VLOOKUP($C$2&\"-\"&$B113,'BD Seq Op'!$C:$H,5,FALSE)))","v":""}]
["Não",109,{"$f":"IF($C$2=0,\"\",IF(ISERROR(VLOOKUP($C$2&\"-\"&$B114,'BD Seq Op'!$C:$H,2,FALSE)),\"\",VLOOKUP($C$2&\"-\"&$B114,'BD Seq Op'!$C:$H,2,FALSE)))","v":""},null,null,{"$f":"IF($C$2=0,\"\",IF(ISERROR(VLOOKUP($C$2&\"-\"&$B114,'BD Seq Op'!$C:$H,5,FALSE)),\"\",VLOOKUP($C$2&\"-\"&$B114,'BD Seq Op'!$C:$H,5,FALSE)))","v":""}]
["Não",110,{"$f":"IF($C$2=0,\"\",IF(ISERROR(VLOOKUP($C$2&\"-\"&$B115,'BD Seq Op'!$C:$H,2,FALSE)),\"\",VLOOKUP($C$2&\"-\"&$B115,'BD Seq Op'!$C:$H,2,FALSE)))","v":""},null,null,{"$f":"IF($C$2=0,\"\",IF(ISERROR(VLOOKUP($C$2&\"-\"&$B115,'BD Seq Op'!$C:$H,5,FALSE)),\"\",VLOOKUP($C$2&\"-\"&$B115,'BD Seq Op'!$C:$H,5,FALSE)))","v":""}]
["Não",111,{"$f":"IF($C$2=0,\"\",IF(ISERROR(VLOOKUP($C$2&\"-\"&$B116,'BD Seq Op'!$C:$H,2,FALSE)),\"\",VLOOKUP($C$2&\"-\"&$B116,'BD Seq Op'!$C:$H,2,FALSE)))","v":""},null,null,{"$f":"IF($C$2=0,\"\",IF(ISERROR(VLOOKUP($C$2&\"-\"&$B116,'BD Seq Op'!$C:$H,5,FALSE)),\"\",VLOOKUP($C$2&\"-\"&$B116,'BD Seq Op'!$C:$H,5,FALSE)))","v":""}]
["Não",112,{"$f":"IF($C$2=0,\"\",IF(ISERROR(VLOOKUP($C$2&\"-\"&$B117,'BD Seq Op'!$C:$H,2,FALSE)),\"\",VLOOKUP($C$2&\"-\"&$B117,'BD Seq Op'!$C:$H,2,FALSE)))","v":""},null,null,{"$f":"IF($C$2=0,\"\",IF(ISERROR(VLOOKUP($C$2&\"-\"&$B117,'BD Seq Op'!$C:$H,5,FALSE)),\"\",VLOOKUP($C$2&\"-\"&$B117,'BD Seq Op'!$C:$H,5,FALSE)))","v":""}]
["Não",113,{"$f":"IF($C$2=0,\"\",IF(ISERROR(VLOOKUP($C$2&\"-\"&$B118,'BD Seq Op'!$C:$H,2,FALSE)),\"\",VLOOKUP($C$2&\"-\"&$B118,'BD Seq Op'!$C:$H,2,FALSE)))","v":""},null,null,{"$f":"IF($C$2=0,\"\",IF(ISERROR(VLOOKUP($C$2&\"-\"&$B118,'BD Seq Op'!$C:$H,5,FALSE)),\"\",VLOOKUP($C$2&\"-\"&$B118,'BD Seq Op'!$C:$H,5,FALSE)))","v":""}]
["Não",114,{"$f":"IF($C$2=0,\"\",IF(ISERROR(VLOOKUP($C$2&\"-\"&$B119,'BD Seq Op'!$C:$H,2,FALSE)),\"\",VLOOKUP($C$2&\"-\"&$B119,'BD Seq Op'!$C:$H,2,FALSE)))","v":""},null,null,{"$f":"IF($C$2=0,\"\",IF(ISERROR(VLOOKUP($C$2&\"-\"&$B119,'BD Seq Op'!$C:$H,5,FALSE)),\"\",VLOOKUP($C$2&\"-\"&$B119,'BD Seq Op'!$C:$H,5,FALSE)))","v":""}]
["Não",115,{"$f":"IF($C$2=0,\"\",IF(ISERROR(VLOOKUP($C$2&\"-\"&$B120,'BD Seq Op'!$C:$H,2,FALSE)),\"\",VLOOKUP($C$2&\"-\"&$B120,'BD Seq Op'!$C:$H,2,FALSE)))","v":""},null,null,{"$f":"IF($C$2=0,\"\",IF(ISERROR(VLOOKUP($C$2&\"-\"&$B120,'BD Seq Op'!$C:$H,5,FALSE)),\"\",VLOOKUP($C$2&\"-\"&$B120,'BD Seq Op'!$C:$H,5,FALSE)))","v":""}]
["Não",116,{"$f":"IF($C$2=0,\"\",IF(ISERROR(VLOOKUP($C$2&\"-\"&$B121,'BD Seq Op'!$C:$H,2,FALSE)),\"\",VLOOKUP($C$2&\"-\"&$B121,'BD Seq Op'!$C:$H,2,FALSE)))","v":""},null,null,{"$f":"IF($C$2=0,\"\",IF(ISERROR(VLOOKUP($C$2&\"-\"&$B121,'BD Seq Op'!$C:$H,5,FALSE)),\"\",VLOOKUP($C$2&\"-\"&$B121,'BD Seq Op'!$C:$H,5,FALSE)))","v":""}]
["Não",117,{"$f":"IF($C$2=0,\"\",IF(ISERROR(VLOOKUP($C$2&\"-\"&$B122,'BD Seq Op'!$C:$H,2,FALSE)),\"\",VLOOKUP($C$2&\"-\"&$B122,'BD Seq Op'!$C:$H,2,FALSE)))","v":""},null,null,{"$f":"IF($C$2=0,\"\",IF(ISERROR(VLOOKUP($C$2&\"-\"&$B122,'BD Seq Op'!$C:$H,5,FALSE)),\"\",VLOOKUP($C$2&\"-\"&$B122,'BD Seq Op'!$C:$H,5,FALSE)))","v":""}]
["Não",118,{"$f":"IF($C$2=0,\"\",IF(ISERROR(VLOOKUP($C$2&\"-\"&$B123,'BD Seq Op'!$C:$H,2,FALSE)),\"\",VLOOKUP($C$2&\"-\"&$B123,'BD Seq Op'!$C:$H,2,FALSE)))","v":""},null,null,{"$f":"IF($C$2=0,\"\",IF(ISERROR(VLOOKUP($C$2&\"-\"&$B123,'BD Seq Op'!$C:$H,5,FALSE)),\"\",VLOOKUP($C$2&\"-\"&$B123,'BD Seq Op'!$C:$H,5,FALSE)))","v":""}]
["Não",119,{"$f":"IF($C$2=0,\"\",IF(ISERROR(VLOOKUP($C$2&\"-\"&$B124,'BD Seq Op'!$C:$H,2,FALSE)),\"\",VLOOKUP($C$2&\"-\"&$B124,'BD Seq Op'!$C:$H,2,FALSE)))","v":""},null,null,{"$f":"IF($C$2=0,\"\",IF(ISERROR(VLOOKUP($C$2&\"-\"&$B124,'BD Seq Op'!$C:$H,5,FALSE)),\"\",VLOOKUP($C$2&\"-\"&$B124,'BD Seq Op'!$C:$H,5,FALSE)))","v":""}]
["Não",120,{"$f":"IF($C$2=0,\"\",IF(ISERROR(VLOOKUP($C$2&\"-\"&$B125,'BD Seq Op'!$C:$H,2,FALSE)),\"\",VLOOKUP($C$2&\"-\"&$B125,'BD Seq Op'!$C:$H,2,FALSE)))","v":""},null,null,{"$f":"IF($C$2=0,\"\",IF(ISERROR(VLOOKUP($C$2&\"-\"&$B125,'BD Seq Op'!$C:$H,5,FALSE)),\"\",VLOOKUP($C$2&\"-\"&$B125,'BD Seq Op'!$C:$H,5,FALSE)))","v":""}]
["Sim",null,null,null,"Tempo Total =>",{"$f":"SUM(F6:F125)","v":0}]
[]
[]
[]
[null,null,null,{"$f":"IF(C130=0,\"\",IF(ISERROR(VLOOKUP(C130,Operações!A:D,2,FALSE)),\"-\",VLOOKUP(C130,Operações!A:D,2,FALSE)))","v":""},{"$f":"IF(C130=0,\"\",IF(ISERROR(VLOOKUP(C130,Operações!A:D,3,FALSE)),\"-\",VLOOKUP(C130,Operações!A:D,3,FALSE)))","v":""},{"$f":"IF(C130=0,\"\",IF(ISERROR(VLOOKUP(C130,Operações!A:D,4,FALSE)),\"-\",VLOOKUP(C130,Operações!A:D,4,FALSE)))","v":""}]

{"sheet":"BD Seq Op","index":4,"n_rows":21,"n_cols":10,"rows_kept":21,"cut":false,"hidden":false,"merged":[]}
["Seq.   .","Ref.","Concatenar","Descrição das Operações","Tipo\nMáq.","Tipo\nApar.","Tempo\nPadrão","Data do\nCadastro","Somase\nMáquina","Somase\nAparelho"]
[1,10000,{"$f":"CONCATENATE(B2,\"-\",A2)","v":"10000-1"},"Bainha 2 ag. mangas",null,null,0.39,"2016-09-15",{"$f":"IF(E2=0,0,CONCATENATE(B2,\"-\",E2))","v":0},{"$f":"IF(F2=0,0,CONCATENATE(B2,\"-\",F2))","v":0}]
[2,10000,"10000-2","Separar mangas c/ tesoura",null,null,0.1,"2016-09-15",0,0]
[3,10000,"10000-3","Fechar ombros e laterais",null,null,0.75,"2016-09-15",0,0]
[4,10000,"10000-4","Fechar ribana decote e pregar",null,null,0.5,"2016-09-15",0,0]
[5,10000,"10000-5","Rematar mangas",null,null,0.8,"2016-09-15",0,0]
[6,10000,"10000-6","Pregar mangas fechada",null,null,0.7,"2016-09-15",0,0]
[7,10000,"10000-7","Bainha 2 ag. barra",null,null,0.47,"2016-09-15",0,0]
[8,10000,"10000-8","Revisar e limpar fios",null,null,1.1000000000000001,"2016-09-15",0,0]
[9,10000,"10000-9","Colocar tag na peça",null,null,0.16,"2016-09-15",0,0]
[10,10000,"10000-10","Dobrar peça e embalar",null,null,0.41,"2016-09-15",0,0]
[1,10150,"10150-1","Fazer bainha mangas",null,null,0.95,"2016-08-27",0,0]
[2,10150,"10150-2","Fechar ombros",null,null,0.42,"2016-08-27",0,0]
[3,10150,"10150-3","Fechar laterais c/ etiq",null,null,0.65,"2016-08-27",0,0]
[4,10150,"10150-4","Fechar/pregar mangas tubular",null,null,1.85,"2016-08-27",0,0]
[5,10150,"10150-5","Fechar/pregar ribana decote",null,null,1.25,"2016-08-27",0,0]
[6,10150,"10150-6","Pregar etiqueta decote",null,null,0.45,"2016-08-27",0,0]
[7,10150,"10150-7","Fazer bainha barra",null,null,0.6,"2016-08-27",0,0]
[8,10150,"10150-8","Limpar fios",null,null,0.98,"2016-08-27",0,0]
[9,10150,"10150-9","Revisar",null,null,0.8,"2016-08-27",0,0]
[10,10150,"10150-10","Dobrar peça e embalar",null,null,0.45,"2016-08-27",0,0]

{"sheet":"Ficha Acompanhamento","index":5,"n_rows":129,"n_cols":31,"rows_kept":129,"cut":false,"hidden":false,"merged":[[0,6,0,8],[5,1,5,4],[0,13,0,14]]}
[null,null,null,null,null,null,{"$f":"IF(U1=TRUE,\"Tempo para Produzir\",\"\")","v":""},null,null,null,null,0.1,"Cor :",null,null,null,null,null,null,null,false]
[null,null,null,null,null,null,{"$f":"IF(U1=TRUE,\"Operador(a)\",\"\")","v":""},{"$f":"IF(U1=TRUE,\"Dias\",\"\")","v":""},{"$f":"IF(U1=TRUE,\"+ Horas\",\"\")","v":""},null,"Qtde Peças :",null,"Tam. :",null,null,null,null,null,null,null,false]
[null,null,null,null,null,null,{"$f":"IF(U1=TRUE,L5,\"\")","v":""},{"$f":"IF(G3=\"\",\"\",IF(OR(L5=0,M5=0),0,V5))","v":""},{"$f":"IF(G3=\"\",\"\",AB5)","v":""}]
[null,null,null,null,null,null,null,null,null,null,"Total Min.","Operador(a)","Min./dia","Dias","+ Horas","Qtde peças"]
[null,null,null,null,null,null,null,null,null,null,{"$f":"F129","v":6720},null,null,{"$f":"V5","v":0},{"$f":"AB5","v":"0:00"},null,null,null,null,null,{"$f":"IF(OR(L5=0,M5=0),0,K5/(L5*M5))","v":0},{"$f":"ROUNDDOWN(U5,0)","v":0},{"$f":"U5-V5","v":0},{"$f":"(W5*M5)/60","v":0},{"$f":"ROUNDDOWN(X5,0)","v":0},{"$f":"(X5-Y5)*60","v":0},{"$f":"ROUNDDOWN(Z5,0)","v":0},{"$f":"IF(AA5<10,Y5&\":0\"&AA5,Y5&\":\"&AA5)","v":"0:00"}]
[null,{"$f":"S18","v":"                                             ***   CLIENTE ESPECIAL   ***\n*** Verificar instruções das etiquetas conforme ficha técnica ***"},null,null,null,null,null,null,null,null,null,null,null,null,null,{"$f":"IF(AND(P5=0,U1=TRUE),\"Informe a qtde de peças.\",\"\")","v":""}]
["Filtro","Seq.","Descrição das operações","Tempo\nPadrão","Pçs/h\n100%","Código\nCostureira","Código\nCostureira","Qtde\nPeças","Tempo /\nPacote"]
["Sim","Seq.","Descrição das Operações","Tempo\nPadrão","Pçs/h\n100%","Código\nOperador(a)","Código\nOperador(a)","Qtde\nPeças","Tempo /\nPacote"]
[{"$f":"IF(C9=0,\"Não\",\"Sim\")","v":"Sim"},1,{"$f":"IF($L$1=0,0,IF(ISERROR(VLOOKUP($U$11&\"-\"&B9,'BD Seq Op'!C:H,2,FALSE)),0,VLOOKUP($U$11&\"-\"&B9,'BD Seq Op'!C:H,2,FALSE)))","v":"Fazer bainha mangas"},{"$f":"IF($L$1=0,0,IF(ISERROR(VLOOKUP($U$11&\"-\"&B9,'BD Seq Op'!C:H,5,FALSE)),0,VLOOKUP($U$11&\"-\"&B9,'BD Seq Op'!C:H,5,FALSE)))","v":0.95},{"$f":"IF(C9=0,\"\",IF($U$1=TRUE,(60*$L$5)/D9,60/D9))","v":63.15789473684211},null,null,{"$f":"IF(C9=0,\"\",IF($U$1=TRUE,$P$5,IF($L$2=0,$V$15,$L$2)))","v":800},{"$f":"IF(C9=0,\"\",IF(AE9=TRUE,0,D9*H9))","v":760},null,null,null,null,null,null,null,null,"Nº OP :  ",{"$f":"IF(L1=0,\"\",CONCATENATE(R9,U9))","v":"Nº OP :  0,1"},null,{"$f":"IF(L1=0,\"\",L1)","v":0.1},null,null,null,null,null,null,null,null,null,false]
[{"$f":"IF(C10=0,\"Não\",\"Sim\")","v":"Sim"},2,{"$f":"IF($L$1=0,0,IF(ISERROR(VLOOKUP($U$11&\"-\"&B10,'BD Seq Op'!C:H,2,FALSE)),0,VLOOKUP($U$11&\"-\"&B10,'BD Seq Op'!C:H,2,FALSE)))","v":"Fechar ombros"},{"$f":"IF($L$1=0,0,IF(ISERROR(VLOOKUP($U$11&\"-\"&B10,'BD Seq Op'!C:H,5,FALSE)),0,VLOOKUP($U$11&\"-\"&B10,'BD Seq Op'!C:H,5,FALSE)))","v":0.42},142.85714285714286,null,null,{"$f":"IF(C10=0,\"\",IF($U$1=TRUE,$P$5,IF($L$2=0,$V$15,$L$2)))","v":800},{"$f":"IF(C10=0,\"\",IF(AE10=TRUE,0,D10*H10))","v":336},null,null,null,null,null,null,null,null,"Data Emissão : ",{"$f":"IF(L1=0,\"\",IF(U10=0,R10,CONCATENATE(R10,TEXT(U10,\"dd/mm/aaaa\"))))","v":"Data Emissão : 05/09/2016"},null,{"$f":"IF($L$1=0,\"\",IF(ISERROR(VLOOKUP($L$1,'BD da OP'!$A:$AC,3,FALSE)),\"\",VLOOKUP($L$1,'BD da OP'!$A:$AC,3,FALSE)))","v":"2016-09-05"},null,null,null,null,null,null,null,null,null,false]
["Sim",3,{"$f":"IF($L$1=0,0,IF(ISERROR(VLOOKUP($U$11&\"-\"&B11,'BD Seq Op'!C:H,2,FALSE)),0,VLOOKUP($U$11&\"-\"&B11,'BD Seq Op'!C:H,2,FALSE)))","v":"Fechar laterais c/ etiq"},{"$f":"IF($L$1=0,0,IF(ISERROR(VLOOKUP($U$11&\"-\"&B11,'BD Seq Op'!C:H,5,FALSE)),0,VLOOKUP($U$11&\"-\"&B11,'BD Seq Op'!C:H,5,FALSE)))","v":0.65},92.307692307692307,null,null,800,520,null,null,null,null,null,null,null,null,"Ref. : ",{"$f":"IF(L1=0,\"\",CONCATENATE(R11,U11))","v":"Ref. : 10150"},null,{"$f":"IF($L$1=0,\"\",IF(ISERROR(VLOOKUP($L$1,'BD da OP'!$A:$AC,4,FALSE)),\"\",VLOOKUP($L$1,'BD da OP'!$A:$AC,4,FALSE)))","v":10150},null,null,null,null,null,null,null,null,null,false]
["Sim",4,{"$f":"IF($L$1=0,0,IF(ISERROR(VLOOKUP($U$11&\"-\"&B12,'BD Seq Op'!C:H,2,FALSE)),0,VLOOKUP($U$11&\"-\"&B12,'BD Seq Op'!C:H,2,FALSE)))","v":"Fechar/pregar mangas tubular"},{"$f":"IF($L$1=0,0,IF(ISERROR(VLOOKUP($U$11&\"-\"&B12,'BD Seq Op'!C:H,5,FALSE)),0,VLOOKUP($U$11&\"-\"&B12,'BD Seq Op'!C:H,5,FALSE)))","v":1.85},32.432432432432428,null,null,800,1480,null,null,null,null,null,null,null,null,"Descr. Ref. :",{"$f":"U12","v":"Camiseta com estampa na frente"},null,{"$f":"IF($L$1=0,\"\",IF(ISERROR(VLOOKUP(U11,Ref!A:B,2,FALSE)),\"\",VLOOKUP(U11,Ref!A:B,2,FALSE)))","v":"Camiseta com estampa na frente"},null,null,null,null,null,null,null,null,null,false]
["Sim",5,{"$f":"IF($L$1=0,0,IF(ISERROR(VLOOKUP($U$11&\"-\"&B13,'BD Seq Op'!C:H,2,FALSE)),0,VLOOKUP($U$11&\"-\"&B13,'BD Seq Op'!C:H,2,FALSE)))","v":"Fechar/pregar ribana decote"},{"$f":"IF($L$1=0,0,IF(ISERROR(VLOOKUP($U$11&\"-\"&B13,'BD Seq Op'!C:H,5,FALSE)),0,VLOOKUP($U$11&\"-\"&B13,'BD Seq Op'!C:H,5,FALSE)))","v":1.25},48,null,null,800,1000,null,null,null,null,null,null,null,null,"Cor : ",{"$f":"IF(L1=0,\"\",IF(U2=TRUE,\"\",IF(N1=0,CONCATENATE(R13,U13),CONCATENATE(R13,N1))))","v":"Cor : Branco"},null,{"$f":"IF($L$1=0,\"\",IF(ISERROR(VLOOKUP($L$1,'BD da OP'!$A:$AC,6,FALSE)),\"\",VLOOKUP($L$1,'BD da OP'!$A:$AC,6,FALSE)))","v":"Branco"},{"$f":"IF($L$1=0,\"\",IF(ISERROR(VLOOKUP($L$1,'BD da OP'!$A:$AC,7,FALSE)),\"\",VLOOKUP($L$1,'BD da OP'!$A:$AC,7,FALSE)))","v":"Laranja"},{"$f":"IF($L$1=0,\"\",IF(ISERROR(VLOOKUP($L$1,'BD da OP'!$A:$AC,8,FALSE)),\"\",VLOOKUP($L$1,'BD da OP'!$A:$AC,8,FALSE)))","v":"Marinho"},{"$f":"IF($L$1=0,\"\",IF(ISERROR(VLOOKUP($L$1,'BD da OP'!$A:$AC,9,FALSE)),\"\",VLOOKUP($L$1,'BD da OP'!$A:$AC,9,FALSE)))","v":0},{"$f":"IF($L$1=0,\"\",IF(ISERROR(VLOOKUP($L$1,'BD da OP'!$A:$AC,10,FALSE)),\"\",VLOOKUP($L$1,'BD da OP'!$A:$AC,10,FALSE)))","v":0},{"$f":"IF($L$1=0,\"\",IF(ISERROR(VLOOKUP($L$1,'BD da OP'!$A:$AC,11,FALSE)),\"\",VLOOKUP($L$1,'BD da OP'!$A:$AC,11,FALSE)))","v":0},{"$f":"IF($L$1=0,\"\",IF(ISERROR(VLOOKUP($L$1,'BD da OP'!$A:$AC,12,FALSE)),\"\",VLOOKUP($L$1,'BD da OP'!$A:$AC,12,FALSE)))","v":0},{"$f":"IF($L$1=0,\"\",IF(ISERROR(VLOOKUP($L$1,'BD da OP'!$A:$AC,13,FALSE)),\"\",VLOOKUP($L$1,'BD da OP'!$A:$AC,13,FALSE)))","v":0},{"$f":"IF($L$1=0,\"\",IF(ISERROR(VLOOKUP($L$1,'BD da OP'!$A:$AC,14,FALSE)),\"\",VLOOKUP($L$1,'BD da OP'!$A:$AC,14,FALSE)))","v":0},{"$f":"IF($L$1=0,\"\",IF(ISERROR(VLOOKUP($L$1,'BD da OP'!$A:$AC,15,FALSE)),\"\",VLOOKUP($L$1,'BD da OP'!$A:$AC,15,FALSE)))","v":0},false]
["Sim",6,{"$f":"IF($L$1=0,0,IF(ISERROR(VLOOKUP($U$11&\"-\"&B14,'BD Seq Op'!C:H,2,FALSE)),0,VLOOKUP($U$11&\"-\"&B14,'BD Seq Op'!C:H,2,FALSE)))","v":"Pregar etiqueta decote"},{"$f":"IF($L$1=0,0,IF(ISERROR(VLOOKUP($U$11&\"-\"&B14,'BD Seq Op'!C:H,5,FALSE)),0,VLOOKUP($U$11&\"-\"&B14,'BD Seq Op'!C:H,5,FALSE)))","v":0.45},133.33333333333334,null,null,800,360,null,null,null,null,null,null,null,null,"Tam. : ",{"$f":"IF(L1=0,\"\",IF(U2=TRUE,\"\",IF(N2=0,CONCATENATE(R14,UPPER(U14)),CONCATENATE(R14,UPPER(N2)))))","v":"Tam. : PP"},null,{"$f":"IF($L$1=0,\"\",IF(ISERROR(VLOOKUP($L$1,'BD da OP'!$A:$AC,16,FALSE)),\"\",VLOOKUP($L$1,'BD da OP'!$A:$AC,16,FALSE)))","v":"PP"},{"$f":"IF($L$1=0,\"\",IF(ISERROR(VLOOKUP($L$1,'BD da OP'!$A:$AC,17,FALSE)),\"\",VLOOKUP($L$1,'BD da OP'!$A:$AC,17,FALSE)))","v":"P"},{"$f":"IF($L$1=0,\"\",IF(ISERROR(VLOOKUP($L$1,'BD da OP'!$A:$AC,18,FALSE)),\"\",VLOOKUP($L$1,'BD da OP'!$A:$AC,18,FALSE)))","v":"M"},{"$f":"IF($L$1=0,\"\",IF(ISERROR(VLOOKUP($L$1,'BD da OP'!$A:$AC,19,FALSE)),\"\",VLOOKUP($L$1,'BD da OP'!$A:$AC,19,FALSE)))","v":"G"},{"$f":"IF($L$1=0,\"\",IF(ISERROR(VLOOKUP($L$1,'BD da OP'!$A:$AC,20,FALSE)),\"\",VLOOKUP($L$1,'BD da OP'!$A:$AC,20,FALSE)))","v":0},{"$f":"IF($L$1=0,\"\",IF(ISERROR(VLOOKUP($L$1,'BD da OP'!$A:$AC,21,FALSE)),\"\",VLOOKUP($L$1,'BD da OP'!$A:$AC,21,FALSE)))","v":0},{"$f":"IF($L$1=0,\"\",IF(ISERROR(VLOOKUP($L$1,'BD da OP'!$A:$AC,22,FALSE)),\"\",VLOOKUP($L$1,'BD da OP'!$A:$AC,22,FALSE)))","v":0},{"$f":"IF($L$1=0,\"\",IF(ISERROR(VLOOKUP($L$1,'BD da OP'!$A:$AC,23,FALSE)),\"\",VLOOKUP($L$1,'BD da OP'!$A:$AC,23,FALSE)))","v":0},{"$f":"IF($L$1=0,\"\",IF(ISERROR(VLOOKUP($L$1,'BD da OP'!$A:$AC,24,FALSE)),\"\",VLOOKUP($L$1,'BD da OP'!$A:$AC,24,FALSE)))","v":0},{"$f":"IF($L$1=0,\"\",IF(ISERROR(VLOOKUP($L$1,'BD da OP'!$A:$AC,25,FALSE)),\"\",VLOOKUP($L$1,'BD da OP'!$A:$AC,25,FALSE)))","v":0},false]
["Sim",7,{"$f":"IF($L$1=0,0,IF(ISERROR(VLOOKUP($U$11&\"-\"&B15,'BD Seq Op'!C:H,2,FALSE)),0,VLOOKUP($U$11&\"-\"&B15,'BD Seq Op'!C:H,2,FALSE)))","v":"Fazer bainha barra"},{"$f":"IF($L$1=0,0,IF(ISERROR(VLOOKUP($U$11&\"-\"&B15,'BD Seq Op'!C:H,5,FALSE)),0,VLOOKUP($U$11&\"-\"&B15,'BD Seq Op'!C:H,5,FALSE)))","v":0.6},100,null,null,800,480,null,null,null,null,null,null,null,null,"Qtde Peças : ",{"$f":"IF(L1=0,\"\",IF(U15<1000,CONCATENATE(R15,U15),CONCATENATE(R15,TEXT(U15,\"0.000\"))))","v":"Qtde Peças : 800"},null,{"$f":"IF(U1=TRUE,P5,IF(L2=0,V15,L2))","v":800},{"$f":"IF($L$1=0,\"\",IF(ISERROR(VLOOKUP($L$1,'BD da OP'!$A:$AC,26,FALSE)),\"\",VLOOKUP($L$1,'BD da OP'!$A:$AC,26,FALSE)))","v":800},null,null,null,null,null,null,null,null,false]
["Sim",8,{"$f":"IF($L$1=0,0,IF(ISERROR(VLOOKUP($U$11&\"-\"&B16,'BD Seq Op'!C:H,2,FALSE)),0,VLOOKUP($U$11&\"-\"&B16,'BD Seq Op'!C:H,2,FALSE)))","v":"Limpar fios"},{"$f":"IF($L$1=0,0,IF(ISERROR(VLOOKUP($U$11&\"-\"&B16,'BD Seq Op'!C:H,5,FALSE)),0,VLOOKUP($U$11&\"-\"&B16,'BD Seq Op'!C:H,5,FALSE)))","v":0.98},61.224489795918366,null,null,800,784,null,null,null,null,null,null,null,null,{"$f":"CONCATENATE(Cliente!F1,\" : \")","v":"Cliente : "},{"$f":"IF(L1=0,\"\",IF(U16=0,\"\",CONCATENATE(R16,U16)))","v":"Cliente : Magazine de Confecções Ltda."},null,{"$f":"IF($L$1=0,\"\",IF(ISERROR(VLOOKUP($L$1,'BD da OP'!$A:$AC,27,FALSE)),\"\",VLOOKUP($L$1,'BD da OP'!$A:$AC,27,FALSE)))","v":"Magazine de Confecções Ltda."},null,null,null,null,null,null,null,null,null,false]
["Sim",9,{"$f":"IF($L$1=0,0,IF(ISERROR(VLOOKUP($U$11&\"-\"&B17,'BD Seq Op'!C:H,2,FALSE)),0,VLOOKUP($U$11&\"-\"&B17,'BD Seq Op'!C:H,2,FALSE)))","v":"Revisar"},{"$f":"IF($L$1=0,0,IF(ISERROR(VLOOKUP($U$11&\"-\"&B17,'BD Seq Op'!C:H,5,FALSE)),0,VLOOKUP($U$11&\"-\"&B17,'BD Seq Op'!C:H,5,FALSE)))","v":0.8},75,null,null,800,640,null,null,null,null,null,null,null,null,"Previsão Entrega : ",{"$f":"IF(L1=0,\"\",IF(U17=0,\"Previsão Entrega : não definida\",CONCATENATE(R17,TEXT(U17,\"dd/mm/aaaa\"))))","v":"Previsão Entrega : 05/10/2016"},null,{"$f":"IF($L$1=0,\"\",IF(ISERROR(VLOOKUP($L$1,'BD da OP'!$A:$AC,28,FALSE)),\"\",VLOOKUP($L$1,'BD da OP'!$A:$AC,28,FALSE)))","v":"2016-10-05"},null,null,null,null,null,null,null,null,null,false]
["Sim",10,{"$f":"IF($L$1=0,0,IF(ISERROR(VLOOKUP($U$11&\"-\"&B18,'BD Seq Op'!C:H,2,FALSE)),0,VLOOKUP($U$11&\"-\"&B18,'BD Seq Op'!C:H,2,FALSE)))","v":"Dobrar peça e embalar"},{"$f":"IF($L$1=0,0,IF(ISERROR(VLOOKUP($U$11&\"-\"&B18,'BD Seq Op'!C:H,5,FALSE)),0,VLOOKUP($U$11&\"-\"&B18,'BD Seq Op'!C:H,5,FALSE)))","v":0.45},133.33333333333334,null,null,800,360,null,null,null,null,null,null,null,null,"Observações : ",{"$f":"IF(U18=0,\"\",U18)","v":"                                             ***   CLIENTE ESPECIAL   ***\n*** Verificar instruções das etiquetas conforme ficha técnica ***"},null,{"$f":"IF($L$1=0,\"\",IF(ISERROR(VLOOKUP($L$1,'BD da OP'!$A:$AC,29,FALSE)),\"\",VLOOKUP($L$1,'BD da OP'!$A:$AC,29,FALSE)))","v":"                                             ***   CLIENTE ESPECIAL   ***\n*** Verificar instruções das etiquetas conforme ficha técnica ***"},null,null,null,null,null,null,null,null,null,false]
["Não",11,{"$f":"IF($L$1=0,0,IF(ISERROR(VLOOKUP($U$11&\"-\"&B19,'BD Seq Op'!C:H,2,FALSE)),0,VLOOKUP($U$11&\"-\"&B19,'BD Seq Op'!C:H,2,FALSE)))","v":0},{"$f":"IF($L$1=0,0,IF(ISERROR(VLOOKUP($U$11&\"-\"&B19,'BD Seq Op'!C:H,5,FALSE)),0,VLOOKUP($U$11&\"-\"&B19,'BD Seq Op'!C:H,5,FALSE)))","v":0},"",null,null,"","",null,null,null,null,null,null,null,null,null,null,null,null,null,null,null,null,null,null,null,null,null,false]
["Não",12,{"$f":"IF($L$1=0,0,IF(ISERROR(VLOOKUP($U$11&\"-\"&B20,'BD Seq Op'!C:H,2,FALSE)),0,VLOOKUP($U$11&\"-\"&B20,'BD Seq Op'!C:H,2,FALSE)))","v":0},{"$f":"IF($L$1=0,0,IF(ISERROR(VLOOKUP($U$11&\"-\"&B20,'BD Seq Op'!C:H,5,FALSE)),0,VLOOKUP($U$11&\"-\"&B20,'BD Seq Op'!C:H,5,FALSE)))","v":0},"",null,null,"","",null,null,null,null,null,null,null,null,null,null,null,null,null,null,null,null,null,null,null,null,null,false]
["Não",13,{"$f":"IF($L$1=0,0,IF(ISERROR(VLOOKUP($U$11&\"-\"&B21,'BD Seq Op'!C:H,2,FALSE)),0,VLOOKUP($U$11&\"-\"&B21,'BD Seq Op'!C:H,2,FALSE)))","v":0},{"$f":"IF($L$1=0,0,IF(ISERROR(VLOOKUP($U$11&\"-\"&B21,'BD Seq Op'!C:H,5,FALSE)),0,VLOOKUP($U$11&\"-\"&B21,'BD Seq Op'!C:H,5,FALSE)))","v":0},"",null,null,"","",null,null,null,null,null,null,null,null,null,null,null,null,null,null,null,null,null,null,null,null,null,false]
["Não",14,{"$f":"IF($L$1=0,0,IF(ISERROR(VLOOKUP($U$11&\"-\"&B22,'BD Seq Op'!C:H,2,FALSE)),0,VLOOKUP($U$11&\"-\"&B22,'BD Seq Op'!C:H,2,FALSE)))","v":0},{"$f":"IF($L$1=0,0,IF(ISERROR(VLOOKUP($U$11&\"-\"&B22,'BD Seq Op'!C:H,5,FALSE)),0,VLOOKUP($U$11&\"-\"&B22,'BD Seq Op'!C:H,5,FALSE)))","v":0},"",null,null,"","",null,null,null,null,null,null,null,null,null,null,null,null,null,null,null,null,null,null,null,null,null,false]
["Não",15,{"$f":"IF($L$1=0,0,IF(ISERROR(VLOOKUP($U$11&\"-\"&B23,'BD Seq Op'!C:H,2,FALSE)),0,VLOOKUP($U$11&\"-\"&B23,'BD Seq Op'!C:H,2,FALSE)))","v":0},{"$f":"IF($L$1=0,0,IF(ISERROR(VLOOKUP($U$11&\"-\"&B23,'BD Seq Op'!C:H,5,FALSE)),0,VLOOKUP($U$11&\"-\"&B23,'BD Seq Op'!C:H,5,FALSE)))","v":0},"",null,null,"","",null,null,null,null,null,null,null,null,null,null,null,null,null,null,null,null,null,null,null,null,null,false]
["Não",16,{"$f":"IF($L$1=0,0,IF(ISERROR(VLOOKUP($U$11&\"-\"&B24,'BD Seq Op'!C:H,2,FALSE)),0,VLOOKUP($U$11&\"-\"&B24,'BD Seq Op'!C:H,2,FALSE)))","v":0},{"$f":"IF($L$1=0,0,IF(ISERROR(VLOOKUP($U$11&\"-\"&B24,'BD Seq Op'!C:H,5,FALSE)),0,VLOOKUP($U$11&\"-\"&B24,'BD Seq Op'!C:H,5,FALSE)))","v":0},"",null,null,"","",null,null,null,null,null,null,null,null,null,null,null,null,null,null,null,null,null,null,null,null,null,false]
["Não",17,{"$f":"IF($L$1=0,0,IF(ISERROR(VLOOKUP($U$11&\"-\"&B25,'BD Seq Op'!C:H,2,FALSE)),0,VLOOKUP($U$11&\"-\"&B25,'BD Seq Op'!C:H,2,FALSE)))","v":0},{"$f":"IF($L$1=0,0,IF(ISERROR(VLOOKUP($U$11&\"-\"&B25,'BD Seq Op'!C:H,5,FALSE)),0,VLOOKUP($U$11&\"-\"&B25,'BD Seq Op'!C:H,5,FALSE)))","v":0},"",null,null,"","",null,null,null,null,null,null,null,null,null,null,null,null,null,null,null,null,null,null,null,null,null,false]
["Não",18,{"$f":"IF($L$1=0,0,IF(ISERROR(VLOOKUP($U$11&\"-\"&B26,'BD Seq Op'!C:H,2,FALSE)),0,VLOOKUP($U$11&\"-\"&B26,'BD Seq Op'!C:H,2,FALSE)))","v":0},{"$f":"IF($L$1=0,0,IF(ISERROR(VLOOKUP($U$11&\"-\"&B26,'BD Seq Op'!C:H,5,FALSE)),0,VLOOKUP($U$11&\"-\"&B26,'BD Seq Op'!C:H,5,FALSE)))","v":0},"",null,null,"","",null,null,null,null,null,null,null,null,null,null,null,null,null,null,null,null,null,null,null,null,null,false]
["Não",19,{"$f":"IF($L$1=0,0,IF(ISERROR(VLOOKUP($U$11&\"-\"&B27,'BD Seq Op'!C:H,2,FALSE)),0,VLOOKUP($U$11&\"-\"&B27,'BD Seq Op'!C:H,2,FALSE)))","v":0},{"$f":"IF($L$1=0,0,IF(ISERROR(VLOOKUP($U$11&\"-\"&B27,'BD Seq Op'!C:H,5,FALSE)),0,VLOOKUP($U$11&\"-\"&B27,'BD Seq Op'!C:H,5,FALSE)))","v":0},"",null,null,"","",null,null,null,null,null,null,null,null,null,null,null,null,null,null,null,null,null,null,null,null,null,false]
["Não",20,{"$f":"IF($L$1=0,0,IF(ISERROR(VLOOKUP($U$11&\"-\"&B28,'BD Seq Op'!C:H,2,FALSE)),0,VLOOKUP($U$11&\"-\"&B28,'BD Seq Op'!C:H,2,FALSE)))","v":0},{"$f":"IF($L$1=0,0,IF(ISERROR(VLOOKUP($U$11&\"-\"&B28,'BD Seq Op'!C:H,5,FALSE)),0,VLOOKUP($U$11&\"-\"&B28,'BD Seq Op'!C:H,5,FALSE)))","v":0},"",null,null,"","",null,null,null,null,null,null,null,null,null,null,null,null,null,null,null,null,null,null,null,null,null,false]
["Não",21,{"$f":"IF($L$1=0,0,IF(ISERROR(VLOOKUP($U$11&\"-\"&B29,'BD Seq Op'!C:H,2,FALSE)),0,VLOOKUP($U$11&\"-\"&B29,'BD Seq Op'!C:H,2,FALSE)))","v":0},{"$f":"IF($L$1=0,0,IF(ISERROR(VLOOKUP($U$11&\"-\"&B29,'BD Seq Op'!C:H,5,FALSE)),0,VLOOKUP($U$11&\"-\"&B29,'BD Seq Op'!C:H,5,FALSE)))","v":0},"",null,null,"","",null,null,null,null,null,null,null,null,null,null,null,null,null,null,null,null,null,null,null,null,null,false]
["Não",22,{"$f":"IF($L$1=0,0,IF(ISERROR(VLOOKUP($U$11&\"-\"&B30,'BD Seq Op'!C:H,2,FALSE)),0,VLOOKUP($U$11&\"-\"&B30,'BD Seq Op'!C:H,2,FALSE)))","v":0},{"$f":"IF($L$1=0,0,IF(ISERROR(VLOOKUP($U$11&\"-\"&B30,'BD Seq Op'!C:H,5,FALSE)),0,VLOOKUP($U$11&\"-\"&B30,'BD Seq Op'!C:H,5,FALSE)))","v":0},"",null,null,"","",null,null,null,null,null,null,null,null,null,null,null,null,null,null,null,null,null,null,null,null,null,false]
["Não",23,{"$f":"IF($L$1=0,0,IF(ISERROR(VLOOKUP($U$11&\"-\"&B31,'BD Seq Op'!C:H,2,FALSE)),0,VLOOKUP($U$11&\"-\"&B31,'BD Seq Op'!C:H,2,FALSE)))","v":0},{"$f":"IF($L$1=0,0,IF(ISERROR(VLOOKUP($U$11&\"-\"&B31,'BD Seq Op'!C:H,5,FALSE)),0,VLOOKUP($U$11&\"-\"&B31,'BD Seq Op'!C:H,5,FALSE)))","v":0},"",null,null,"","",null,null,null,null,null,null,null,null,null,null,null,null,null,null,null,null,null,null,null,null,null,false]
["Não",24,{"$f":"IF($L$1=0,0,IF(ISERROR(VLOOKUP($U$11&\"-\"&B32,'BD Seq Op'!C:H,2,FALSE)),0,VLOOKUP($U$11&\"-\"&B32,'BD Seq Op'!C:H,2,FALSE)))","v":0},{"$f":"IF($L$1=0,0,IF(ISERROR(VLOOKUP($U$11&\"-\"&B32,'BD Seq Op'!C:H,5,FALSE)),0,VLOOKUP($U$11&\"-\"&B32,'BD Seq Op'!C:H,5,FALSE)))","v":0},"",null,null,"","",null,null,null,null,null,null,null,null,null,null,null,null,null,null,null,null,null,null,null,null,null,false]
["Não",25,{"$f":"IF($L$1=0,0,IF(ISERROR(VLOOKUP($U$11&\"-\"&B33,'BD Seq Op'!C:H,2,FALSE)),0,VLOOKUP($U$11&\"-\"&B33,'BD Seq Op'!C:H,2,FALSE)))","v":0},{"$f":"IF($L$1=0,0,IF(ISERROR(VLOOKUP($U$11&\"-\"&B33,'BD Seq Op'!C:H,5,FALSE)),0,VLOOKUP($U$11&\"-\"&B33,'BD Seq Op'!C:H,5,FALSE)))","v":0},"",null,null,"","",null,null,null,null,null,null,null,null,null,null,null,null,null,null,null,null,null,null,null,null,null,false]
["Não",26,{"$f":"IF($L$1=0,0,IF(ISERROR(VLOOKUP($U$11&\"-\"&B34,'BD Seq Op'!C:H,2,FALSE)),0,VLOOKUP($U$11&\"-\"&B34,'BD Seq Op'!C:H,2,FALSE)))","v":0},{"$f":"IF($L$1=0,0,IF(ISERROR(VLOOKUP($U$11&\"-\"&B34,'BD Seq Op'!C:H,5,FALSE)),0,VLOOKUP($U$11&\"-\"&B34,'BD Seq Op'!C:H,5,FALSE)))","v":0},"",null,null,"","",null,null,null,null,null,null,null,null,null,null,null,null,null,null,null,null,null,null,null,null,null,false]
["Não",27,{"$f":"IF($L$1=0,0,IF(ISERROR(VLOOKUP($U$11&\"-\"&B35,'BD Seq Op'!C:H,2,FALSE)),0,VLOOKUP($U$11&\"-\"&B35,'BD Seq Op'!C:H,2,FALSE)))","v":0},{"$f":"IF($L$1=0,0,IF(ISERROR(VLOOKUP($U$11&\"-\"&B35,'BD Seq Op'!C:H,5,FALSE)),0,VLOOKUP($U$11&\"-\"&B35,'BD Seq Op'!C:H,5,FALSE)))","v":0},"",null,null,"","",null,null,null,null,null,null,null,null,null,null,null,null,null,null,null,null,null,null,null,null,null,false]
["Não",28,{"$f":"IF($L$1=0,0,IF(ISERROR(VLOOKUP($U$11&\"-\"&B36,'BD Seq Op'!C:H,2,FALSE)),0,VLOOKUP($U$11&\"-\"&B36,'BD Seq Op'!C:H,2,FALSE)))","v":0},{"$f":"IF($L$1=0,0,IF(ISERROR(VLOOKUP($U$11&\"-\"&B36,'BD Seq Op'!C:H,5,FALSE)),0,VLOOKUP($U$11&\"-\"&B36,'BD Seq Op'!C:H,5,FALSE)))","v":0},"",null,null,"","",null,null,null,null,null,null,null,null,null,null,null,null,null,null,null,null,null,null,null,null,null,false]
["Não",29,{"$f":"IF($L$1=0,0,IF(ISERROR(VLOOKUP($U$11&\"-\"&B37,'BD Seq Op'!C:H,2,FALSE)),0,VLOOKUP($U$11&\"-\"&B37,'BD Seq Op'!C:H,2,FALSE)))","v":0},{"$f":"IF($L$1=0,0,IF(ISERROR(VLOOKUP($U$11&\"-\"&B37,'BD Seq Op'!C:H,5,FALSE)),0,VLOOKUP($U$11&\"-\"&B37,'BD Seq Op'!C:H,5,FALSE)))","v":0},"",null,null,"","",null,null,null,null,null,null,null,null,null,null,null,null,null,null,null,null,null,null,null,null,null,false]
["Não",30,{"$f":"IF($L$1=0,0,IF(ISERROR(VLOOKUP($U$11&\"-\"&B38,'BD Seq Op'!C:H,2,FALSE)),0,VLOOKUP($U$11&\"-\"&B38,'BD Seq Op'!C:H,2,FALSE)))","v":0},{"$f":"IF($L$1=0,0,IF(ISERROR(VLOOKUP($U$11&\"-\"&B38,'BD Seq Op'!C:H,5,FALSE)),0,VLOOKUP($U$11&\"-\"&B38,'BD Seq Op'!C:H,5,FALSE)))","v":0},"",null,null,"","",null,null,null,null,null,null,null,null,null,null,null,null,null,null,null,null,null,null,null,null,null,false]
["Não",31,{"$f":"IF($L$1=0,0,IF(ISERROR(VLOOKUP($U$11&\"-\"&B39,'BD Seq Op'!C:H,2,FALSE)),0,VLOOKUP($U$11&\"-\"&B39,'BD Seq Op'!C:H,2,FALSE)))","v":0},{"$f":"IF($L$1=0,0,IF(ISERROR(VLOOKUP($U$11&\"-\"&B39,'BD Seq Op'!C:H,5,FALSE)),0,VLOOKUP($U$11&\"-\"&B39,'BD Seq Op'!C:H,5,FALSE)))","v":0},"",null,null,"","",null,null,null,null,null,null,null,null,null,null,null,null,null,null,null,null,null,null,null,null,null,false]
["Não",32,{"$f":"IF($L$1=0,0,IF(ISERROR(VLOOKUP($U$11&\"-\"&B40,'BD Seq Op'!C:H,2,FALSE)),0,VLOOKUP($U$11&\"-\"&B40,'BD Seq Op'!C:H,2,FALSE)))","v":0},{"$f":"IF($L$1=0,0,IF(ISERROR(VLOOKUP($U$11&\"-\"&B40,'BD Seq Op'!C:H,5,FALSE)),0,VLOOKUP($U$11&\"-\"&B40,'BD Seq Op'!C:H,5,FALSE)))","v":0},"",null,null,"","",null,null,null,null,null,null,null,null,null,null,null,null,null,null,null,null,null,null,null,null,null,false]
["Não",33,{"$f":"IF($L$1=0,0,IF(ISERROR(VLOOKUP($U$11&\"-\"&B41,'BD Seq Op'!C:H,2,FALSE)),0,VLOOKUP($U$11&\"-\"&B41,'BD Seq Op'!C:H,2,FALSE)))","v":0},{"$f":"IF($L$1=0,0,IF(ISERROR(VLOOKUP($U$11&\"-\"&B41,'BD Seq Op'!C:H,5,FALSE)),0,VLOOKUP($U$11&\"-\"&B41,'BD Seq Op'!C:H,5,FALSE)))","v":0},{"$f":"IF(C41=0,\"\",IF($U$1=TRUE,(60*$L$5)/D41,60/D41))","v":""},null,null,"","",null,null,null,null,null,null,null,null,null,null,null,null,null,null,null,null,null,null,null,null,null,false]
["Não",34,{"$f":"IF($L$1=0,0,IF(ISERROR(VLOOKUP($U$11&\"-\"&B42,'BD Seq Op'!C:H,2,FALSE)),0,VLOOKUP($U$11&\"-\"&B42,'BD Seq Op'!C:H,2,FALSE)))","v":0},{"$f":"IF($L$1=0,0,IF(ISERROR(VLOOKUP($U$11&\"-\"&B42,'BD Seq Op'!C:H,5,FALSE)),0,VLOOKUP($U$11&\"-\"&B42,'BD Seq Op'!C:H,5,FALSE)))","v":0},"",null,null,"","",null,null,null,null,null,null,null,null,null,null,null,null,null,null,null,null,null,null,null,null,null,false]
["Não",35,{"$f":"IF($L$1=0,0,IF(ISERROR(VLOOKUP($U$11&\"-\"&B43,'BD Seq Op'!C:H,2,FALSE)),0,VLOOKUP($U$11&\"-\"&B43,'BD Seq Op'!C:H,2,FALSE)))","v":0},{"$f":"IF($L$1=0,0,IF(ISERROR(VLOOKUP($U$11&\"-\"&B43,'BD Seq Op'!C:H,5,FALSE)),0,VLOOKUP($U$11&\"-\"&B43,'BD Seq Op'!C:H,5,FALSE)))","v":0},"",null,null,"","",null,null,null,null,null,null,null,null,null,null,null,null,null,null,null,null,null,null,null,null,null,false]
["Não",36,{"$f":"IF($L$1=0,0,IF(ISERROR(VLOOKUP($U$11&\"-\"&B44,'BD Seq Op'!C:H,2,FALSE)),0,VLOOKUP($U$11&\"-\"&B44,'BD Seq Op'!C:H,2,FALSE)))","v":0},{"$f":"IF($L$1=0,0,IF(ISERROR(VLOOKUP($U$11&\"-\"&B44,'BD Seq Op'!C:H,5,FALSE)),0,VLOOKUP($U$11&\"-\"&B44,'BD Seq Op'!C:H,5,FALSE)))","v":0},"",null,null,"","",null,null,null,null,null,null,null,null,null,null,null,null,null,null,null,null,null,null,null,null,null,false]
["Não",37,{"$f":"IF($L$1=0,0,IF(ISERROR(VLOOKUP($U$11&\"-\"&B45,'BD Seq Op'!C:H,2,FALSE)),0,VLOOKUP($U$11&\"-\"&B45,'BD Seq Op'!C:H,2,FALSE)))","v":0},{"$f":"IF($L$1=0,0,IF(ISERROR(VLOOKUP($U$11&\"-\"&B45,'BD Seq Op'!C:H,5,FALSE)),0,VLOOKUP($U$11&\"-\"&B45,'BD Seq Op'!C:H,5,FALSE)))","v":0},"",null,null,"","",null,null,null,null,null,null,null,null,null,null,null,null,null,null,null,null,null,null,null,null,null,false]
["Não",38,{"$f":"IF($L$1=0,0,IF(ISERROR(VLOOKUP($U$11&\"-\"&B46,'BD Seq Op'!C:H,2,FALSE)),0,VLOOKUP($U$11&\"-\"&B46,'BD Seq Op'!C:H,2,FALSE)))","v":0},{"$f":"IF($L$1=0,0,IF(ISERROR(VLOOKUP($U$11&\"-\"&B46,'BD Seq Op'!C:H,5,FALSE)),0,VLOOKUP($U$11&\"-\"&B46,'BD Seq Op'!C:H,5,FALSE)))","v":0},"",null,null,"","",null,null,null,null,null,null,null,null,null,null,null,null,null,null,null,null,null,null,null,null,null,false]
["Não",39,{"$f":"IF($L$1=0,0,IF(ISERROR(VLOOKUP($U$11&\"-\"&B47,'BD Seq Op'!C:H,2,FALSE)),0,VLOOKUP($U$11&\"-\"&B47,'BD Seq Op'!C:H,2,FALSE)))","v":0},{"$f":"IF($L$1=0,0,IF(ISERROR(VLOOKUP($U$11&\"-\"&B47,'BD Seq Op'!C:H,5,FALSE)),0,VLOOKUP($U$11&\"-\"&B47,'BD Seq Op'!C:H,5,FALSE)))","v":0},"",null,null,"","",null,null,null,null,null,null,null,null,null,null,null,null,null,null,null,null,null,null,null,null,null,false]
["Não",40,{"$f":"IF($L$1=0,0,IF(ISERROR(VLOOKUP($U$11&\"-\"&B48,'BD Seq Op'!C:H,2,FALSE)),0,VLOOKUP($U$11&\"-\"&B48,'BD Seq Op'!C:H,2,FALSE)))","v":0},{"$f":"IF($L$1=0,0,IF(ISERROR(VLOOKUP($U$11&\"-\"&B48,'BD Seq Op'!C:H,5,FALSE)),0,VLOOKUP($U$11&\"-\"&B48,'BD Seq Op'!C:H,5,FALSE)))","v":0},"",null,null,"","",null,null,null,null,null,null,null,null,null,null,null,null,null,null,null,null,null,null,null,null,null,false]
["Não",41,{"$f":"IF($L$1=0,0,IF(ISERROR(VLOOKUP($U$11&\"-\"&B49,'BD Seq Op'!C:H,2,FALSE)),0,VLOOKUP($U$11&\"-\"&B49,'BD Seq Op'!C:H,2,FALSE)))","v":0},{"$f":"IF($L$1=0,0,IF(ISERROR(VLOOKUP($U$11&\"-\"&B49,'BD Seq Op'!C:H,5,FALSE)),0,VLOOKUP($U$11&\"-\"&B49,'BD Seq Op'!C:H,5,FALSE)))","v":0},"",null,null,"","",null,null,null,null,null,null,null,null,null,null,null,null,null,null,null,null,null,null,null,null,null,false]
["Não",42,{"$f":"IF($L$1=0,0,IF(ISERROR(VLOOKUP($U$11&\"-\"&B50,'BD Seq Op'!C:H,2,FALSE)),0,VLOOKUP($U$11&\"-\"&B50,'BD Seq Op'!C:H,2,FALSE)))","v":0},{"$f":"IF($L$1=0,0,IF(ISERROR(VLOOKUP($U$11&\"-\"&B50,'BD Seq Op'!C:H,5,FALSE)),0,VLOOKUP($U$11&\"-\"&B50,'BD Seq Op'!C:H,5,FALSE)))","v":0},"",null,null,"","",null,null,null,null,null,null,null,null,null,null,null,null,null,null,null,null,null,null,null,null,null,false]
["Não",43,{"$f":"IF($L$1=0,0,IF(ISERROR(VLOOKUP($U$11&\"-\"&B51,'BD Seq Op'!C:H,2,FALSE)),0,VLOOKUP($U$11&\"-\"&B51,'BD Seq Op'!C:H,2,FALSE)))","v":0},{"$f":"IF($L$1=0,0,IF(ISERROR(VLOOKUP($U$11&\"-\"&B51,'BD Seq Op'!C:H,5,FALSE)),0,VLOOKUP($U$11&\"-\"&B51,'BD Seq Op'!C:H,5,FALSE)))","v":0},"",null,null,"","",null,null,null,null,null,null,null,null,null,null,null,null,null,null,null,null,null,null,null,null,null,false]
["Não",44,{"$f":"IF($L$1=0,0,IF(ISERROR(VLOOKUP($U$11&\"-\"&B52,'BD Seq Op'!C:H,2,FALSE)),0,VLOOKUP($U$11&\"-\"&B52,'BD Seq Op'!C:H,2,FALSE)))","v":0},{"$f":"IF($L$1=0,0,IF(ISERROR(VLOOKUP($U$11&\"-\"&B52,'BD Seq Op'!C:H,5,FALSE)),0,VLOOKUP($U$11&\"-\"&B52,'BD Seq Op'!C:H,5,FALSE)))","v":0},"",null,null,"","",null,null,null,null,null,null,null,null,null,null,null,null,null,null,null,null,null,null,null,null,null,false]
["Não",45,{"$f":"IF($L$1=0,0,IF(ISERROR(VLOOKUP($U$11&\"-\"&B53,'BD Seq Op'!C:H,2,FALSE)),0,VLOOKUP($U$11&\"-\"&B53,'BD Seq Op'!C:H,2,FALSE)))","v":0},{"$f":"IF($L$1=0,0,IF(ISERROR(VLOOKUP($U$11&\"-\"&B53,'BD Seq Op'!C:H,5,FALSE)),0,VLOOKUP($U$11&\"-\"&B53,'BD Seq Op'!C:H,5,FALSE)))","v":0},"",null,null,"","",null,null,null,null,null,null,null,null,null,null,null,null,null,null,null,null,null,null,null,null,null,false]
["Não",46,{"$f":"IF($L$1=0,0,IF(ISERROR(VLOOKUP($U$11&\"-\"&B54,'BD Seq Op'!C:H,2,FALSE)),0,VLOOKUP($U$11&\"-\"&B54,'BD Seq Op'!C:H,2,FALSE)))","v":0},{"$f":"IF($L$1=0,0,IF(ISERROR(VLOOKUP($U$11&\"-\"&B54,'BD Seq Op'!C:H,5,FALSE)),0,VLOOKUP($U$11&\"-\"&B54,'BD Seq Op'!C:H,5,FALSE)))","v":0},"",null,null,"","",null,null,null,null,null,null,null,null,null,null,null,null,null,null,null,null,null,null,null,null,null,false]
["Não",47,{"$f":"IF($L$1=0,0,IF(ISERROR(VLOOKUP($U$11&\"-\"&B55,'BD Seq Op'!C:H,2,FALSE)),0,VLOOKUP($U$11&\"-\"&B55,'BD Seq Op'!C:H,2,FALSE)))","v":0},{"$f":"IF($L$1=0,0,IF(ISERROR(VLOOKUP($U$11&\"-\"&B55,'BD Seq Op'!C:H,5,FALSE)),0,VLOOKUP($U$11&\"-\"&B55,'BD Seq Op'!C:H,5,FALSE)))","v":0},"",null,null,"","",null,null,null,null,null,null,null,null,null,null,null,null,null,null,null,null,null,null,null,null,null,false]
["Não",48,{"$f":"IF($L$1=0,0,IF(ISERROR(VLOOKUP($U$11&\"-\"&B56,'BD Seq Op'!C:H,2,FALSE)),0,VLOOKUP($U$11&\"-\"&B56,'BD Seq Op'!C:H,2,FALSE)))","v":0},{"$f":"IF($L$1=0,0,IF(ISERROR(VLOOKUP($U$11&\"-\"&B56,'BD Seq Op'!C:H,5,FALSE)),0,VLOOKUP($U$11&\"-\"&B56,'BD Seq Op'!C:H,5,FALSE)))","v":0},"",null,null,"","",null,null,null,null,null,null,null,null,null,null,null,null,null,null,null,null,null,null,null,null,null,false]
["Não",49,{"$f":"IF($L$1=0,0,IF(ISERROR(VLOOKUP($U$11&\"-\"&B57,'BD Seq Op'!C:H,2,FALSE)),0,VLOOKUP($U$11&\"-\"&B57,'BD Seq Op'!C:H,2,FALSE)))","v":0},{"$f":"IF($L$1=0,0,IF(ISERROR(VLOOKUP($U$11&\"-\"&B57,'BD Seq Op'!C:H,5,FALSE)),0,VLOOKUP($U$11&\"-\"&B57,'BD Seq Op'!C:H,5,FALSE)))","v":0},"",null,null,"","",null,null,null,null,null,null,null,null,null,null,null,null,null,null,null,null,null,null,null,null,null,false]
["Não",50,{"$f":"IF($L$1=0,0,IF(ISERROR(VLOOKUP($U$11&\"-\"&B58,'BD Seq Op'!C:H,2,FALSE)),0,VLOOKUP($U$11&\"-\"&B58,'BD Seq Op'!C:H,2,FALSE)))","v":0},{"$f":"IF($L$1=0,0,IF(ISERROR(VLOOKUP($U$11&\"-\"&B58,'BD Seq Op'!C:H,5,FALSE)),0,VLOOKUP($U$11&\"-\"&B58,'BD Seq Op'!C:H,5,FALSE)))","v":0},"",null,null,"","",null,null,null,null,null,null,null,null,null,null,null,null,null,null,null,null,null,null,null,null,null,false]
["Não",51,{"$f":"IF($L$1=0,0,IF(ISERROR(VLOOKUP($U$11&\"-\"&B59,'BD Seq Op'!C:H,2,FALSE)),0,VLOOKUP($U$11&\"-\"&B59,'BD Seq Op'!C:H,2,FALSE)))","v":0},{"$f":"IF($L$1=0,0,IF(ISERROR(VLOOKUP($U$11&\"-\"&B59,'BD Seq Op'!C:H,5,FALSE)),0,VLOOKUP($U$11&\"-\"&B59,'BD Seq Op'!C:H,5,FALSE)))","v":0},"",null,null,"","",null,null,null,null,null,null,null,null,null,null,null,null,null,null,null,null,null,null,null,null,null,false]
["Não",52,{"$f":"IF($L$1=0,0,IF(ISERROR(VLOOKUP($U$11&\"-\"&B60,'BD Seq Op'!C:H,2,FALSE)),0,VLOOKUP($U$11&\"-\"&B60,'BD Seq Op'!C:H,2,FALSE)))","v":0},{"$f":"IF($L$1=0,0,IF(ISERROR(VLOOKUP($U$11&\"-\"&B60,'BD Seq Op'!C:H,5,FALSE)),0,VLOOKUP($U$11&\"-\"&B60,'BD Seq Op'!C:H,5,FALSE)))","v":0},"",null,null,"","",null,null,null,null,null,null,null,null,null,null,null,null,null,null,null,null,null,null,null,null,null,false]
["Não",53,{"$f":"IF($L$1=0,0,IF(ISERROR(VLOOKUP($U$11&\"-\"&B61,'BD Seq Op'!C:H,2,FALSE)),0,VLOOKUP($U$11&\"-\"&B61,'BD Seq Op'!C:H,2,FALSE)))","v":0},{"$f":"IF($L$1=0,0,IF(ISERROR(VLOOKUP($U$11&\"-\"&B61,'BD Seq Op'!C:H,5,FALSE)),0,VLOOKUP($U$11&\"-\"&B61,'BD Seq Op'!C:H,5,FALSE)))","v":0},"",null,null,"","",null,null,null,null,null,null,null,null,null,null,null,null,null,null,null,null,null,null,null,null,null,false]
["Não",54,{"$f":"IF($L$1=0,0,IF(ISERROR(VLOOKUP($U$11&\"-\"&B62,'BD Seq Op'!C:H,2,FALSE)),0,VLOOKUP($U$11&\"-\"&B62,'BD Seq Op'!C:H,2,FALSE)))","v":0},{"$f":"IF($L$1=0,0,IF(ISERROR(VLOOKUP($U$11&\"-\"&B62,'BD Seq Op'!C:H,5,FALSE)),0,VLOOKUP($U$11&\"-\"&B62,'BD Seq Op'!C:H,5,FALSE)))","v":0},"",null,null,"","",null,null,null,null,null,null,null,null,null,null,null,null,null,null,null,null,null,null,null,null,null,false]
["Não",55,{"$f":"IF($L$1=0,0,IF(ISERROR(VLOOKUP($U$11&\"-\"&B63,'BD Seq Op'!C:H,2,FALSE)),0,VLOOKUP($U$11&\"-\"&B63,'BD Seq Op'!C:H,2,FALSE)))","v":0},{"$f":"IF($L$1=0,0,IF(ISERROR(VLOOKUP($U$11&\"-\"&B63,'BD Seq Op'!C:H,5,FALSE)),0,VLOOKUP($U$11&\"-\"&B63,'BD Seq Op'!C:H,5,FALSE)))","v":0},"",null,null,"","",null,null,null,null,null,null,null,null,null,null,null,null,null,null,null,null,null,null,null,null,null,false]
["Não",56,{"$f":"IF($L$1=0,0,IF(ISERROR(VLOOKUP($U$11&\"-\"&B64,'BD Seq Op'!C:H,2,FALSE)),0,VLOOKUP($U$11&\"-\"&B64,'BD Seq Op'!C:H,2,FALSE)))","v":0},{"$f":"IF($L$1=0,0,IF(ISERROR(VLOOKUP($U$11&\"-\"&B64,'BD Seq Op'!C:H,5,FALSE)),0,VLOOKUP($U$11&\"-\"&B64,'BD Seq Op'!C:H,5,FALSE)))","v":0},"",null,null,"","",null,null,null,null,null,null,null,null,null,null,null,null,null,null,null,null,null,null,null,null,null,false]
["Não",57,{"$f":"IF($L$1=0,0,IF(ISERROR(VLOOKUP($U$11&\"-\"&B65,'BD Seq Op'!C:H,2,FALSE)),0,VLOOKUP($U$11&\"-\"&B65,'BD Seq Op'!C:H,2,FALSE)))","v":0},{"$f":"IF($L$1=0,0,IF(ISERROR(VLOOKUP($U$11&\"-\"&B65,'BD Seq Op'!C:H,5,FALSE)),0,VLOOKUP($U$11&\"-\"&B65,'BD Seq Op'!C:H,5,FALSE)))","v":0},"",null,null,"","",null,null,null,null,null,null,null,null,null,null,null,null,null,null,null,null,null,null,null,null,null,false]
["Não",58,{"$f":"IF($L$1=0,0,IF(ISERROR(VLOOKUP($U$11&\"-\"&B66,'BD Seq Op'!C:H,2,FALSE)),0,VLOOKUP($U$11&\"-\"&B66,'BD Seq Op'!C:H,2,FALSE)))","v":0},{"$f":"IF($L$1=0,0,IF(ISERROR(VLOOKUP($U$11&\"-\"&B66,'BD Seq Op'!C:H,5,FALSE)),0,VLOOKUP($U$11&\"-\"&B66,'BD Seq Op'!C:H,5,FALSE)))","v":0},"",null,null,"","",null,null,null,null,null,null,null,null,null,null,null,null,null,null,null,null,null,null,null,null,null,false]
["Não",59,{"$f":"IF($L$1=0,0,IF(ISERROR(VLOOKUP($U$11&\"-\"&B67,'BD Seq Op'!C:H,2,FALSE)),0,VLOOKUP($U$11&\"-\"&B67,'BD Seq Op'!C:H,2,FALSE)))","v":0},{"$f":"IF($L$1=0,0,IF(ISERROR(VLOOKUP($U$11&\"-\"&B67,'BD Seq Op'!C:H,5,FALSE)),0,VLOOKUP($U$11&\"-\"&B67,'BD Seq Op'!C:H,5,FALSE)))","v":0},"",null,null,"","",null,null,null,null,null,null,null,null,null,null,null,null,null,null,null,null,null,null,null,null,null,false]
["Não",60,{"$f":"IF($L$1=0,0,IF(ISERROR(VLOOKUP($U$11&\"-\"&B68,'BD Seq Op'!C:H,2,FALSE)),0,VLOOKUP($U$11&\"-\"&B68,'BD Seq Op'!C:H,2,FALSE)))","v":0},{"$f":"IF($L$1=0,0,IF(ISERROR(VLOOKUP($U$11&\"-\"&B68,'BD Seq Op'!C:H,5,FALSE)),0,VLOOKUP($U$11&\"-\"&B68,'BD Seq Op'!C:H,5,FALSE)))","v":0},"",null,null,"","",null,null,null,null,null,null,null,null,null,null,null,null,null,null,null,null,null,null,null,null,null,false]
["Não",61,{"$f":"IF($L$1=0,0,IF(ISERROR(VLOOKUP($U$11&\"-\"&B69,'BD Seq Op'!C:H,2,FALSE)),0,VLOOKUP($U$11&\"-\"&B69,'BD Seq Op'!C:H,2,FALSE)))","v":0},{"$f":"IF($L$1=0,0,IF(ISERROR(VLOOKUP($U$11&\"-\"&B69,'BD Seq Op'!C:H,5,FALSE)),0,VLOOKUP($U$11&\"-\"&B69,'BD Seq Op'!C:H,5,FALSE)))","v":0},"",null,null,"","",null,null,null,null,null,null,null,null,null,null,null,null,null,null,null,null,null,null,null,null,null,false]
["Não",62,{"$f":"IF($L$1=0,0,IF(ISERROR(VLOOKUP($U$11&\"-\"&B70,'BD Seq Op'!C:H,2,FALSE)),0,VLOOKUP($U$11&\"-\"&B70,'BD Seq Op'!C:H,2,FALSE)))","v":0},{"$f":"IF($L$1=0,0,IF(ISERROR(VLOOKUP($U$11&\"-\"&B70,'BD Seq Op'!C:H,5,FALSE)),0,VLOOKUP($U$11&\"-\"&B70,'BD Seq Op'!C:H,5,FALSE)))","v":0},"",null,null,"","",null,null,null,null,null,null,null,null,null,null,null,null,null,null,null,null,null,null,null,null,null,false]
["Não",63,{"$f":"IF($L$1=0,0,IF(ISERROR(VLOOKUP($U$11&\"-\"&B71,'BD Seq Op'!C:H,2,FALSE)),0,VLOOKUP($U$11&\"-\"&B71,'BD Seq Op'!C:H,2,FALSE)))","v":0},{"$f":"IF($L$1=0,0,IF(ISERROR(VLOOKUP($U$11&\"-\"&B71,'BD Seq Op'!C:H,5,FALSE)),0,VLOOKUP($U$11&\"-\"&B71,'BD Seq Op'!C:H,5,FALSE)))","v":0},"",null,null,"","",null,null,null,null,null,null,null,null,null,null,null,null,null,null,null,null,null,null,null,null,null,false]
["Não",64,{"$f":"IF($L$1=0,0,IF(ISERROR(VLOOKUP($U$11&\"-\"&B72,'BD Seq Op'!C:H,2,FALSE)),0,VLOOKUP($U$11&\"-\"&B72,'BD Seq Op'!C:H,2,FALSE)))","v":0},{"$f":"IF($L$1=0,0,IF(ISERROR(VLOOKUP($U$11&\"-\"&B72,'BD Seq Op'!C:H,5,FALSE)),0,VLOOKUP($U$11&\"-\"&B72,'BD Seq Op'!C:H,5,FALSE)))","v":0},"",null,null,"","",null,null,null,null,null,null,null,null,null,null,null,null,null,null,null,null,null,null,null,null,null,false]
["Não",65,{"$f":"IF($L$1=0,0,IF(ISERROR(VLOOKUP($U$11&\"-\"&B73,'BD Seq Op'!C:H,2,FALSE)),0,VLOOKUP($U$11&\"-\"&B73,'BD Seq Op'!C:H,2,FALSE)))","v":0},{"$f":"IF($L$1=0,0,IF(ISERROR(VLOOKUP($U$11&\"-\"&B73,'BD Seq Op'!C:H,5,FALSE)),0,VLOOKUP($U$11&\"-\"&B73,'BD Seq Op'!C:H,5,FALSE)))","v":0},{"$f":"IF(C73=0,\"\",IF($U$1=TRUE,(60*$L$5)/D73,60/D73))","v":""},null,null,"","",null,null,null,null,null,null,null,null,null,null,null,null,null,null,null,null,null,null,null,null,null,false]
[{"$f":"IF(C74=0,\"Não\",\"Sim\")","v":"Não"},66,{"$f":"IF($L$1=0,0,IF(ISERROR(VLOOKUP($U$11&\"-\"&B74,'BD Seq Op'!C:H,2,FALSE)),0,VLOOKUP($U$11&\"-\"&B74,'BD Seq Op'!C:H,2,FALSE)))","v":0},{"$f":"IF($L$1=0,0,IF(ISERROR(VLOOKUP($U$11&\"-\"&B74,'BD Seq Op'!C:H,5,FALSE)),0,VLOOKUP($U$11&\"-\"&B74,'BD Seq Op'!C:H,5,FALSE)))","v":0},"",null,null,{"$f":"IF(C74=0,\"\",IF($U$1=TRUE,$P$5,IF($L$2=0,$V$15,$L$2)))","v":""},{"$f":"IF(C74=0,\"\",IF(AE74=TRUE,0,D74*H74))","v":""},null,null,null,null,null,null,null,null,null,null,null,null,null,null,null,null,null,null,null,null,null,false]
["Não",67,{"$f":"IF($L$1=0,0,IF(ISERROR(VLOOKUP($U$11&\"-\"&B75,'BD Seq Op'!C:H,2,FALSE)),0,VLOOKUP($U$11&\"-\"&B75,'BD Seq Op'!C:H,2,FALSE)))","v":0},{"$f":"IF($L$1=0,0,IF(ISERROR(VLOOKUP($U$11&\"-\"&B75,'BD Seq Op'!C:H,5,FALSE)),0,VLOOKUP($U$11&\"-\"&B75,'BD Seq Op'!C:H,5,FALSE)))","v":0},"",null,null,"","",null,null,null,null,null,null,null,null,null,null,null,null,null,null,null,null,null,null,null,null,null,false]
["Não",68,{"$f":"IF($L$1=0,0,IF(ISERROR(VLOOKUP($U$11&\"-\"&B76,'BD Seq Op'!C:H,2,FALSE)),0,VLOOKUP($U$11&\"-\"&B76,'BD Seq Op'!C:H,2,FALSE)))","v":0},{"$f":"IF($L$1=0,0,IF(ISERROR(VLOOKUP($U$11&\"-\"&B76,'BD Seq Op'!C:H,5,FALSE)),0,VLOOKUP($U$11&\"-\"&B76,'BD Seq Op'!C:H,5,FALSE)))","v":0},"",null,null,"","",null,null,null,null,null,null,null,null,null,null,null,null,null,null,null,null,null,null,null,null,null,false]
["Não",69,{"$f":"IF($L$1=0,0,IF(ISERROR(VLOOKUP($U$11&\"-\"&B77,'BD Seq Op'!C:H,2,FALSE)),0,VLOOKUP($U$11&\"-\"&B77,'BD Seq Op'!C:H,2,FALSE)))","v":0},{"$f":"IF($L$1=0,0,IF(ISERROR(VLOOKUP($U$11&\"-\"&B77,'BD Seq Op'!C:H,5,FALSE)),0,VLOOKUP($U$11&\"-\"&B77,'BD Seq Op'!C:H,5,FALSE)))","v":0},"",null,null,"","",null,null,null,null,null,null,null,null,null,null,null,null,null,null,null,null,null,null,null,null,null,false]
["Não",70,{"$f":"IF($L$1=0,0,IF(ISERROR(VLOOKUP($U$11&\"-\"&B78,'BD Seq Op'!C:H,2,FALSE)),0,VLOOKUP($U$11&\"-\"&B78,'BD Seq Op'!C:H,2,FALSE)))","v":0},{"$f":"IF($L$1=0,0,IF(ISERROR(VLOOKUP($U$11&\"-\"&B78,'BD Seq Op'!C:H,5,FALSE)),0,VLOOKUP($U$11&\"-\"&B78,'BD Seq Op'!C:H,5,FALSE)))","v":0},"",null,null,"","",null,null,null,null,null,null,null,null,null,null,null,null,null,null,null,null,null,null,null,null,null,false]
["Não",71,{"$f":"IF($L$1=0,0,IF(ISERROR(VLOOKUP($U$11&\"-\"&B79,'BD Seq Op'!C:H,2,FALSE)),0,VLOOKUP($U$11&\"-\"&B79,'BD Seq Op'!C:H,2,FALSE)))","v":0},{"$f":"IF($L$1=0,0,IF(ISERROR(VLOOKUP($U$11&\"-\"&B79,'BD Seq Op'!C:H,5,FALSE)),0,VLOOKUP($U$11&\"-\"&B79,'BD Seq Op'!C:H,5,FALSE)))","v":0},"",null,null,"","",null,null,null,null,null,null,null,null,null,null,null,null,null,null,null,null,null,null,null,null,null,false]
["Não",72,{"$f":"IF($L$1=0,0,IF(ISERROR(VLOOKUP($U$11&\"-\"&B80,'BD Seq Op'!C:H,2,FALSE)),0,VLOOKUP($U$11&\"-\"&B80,'BD Seq Op'!C:H,2,FALSE)))","v":0},{"$f":"IF($L$1=0,0,IF(ISERROR(VLOOKUP($U$11&\"-\"&B80,'BD Seq Op'!C:H,5,FALSE)),0,VLOOKUP($U$11&\"-\"&B80,'BD Seq Op'!C:H,5,FALSE)))","v":0},"",null,null,"","",null,null,null,null,null,null,null,null,null,null,null,null,null,null,null,null,null,null,null,null,null,false]
["Não",73,{"$f":"IF($L$1=0,0,IF(ISERROR(VLOOKUP($U$11&\"-\"&B81,'BD Seq Op'!C:H,2,FALSE)),0,VLOOKUP($U$11&\"-\"&B81,'BD Seq Op'!C:H,2,FALSE)))","v":0},{"$f":"IF($L$1=0,0,IF(ISERROR(VLOOKUP($U$11&\"-\"&B81,'BD Seq Op'!C:H,5,FALSE)),0,VLOOKUP($U$11&\"-\"&B81,'BD Seq Op'!C:H,5,FALSE)))","v":0},"",null,null,"","",null,null,null,null,null,null,null,null,null,null,null,null,null,null,null,null,null,null,null,null,null,false]
["Não",74,{"$f":"IF($L$1=0,0,IF(ISERROR(VLOOKUP($U$11&\"-\"&B82,'BD Seq Op'!C:H,2,FALSE)),0,VLOOKUP($U$11&\"-\"&B82,'BD Seq Op'!C:H,2,FALSE)))","v":0},{"$f":"IF($L$1=0,0,IF(ISERROR(VLOOKUP($U$11&\"-\"&B82,'BD Seq Op'!C:H,5,FALSE)),0,VLOOKUP($U$11&\"-\"&B82,'BD Seq Op'!C:H,5,FALSE)))","v":0},"",null,null,"","",null,null,null,null,null,null,null,null,null,null,null,null,null,null,null,null,null,null,null,null,null,false]
["Não",75,{"$f":"IF($L$1=0,0,IF(ISERROR(VLOOKUP($U$11&\"-\"&B83,'BD Seq Op'!C:H,2,FALSE)),0,VLOOKUP($U$11&\"-\"&B83,'BD Seq Op'!C:H,2,FALSE)))","v":0},{"$f":"IF($L$1=0,0,IF(ISERROR(VLOOKUP($U$11&\"-\"&B83,'BD Seq Op'!C:H,5,FALSE)),0,VLOOKUP($U$11&\"-\"&B83,'BD Seq Op'!C:H,5,FALSE)))","v":0},"",null,null,"","",null,null,null,null,null,null,null,null,null,null,null,null,null,null,null,null,null,null,null,null,null,false]
["Não",76,{"$f":"IF($L$1=0,0,IF(ISERROR(VLOOKUP($U$11&\"-\"&B84,'BD Seq Op'!C:H,2,FALSE)),0,VLOOKUP($U$11&\"-\"&B84,'BD Seq Op'!C:H,2,FALSE)))","v":0},{"$f":"IF($L$1=0,0,IF(ISERROR(VLOOKUP($U$11&\"-\"&B84,'BD Seq Op'!C:H,5,FALSE)),0,VLOOKUP($U$11&\"-\"&B84,'BD Seq Op'!C:H,5,FALSE)))","v":0},"",null,null,"","",null,null,null,null,null,null,null,null,null,null,null,null,null,null,null,null,null,null,null,null,null,false]
["Não",77,{"$f":"IF($L$1=0,0,IF(ISERROR(VLOOKUP($U$11&\"-\"&B85,'BD Seq Op'!C:H,2,FALSE)),0,VLOOKUP($U$11&\"-\"&B85,'BD Seq Op'!C:H,2,FALSE)))","v":0},{"$f":"IF($L$1=0,0,IF(ISERROR(VLOOKUP($U$11&\"-\"&B85,'BD Seq Op'!C:H,5,FALSE)),0,VLOOKUP($U$11&\"-\"&B85,'BD Seq Op'!C:H,5,FALSE)))","v":0},"",null,null,"","",null,null,null,null,null,null,null,null,null,null,null,null,null,null,null,null,null,null,null,null,null,false]
["Não",78,{"$f":"IF($L$1=0,0,IF(ISERROR(VLOOKUP($U$11&\"-\"&B86,'BD Seq Op'!C:H,2,FALSE)),0,VLOOKUP($U$11&\"-\"&B86,'BD Seq Op'!C:H,2,FALSE)))","v":0},{"$f":"IF($L$1=0,0,IF(ISERROR(VLOOKUP($U$11&\"-\"&B86,'BD Seq Op'!C:H,5,FALSE)),0,VLOOKUP($U$11&\"-\"&B86,'BD Seq Op'!C:H,5,FALSE)))","v":0},"",null,null,"","",null,null,null,null,null,null,null,null,null,null,null,null,null,null,null,null,null,null,null,null,null,false]
["Não",79,{"$f":"IF($L$1=0,0,IF(ISERROR(VLOOKUP($U$11&\"-\"&B87,'BD Seq Op'!C:H,2,FALSE)),0,VLOOKUP($U$11&\"-\"&B87,'BD Seq Op'!C:H,2,FALSE)))","v":0},{"$f":"IF($L$1=0,0,IF(ISERROR(VLOOKUP($U$11&\"-\"&B87,'BD Seq Op'!C:H,5,FALSE)),0,VLOOKUP($U$11&\"-\"&B87,'BD Seq Op'!C:H,5,FALSE)))","v":0},"",null,null,"","",null,null,null,null,null,null,null,null,null,null,null,null,null,null,null,null,null,null,null,null,null,false]
["Não",80,{"$f":"IF($L$1=0,0,IF(ISERROR(VLOOKUP($U$11&\"-\"&B88,'BD Seq Op'!C:H,2,FALSE)),0,VLOOKUP($U$11&\"-\"&B88,'BD Seq Op'!C:H,2,FALSE)))","v":0},{"$f":"IF($L$1=0,0,IF(ISERROR(VLOOKUP($U$11&\"-\"&B88,'BD Seq Op'!C:H,5,FALSE)),0,VLOOKUP($U$11&\"-\"&B88,'BD Seq Op'!C:H,5,FALSE)))","v":0},"",null,null,"","",null,null,null,null,null,null,null,null,null,null,null,null,null,null,null,null,null,null,null,null,null,false]
["Não",81,{"$f":"IF($L$1=0,0,IF(ISERROR(VLOOKUP($U$11&\"-\"&B89,'BD Seq Op'!C:H,2,FALSE)),0,VLOOKUP($U$11&\"-\"&B89,'BD Seq Op'!C:H,2,FALSE)))","v":0},{"$f":"IF($L$1=0,0,IF(ISERROR(VLOOKUP($U$11&\"-\"&B89,'BD Seq Op'!C:H,5,FALSE)),0,VLOOKUP($U$11&\"-\"&B89,'BD Seq Op'!C:H,5,FALSE)))","v":0},"",null,null,"","",null,null,null,null,null,null,null,null,null,null,null,null,null,null,null,null,null,null,null,null,null,false]
["Não",82,{"$f":"IF($L$1=0,0,IF(ISERROR(VLOOKUP($U$11&\"-\"&B90,'BD Seq Op'!C:H,2,FALSE)),0,VLOOKUP($U$11&\"-\"&B90,'BD Seq Op'!C:H,2,FALSE)))","v":0},{"$f":"IF($L$1=0,0,IF(ISERROR(VLOOKUP($U$11&\"-\"&B90,'BD Seq Op'!C:H,5,FALSE)),0,VLOOKUP($U$11&\"-\"&B90,'BD Seq Op'!C:H,5,FALSE)))","v":0},"",null,null,"","",null,null,null,null,null,null,null,null,null,null,null,null,null,null,null,null,null,null,null,null,null,false]
["Não",83,{"$f":"IF($L$1=0,0,IF(ISERROR(VLOOKUP($U$11&\"-\"&B91,'BD Seq Op'!C:H,2,FALSE)),0,VLOOKUP($U$11&\"-\"&B91,'BD Seq Op'!C:H,2,FALSE)))","v":0},{"$f":"IF($L$1=0,0,IF(ISERROR(VLOOKUP($U$11&\"-\"&B91,'BD Seq Op'!C:H,5,FALSE)),0,VLOOKUP($U$11&\"-\"&B91,'BD Seq Op'!C:H,5,FALSE)))","v":0},"",null,null,"","",null,null,null,null,null,null,null,null,null,null,null,null,null,null,null,null,null,null,null,null,null,false]
["Não",84,{"$f":"IF($L$1=0,0,IF(ISERROR(VLOOKUP($U$11&\"-\"&B92,'BD Seq Op'!C:H,2,FALSE)),0,VLOOKUP($U$11&\"-\"&B92,'BD Seq Op'!C:H,2,FALSE)))","v":0},{"$f":"IF($L$1=0,0,IF(ISERROR(VLOOKUP($U$11&\"-\"&B92,'BD Seq Op'!C:H,5,FALSE)),0,VLOOKUP($U$11&\"-\"&B92,'BD Seq Op'!C:H,5,FALSE)))","v":0},"",null,null,"","",null,null,null,null,null,null,null,null,null,null,null,null,null,null,null,null,null,null,null,null,null,false]
["Não",85,{"$f":"IF($L$1=0,0,IF(ISERROR(VLOOKUP($U$11&\"-\"&B93,'BD Seq Op'!C:H,2,FALSE)),0,VLOOKUP($U$11&\"-\"&B93,'BD Seq Op'!C:H,2,FALSE)))","v":0},{"$f":"IF($L$1=0,0,IF(ISERROR(VLOOKUP($U$11&\"-\"&B93,'BD Seq Op'!C:H,5,FALSE)),0,VLOOKUP($U$11&\"-\"&B93,'BD Seq Op'!C:H,5,FALSE)))","v":0},"",null,null,"","",null,null,null,null,null,null,null,null,null,null,null,null,null,null,null,null,null,null,null,null,null,false]
["Não",86,{"$f":"IF($L$1=0,0,IF(ISERROR(VLOOKUP($U$11&\"-\"&B94,'BD Seq Op'!C:H,2,FALSE)),0,VLOOKUP($U$11&\"-\"&B94,'BD Seq Op'!C:H,2,FALSE)))","v":0},{"$f":"IF($L$1=0,0,IF(ISERROR(VLOOKUP($U$11&\"-\"&B94,'BD Seq Op'!C:H,5,FALSE)),0,VLOOKUP($U$11&\"-\"&B94,'BD Seq Op'!C:H,5,FALSE)))","v":0},"",null,null,"","",null,null,null,null,null,null,null,null,null,null,null,null,null,null,null,null,null,null,null,null,null,false]
["Não",87,{"$f":"IF($L$1=0,0,IF(ISERROR(VLOOKUP($U$11&\"-\"&B95,'BD Seq Op'!C:H,2,FALSE)),0,VLOOKUP($U$11&\"-\"&B95,'BD Seq Op'!C:H,2,FALSE)))","v":0},{"$f":"IF($L$1=0,0,IF(ISERROR(VLOOKUP($U$11&\"-\"&B95,'BD Seq Op'!C:H,5,FALSE)),0,VLOOKUP($U$11&\"-\"&B95,'BD Seq Op'!C:H,5,FALSE)))","v":0},"",null,null,"","",null,null,null,null,null,null,null,null,null,null,null,null,null,null,null,null,null,null,null,null,null,false]
["Não",88,{"$f":"IF($L$1=0,0,IF(ISERROR(VLOOKUP($U$11&\"-\"&B96,'BD Seq Op'!C:H,2,FALSE)),0,VLOOKUP($U$11&\"-\"&B96,'BD Seq Op'!C:H,2,FALSE)))","v":0},{"$f":"IF($L$1=0,0,IF(ISERROR(VLOOKUP($U$11&\"-\"&B96,'BD Seq Op'!C:H,5,FALSE)),0,VLOOKUP($U$11&\"-\"&B96,'BD Seq Op'!C:H,5,FALSE)))","v":0},"",null,null,"","",null,null,null,null,null,null,null,null,null,null,null,null,null,null,null,null,null,null,null,null,null,false]
["Não",89,{"$f":"IF($L$1=0,0,IF(ISERROR(VLOOKUP($U$11&\"-\"&B97,'BD Seq Op'!C:H,2,FALSE)),0,VLOOKUP($U$11&\"-\"&B97,'BD Seq Op'!C:H,2,FALSE)))","v":0},{"$f":"IF($L$1=0,0,IF(ISERROR(VLOOKUP($U$11&\"-\"&B97,'BD Seq Op'!C:H,5,FALSE)),0,VLOOKUP($U$11&\"-\"&B97,'BD Seq Op'!C:H,5,FALSE)))","v":0},"",null,null,"","",null,null,null,null,null,null,null,null,null,null,null,null,null,null,null,null,null,null,null,null,null,false]
["Não",90,{"$f":"IF($L$1=0,0,IF(ISERROR(VLOOKUP($U$11&\"-\"&B98,'BD Seq Op'!C:H,2,FALSE)),0,VLOOKUP($U$11&\"-\"&B98,'BD Seq Op'!C:H,2,FALSE)))","v":0},{"$f":"IF($L$1=0,0,IF(ISERROR(VLOOKUP($U$11&\"-\"&B98,'BD Seq Op'!C:H,5,FALSE)),0,VLOOKUP($U$11&\"-\"&B98,'BD Seq Op'!C:H,5,FALSE)))","v":0},"",null,null,"","",null,null,null,null,null,null,null,null,null,null,null,null,null,null,null,null,null,null,null,null,null,false]
["Não",91,{"$f":"IF($L$1=0,0,IF(ISERROR(VLOOKUP($U$11&\"-\"&B99,'BD Seq Op'!C:H,2,FALSE)),0,VLOOKUP($U$11&\"-\"&B99,'BD Seq Op'!C:H,2,FALSE)))","v":0},{"$f":"IF($L$1=0,0,IF(ISERROR(VLOOKUP($U$11&\"-\"&B99,'BD Seq Op'!C:H,5,FALSE)),0,VLOOKUP($U$11&\"-\"&B99,'BD Seq Op'!C:H,5,FALSE)))","v":0},"",null,null,"","",null,null,null,null,null,null,null,null,null,null,null,null,null,null,null,null,null,null,null,null,null,false]
["Não",92,{"$f":"IF($L$1=0,0,IF(ISERROR(VLOOKUP($U$11&\"-\"&B100,'BD Seq Op'!C:H,2,FALSE)),0,VLOOKUP($U$11&\"-\"&B100,'BD Seq Op'!C:H,2,FALSE)))","v":0},{"$f":"IF($L$1=0,0,IF(ISERROR(VLOOKUP($U$11&\"-\"&B100,'BD Seq Op'!C:H,5,FALSE)),0,VLOOKUP($U$11&\"-\"&B100,'BD Seq Op'!C:H,5,FALSE)))","v":0},"",null,null,"","",null,null,null,null,null,null,null,null,null,null,null,null,null,null,null,null,null,null,null,null,null,false]
["Não",93,{"$f":"IF($L$1=0,0,IF(ISERROR(VLOOKUP($U$11&\"-\"&B101,'BD Seq Op'!C:H,2,FALSE)),0,VLOOKUP($U$11&\"-\"&B101,'BD Seq Op'!C:H,2,FALSE)))","v":0},{"$f":"IF($L$1=0,0,IF(ISERROR(VLOOKUP($U$11&\"-\"&B101,'BD Seq Op'!C:H,5,FALSE)),0,VLOOKUP($U$11&\"-\"&B101,'BD Seq Op'!C:H,5,FALSE)))","v":0},"",null,null,"","",null,null,null,null,null,null,null,null,null,null,null,null,null,null,null,null,null,null,null,null,null,false]
["Não",94,{"$f":"IF($L$1=0,0,IF(ISERROR(VLOOKUP($U$11&\"-\"&B102,'BD Seq Op'!C:H,2,FALSE)),0,VLOOKUP($U$11&\"-\"&B102,'BD Seq Op'!C:H,2,FALSE)))","v":0},{"$f":"IF($L$1=0,0,IF(ISERROR(VLOOKUP($U$11&\"-\"&B102,'BD Seq Op'!C:H,5,FALSE)),0,VLOOKUP($U$11&\"-\"&B102,'BD Seq Op'!C:H,5,FALSE)))","v":0},"",null,null,"","",null,null,null,null,null,null,null,null,null,null,null,null,null,null,null,null,null,null,null,null,null,false]
["Não",95,{"$f":"IF($L$1=0,0,IF(ISERROR(VLOOKUP($U$11&\"-\"&B103,'BD Seq Op'!C:H,2,FALSE)),0,VLOOKUP($U$11&\"-\"&B103,'BD Seq Op'!C:H,2,FALSE)))","v":0},{"$f":"IF($L$1=0,0,IF(ISERROR(VLOOKUP($U$11&\"-\"&B103,'BD Seq Op'!C:H,5,FALSE)),0,VLOOKUP($U$11&\"-\"&B103,'BD Seq Op'!C:H,5,FALSE)))","v":0},"",null,null,"","",null,null,null,null,null,null,null,null,null,null,null,null,null,null,null,null,null,null,null,null,null,false]
["Não",96,{"$f":"IF($L$1=0,0,IF(ISERROR(VLOOKUP($U$11&\"-\"&B104,'BD Seq Op'!C:H,2,FALSE)),0,VLOOKUP($U$11&\"-\"&B104,'BD Seq Op'!C:H,2,FALSE)))","v":0},{"$f":"IF($L$1=0,0,IF(ISERROR(VLOOKUP($U$11&\"-\"&B104,'BD Seq Op'!C:H,5,FALSE)),0,VLOOKUP($U$11&\"-\"&B104,'BD Seq Op'!C:H,5,FALSE)))","v":0},"",null,null,"","",null,null,null,null,null,null,null,null,null,null,null,null,null,null,null,null,null,null,null,null,null,false]
["Não",97,{"$f":"IF($L$1=0,0,IF(ISERROR(VLOOKUP($U$11&\"-\"&B105,'BD Seq Op'!C:H,2,FALSE)),0,VLOOKUP($U$11&\"-\"&B105,'BD Seq Op'!C:H,2,FALSE)))","v":0},{"$f":"IF($L$1=0,0,IF(ISERROR(VLOOKUP($U$11&\"-\"&B105,'BD Seq Op'!C:H,5,FALSE)),0,VLOOKUP($U$11&\"-\"&B105,'BD Seq Op'!C:H,5,FALSE)))","v":0},{"$f":"IF(C105=0,\"\",IF($U$1=TRUE,(60*$L$5)/D105,60/D105))","v":""},null,null,"","",null,null,null,null,null,null,null,null,null,null,null,null,null,null,null,null,null,null,null,null,null,false]
["Não",98,{"$f":"IF($L$1=0,0,IF(ISERROR(VLOOKUP($U$11&\"-\"&B106,'BD Seq Op'!C:H,2,FALSE)),0,VLOOKUP($U$11&\"-\"&B106,'BD Seq Op'!C:H,2,FALSE)))","v":0},{"$f":"IF($L$1=0,0,IF(ISERROR(VLOOKUP($U$11&\"-\"&B106,'BD Seq Op'!C:H,5,FALSE)),0,VLOOKUP($U$11&\"-\"&B106,'BD Seq Op'!C:H,5,FALSE)))","v":0},"",null,null,"","",null,null,null,null,null,null,null,null,null,null,null,null,null,null,null,null,null,null,null,null,null,false]
["Não",99,{"$f":"IF($L$1=0,0,IF(ISERROR(VLOOKUP($U$11&\"-\"&B107,'BD Seq Op'!C:H,2,FALSE)),0,VLOOKUP($U$11&\"-\"&B107,'BD Seq Op'!C:H,2,FALSE)))","v":0},{"$f":"IF($L$1=0,0,IF(ISERROR(VLOOKUP($U$11&\"-\"&B107,'BD Seq Op'!C:H,5,FALSE)),0,VLOOKUP($U$11&\"-\"&B107,'BD Seq Op'!C:H,5,FALSE)))","v":0},"",null,null,"","",null,null,null,null,null,null,null,null,null,null,null,null,null,null,null,null,null,null,null,null,null,false]
["Não",100,{"$f":"IF($L$1=0,0,IF(ISERROR(VLOOKUP($U$11&\"-\"&B108,'BD Seq Op'!C:H,2,FALSE)),0,VLOOKUP($U$11&\"-\"&B108,'BD Seq Op'!C:H,2,FALSE)))","v":0},{"$f":"IF($L$1=0,0,IF(ISERROR(VLOOKUP($U$11&\"-\"&B108,'BD Seq Op'!C:H,5,FALSE)),0,VLOOKUP($U$11&\"-\"&B108,'BD Seq Op'!C:H,5,FALSE)))","v":0},"",null,null,"","",null,null,null,null,null,null,null,null,null,null,null,null,null,null,null,null,null,null,null,null,null,false]
["Não",101,{"$f":"IF($L$1=0,0,IF(ISERROR(VLOOKUP($U$11&\"-\"&B109,'BD Seq Op'!C:H,2,FALSE)),0,VLOOKUP($U$11&\"-\"&B109,'BD Seq Op'!C:H,2,FALSE)))","v":0},{"$f":"IF($L$1=0,0,IF(ISERROR(VLOOKUP($U$11&\"-\"&B109,'BD Seq Op'!C:H,5,FALSE)),0,VLOOKUP($U$11&\"-\"&B109,'BD Seq Op'!C:H,5,FALSE)))","v":0},"",null,null,"","",null,null,null,null,null,null,null,null,null,null,null,null,null,null,null,null,null,null,null,null,null,false]
["Não",102,{"$f":"IF($L$1=0,0,IF(ISERROR(VLOOKUP($U$11&\"-\"&B110,'BD Seq Op'!C:H,2,FALSE)),0,VLOOKUP($U$11&\"-\"&B110,'BD Seq Op'!C:H,2,FALSE)))","v":0},{"$f":"IF($L$1=0,0,IF(ISERROR(VLOOKUP($U$11&\"-\"&B110,'BD Seq Op'!C:H,5,FALSE)),0,VLOOKUP($U$11&\"-\"&B110,'BD Seq Op'!C:H,5,FALSE)))","v":0},"",null,null,"","",null,null,null,null,null,null,null,null,null,null,null,null,null,null,null,null,null,null,null,null,null,false]
["Não",103,{"$f":"IF($L$1=0,0,IF(ISERROR(VLOOKUP($U$11&\"-\"&B111,'BD Seq Op'!C:H,2,FALSE)),0,VLOOKUP($U$11&\"-\"&B111,'BD Seq Op'!C:H,2,FALSE)))","v":0},{"$f":"IF($L$1=0,0,IF(ISERROR(VLOOKUP($U$11&\"-\"&B111,'BD Seq Op'!C:H,5,FALSE)),0,VLOOKUP($U$11&\"-\"&B111,'BD Seq Op'!C:H,5,FALSE)))","v":0},"",null,null,"","",null,null,null,null,null,null,null,null,null,null,null,null,null,null,null,null,null,null,null,null,null,false]
["Não",104,{"$f":"IF($L$1=0,0,IF(ISERROR(VLOOKUP($U$11&\"-\"&B112,'BD Seq Op'!C:H,2,FALSE)),0,VLOOKUP($U$11&\"-\"&B112,'BD Seq Op'!C:H,2,FALSE)))","v":0},{"$f":"IF($L$1=0,0,IF(ISERROR(VLOOKUP($U$11&\"-\"&B112,'BD Seq Op'!C:H,5,FALSE)),0,VLOOKUP($U$11&\"-\"&B112,'BD Seq Op'!C:H,5,FALSE)))","v":0},"",null,null,"","",null,null,null,null,null,null,null,null,null,null,null,null,null,null,null,null,null,null,null,null,null,false]
["Não",105,{"$f":"IF($L$1=0,0,IF(ISERROR(VLOOKUP($U$11&\"-\"&B113,'BD Seq Op'!C:H,2,FALSE)),0,VLOOKUP($U$11&\"-\"&B113,'BD Seq Op'!C:H,2,FALSE)))","v":0},{"$f":"IF($L$1=0,0,IF(ISERROR(VLOOKUP($U$11&\"-\"&B113,'BD Seq Op'!C:H,5,FALSE)),0,VLOOKUP($U$11&\"-\"&B113,'BD Seq Op'!C:H,5,FALSE)))","v":0},"",null,null,"","",null,null,null,null,null,null,null,null,null,null,null,null,null,null,null,null,null,null,null,null,null,false]
["Não",106,{"$f":"IF($L$1=0,0,IF(ISERROR(VLOOKUP($U$11&\"-\"&B114,'BD Seq Op'!C:H,2,FALSE)),0,VLOOKUP($U$11&\"-\"&B114,'BD Seq Op'!C:H,2,FALSE)))","v":0},{"$f":"IF($L$1=0,0,IF(ISERROR(VLOOKUP($U$11&\"-\"&B114,'BD Seq Op'!C:H,5,FALSE)),0,VLOOKUP($U$11&\"-\"&B114,'BD Seq Op'!C:H,5,FALSE)))","v":0},"",null,null,"","",null,null,null,null,null,null,null,null,null,null,null,null,null,null,null,null,null,null,null,null,null,false]
["Não",107,{"$f":"IF($L$1=0,0,IF(ISERROR(VLOOKUP($U$11&\"-\"&B115,'BD Seq Op'!C:H,2,FALSE)),0,VLOOKUP($U$11&\"-\"&B115,'BD Seq Op'!C:H,2,FALSE)))","v":0},{"$f":"IF($L$1=0,0,IF(ISERROR(VLOOKUP($U$11&\"-\"&B115,'BD Seq Op'!C:H,5,FALSE)),0,VLOOKUP($U$11&\"-\"&B115,'BD Seq Op'!C:H,5,FALSE)))","v":0},"",null,null,"","",null,null,null,null,null,null,null,null,null,null,null,null,null,null,null,null,null,null,null,null,null,false]
["Não",108,{"$f":"IF($L$1=0,0,IF(ISERROR(VLOOKUP($U$11&\"-\"&B116,'BD Seq Op'!C:H,2,FALSE)),0,VLOOKUP($U$11&\"-\"&B116,'BD Seq Op'!C:H,2,FALSE)))","v":0},{"$f":"IF($L$1=0,0,IF(ISERROR(VLOOKUP($U$11&\"-\"&B116,'BD Seq Op'!C:H,5,FALSE)),0,VLOOKUP($U$11&\"-\"&B116,'BD Seq Op'!C:H,5,FALSE)))","v":0},"",null,null,"","",null,null,null,null,null,null,null,null,null,null,null,null,null,null,null,null,null,null,null,null,null,false]
["Não",109,{"$f":"IF($L$1=0,0,IF(ISERROR(VLOOKUP($U$11&\"-\"&B117,'BD Seq Op'!C:H,2,FALSE)),0,VLOOKUP($U$11&\"-\"&B117,'BD Seq Op'!C:H,2,FALSE)))","v":0},{"$f":"IF($L$1=0,0,IF(ISERROR(VLOOKUP($U$11&\"-\"&B117,'BD Seq Op'!C:H,5,FALSE)),0,VLOOKUP($U$11&\"-\"&B117,'BD Seq Op'!C:H,5,FALSE)))","v":0},"",null,null,"","",null,null,null,null,null,null,null,null,null,null,null,null,null,null,null,null,null,null,null,null,null,false]
["Não",110,{"$f":"IF($L$1=0,0,IF(ISERROR(VLOOKUP($U$11&\"-\"&B118,'BD Seq Op'!C:H,2,FALSE)),0,VLOOKUP($U$11&\"-\"&B118,'BD Seq Op'!C:H,2,FALSE)))","v":0},{"$f":"IF($L$1=0,0,IF(ISERROR(VLOOKUP($U$11&\"-\"&B118,'BD Seq Op'!C:H,5,FALSE)),0,VLOOKUP($U$11&\"-\"&B118,'BD Seq Op'!C:H,5,FALSE)))","v":0},"",null,null,"","",null,null,null,null,null,null,null,null,null,null,null,null,null,null,null,null,null,null,null,null,null,false]
["Não",111,{"$f":"IF($L$1=0,0,IF(ISERROR(VLOOKUP($U$11&\"-\"&B119,'BD Seq Op'!C:H,2,FALSE)),0,VLOOKUP($U$11&\"-\"&B119,'BD Seq Op'!C:H,2,FALSE)))","v":0},{"$f":"IF($L$1=0,0,IF(ISERROR(VLOOKUP($U$11&\"-\"&B119,'BD Seq Op'!C:H,5,FALSE)),0,VLOOKUP($U$11&\"-\"&B119,'BD Seq Op'!C:H,5,FALSE)))","v":0},"",null,null,"","",null,null,null,null,null,null,null,null,null,null,null,null,null,null,null,null,null,null,null,null,null,false]
["Não",112,{"$f":"IF($L$1=0,0,IF(ISERROR(VLOOKUP($U$11&\"-\"&B120,'BD Seq Op'!C:H,2,FALSE)),0,VLOOKUP($U$11&\"-\"&B120,'BD Seq Op'!C:H,2,FALSE)))","v":0},{"$f":"IF($L$1=0,0,IF(ISERROR(VLOOKUP($U$11&\"-\"&B120,'BD Seq Op'!C:H,5,FALSE)),0,VLOOKUP($U$11&\"-\"&B120,'BD Seq Op'!C:H,5,FALSE)))","v":0},"",null,null,"","",null,null,null,null,null,null,null,null,null,null,null,null,null,null,null,null,null,null,null,null,null,false]
["Não",113,{"$f":"IF($L$1=0,0,IF(ISERROR(VLOOKUP($U$11&\"-\"&B121,'BD Seq Op'!C:H,2,FALSE)),0,VLOOKUP($U$11&\"-\"&B121,'BD Seq Op'!C:H,2,FALSE)))","v":0},{"$f":"IF($L$1=0,0,IF(ISERROR(VLOOKUP($U$11&\"-\"&B121,'BD Seq Op'!C:H,5,FALSE)),0,VLOOKUP($U$11&\"-\"&B121,'BD Seq Op'!C:H,5,FALSE)))","v":0},"",null,null,"","",null,null,null,null,null,null,null,null,null,null,null,null,null,null,null,null,null,null,null,null,null,false]
["Não",114,{"$f":"IF($L$1=0,0,IF(ISERROR(VLOOKUP($U$11&\"-\"&B122,'BD Seq Op'!C:H,2,FALSE)),0,VLOOKUP($U$11&\"-\"&B122,'BD Seq Op'!C:H,2,FALSE)))","v":0},{"$f":"IF($L$1=0,0,IF(ISERROR(VLOOKUP($U$11&\"-\"&B122,'BD Seq Op'!C:H,5,FALSE)),0,VLOOKUP($U$11&\"-\"&B122,'BD Seq Op'!C:H,5,FALSE)))","v":0},"",null,null,"","",null,null,null,null,null,null,null,null,null,null,null,null,null,null,null,null,null,null,null,null,null,false]
["Não",115,{"$f":"IF($L$1=0,0,IF(ISERROR(VLOOKUP($U$11&\"-\"&B123,'BD Seq Op'!C:H,2,FALSE)),0,VLOOKUP($U$11&\"-\"&B123,'BD Seq Op'!C:H,2,FALSE)))","v":0},{"$f":"IF($L$1=0,0,IF(ISERROR(VLOOKUP($U$11&\"-\"&B123,'BD Seq Op'!C:H,5,FALSE)),0,VLOOKUP($U$11&\"-\"&B123,'BD Seq Op'!C:H,5,FALSE)))","v":0},"",null,null,"","",null,null,null,null,null,null,null,null,null,null,null,null,null,null,null,null,null,null,null,null,null,false]
["Não",116,{"$f":"IF($L$1=0,0,IF(ISERROR(VLOOKUP($U$11&\"-\"&B124,'BD Seq Op'!C:H,2,FALSE)),0,VLOOKUP($U$11&\"-\"&B124,'BD Seq Op'!C:H,2,FALSE)))","v":0},{"$f":"IF($L$1=0,0,IF(ISERROR(VLOOKUP($U$11&\"-\"&B124,'BD Seq Op'!C:H,5,FALSE)),0,VLOOKUP($U$11&\"-\"&B124,'BD Seq Op'!C:H,5,FALSE)))","v":0},"",null,null,"","",null,null,null,null,null,null,null,null,null,null,null,null,null,null,null,null,null,null,null,null,null,false]
["Não",117,{"$f":"IF($L$1=0,0,IF(ISERROR(VLOOKUP($U$11&\"-\"&B125,'BD Seq Op'!C:H,2,FALSE)),0,VLOOKUP($U$11&\"-\"&B125,'BD Seq Op'!C:H,2,FALSE)))","v":0},{"$f":"IF($L$1=0,0,IF(ISERROR(VLOOKUP($U$11&\"-\"&B125,'BD Seq Op'!C:H,5,FALSE)),0,VLOOKUP($U$11&\"-\"&B125,'BD Seq Op'!C:H,5,FALSE)))","v":0},"",null,null,"","",null,null,null,null,null,null,null,null,null,null,null,null,null,null,null,null,null,null,null,null,null,false]
["Não",118,{"$f":"IF($L$1=0,0,IF(ISERROR(VLOOKUP($U$11&\"-\"&B126,'BD Seq Op'!C:H,2,FALSE)),0,VLOOKUP($U$11&\"-\"&B126,'BD Seq Op'!C:H,2,FALSE)))","v":0},{"$f":"IF($L$1=0,0,IF(ISERROR(VLOOKUP($U$11&\"-\"&B126,'BD Seq Op'!C:H,5,FALSE)),0,VLOOKUP($U$11&\"-\"&B126,'BD Seq Op'!C:H,5,FALSE)))","v":0},"",null,null,"","",null,null,null,null,null,null,null,null,null,null,null,null,null,null,null,null,null,null,null,null,null,false]
["Não",119,{"$f":"IF($L$1=0,0,IF(ISERROR(VLOOKUP($U$11&\"-\"&B127,'BD Seq Op'!C:H,2,FALSE)),0,VLOOKUP($U$11&\"-\"&B127,'BD Seq Op'!C:H,2,FALSE)))","v":0},{"$f":"IF($L$1=0,0,IF(ISERROR(VLOOKUP($U$11&\"-\"&B127,'BD Seq Op'!C:H,5,FALSE)),0,VLOOKUP($U$11&\"-\"&B127,'BD Seq Op'!C:H,5,FALSE)))","v":0},"",null,null,"","",null,null,null,null,null,null,null,null,null,null,null,null,null,null,null,null,null,null,null,null,null,false]
["Não",120,{"$f":"IF($L$1=0,0,IF(ISERROR(VLOOKUP($U$11&\"-\"&B128,'BD Seq Op'!C:H,2,FALSE)),0,VLOOKUP($U$11&\"-\"&B128,'BD Seq Op'!C:H,2,FALSE)))","v":0},{"$f":"IF($L$1=0,0,IF(ISERROR(VLOOKUP($U$11&\"-\"&B128,'BD Seq Op'!C:H,5,FALSE)),0,VLOOKUP($U$11&\"-\"&B128,'BD Seq Op'!C:H,5,FALSE)))","v":0},"",null,null,"","",null,null,null,null,null,null,null,null,null,null,null,null,null,null,null,null,null,null,null,null,null,false]
["Sim",null,null,null,"Tempo total =>",{"$f":"SUBTOTAL(9,I9:I128)","v":6720}]

{"sheet":"Cliente","index":6,"n_rows":4,"n_cols":6,"rows_kept":4,"cut":false,"hidden":false,"merged":[]}
[{"$f":"F1","v":"Cliente"},{"$f":"CONCATENATE(\"Observações \",F1,\" nas OPs\")","v":"Observações Cliente nas OPs"},null,null,null,"Cliente"]
["Magazine de Confecções Ltda.","                      ****   CLIENTE ESPECIAL  ****\nUtilizar etiquetas de composição e bordada enviadas pelo Cliente."]
["Maria & Maria","Utilizar etiquetas do Cliente.\nColocar TAGs do Cliente nas peças quando embaladas."]
["Pepe","                     ****   CLIENTE ESPECIAL  ****\nUtilizar etiquetas de composição e bordada enviadas pelo Cliente.\nColocar TAGs do Cliente nas peças quando forem embaladas."]

{"sheet":"OP","index":7,"n_rows":21,"n_cols":29,"rows_kept":21,"cut":false,"hidden":false,"merged":[[12,8,12,13],[6,1,6,5],[8,1,8,6],[10,1,10,6],[8,8,8,13],[10,8,10,13]]}
["Nº OP :",null,null,null,null,null,null,null,null,null,null,null,null,null,null,{"$f":"IF(B1=0,\"não\",IF(ISERROR(VLOOKUP(B1,'BD da OP'!A:A,1,FALSE)),\"não\",VLOOKUP(B1,'BD da OP'!A:A,1,FALSE)))","v":"não"}]
["Data Emissão :",{"$f":"TODAY()","v":"2016-09-16"},null,null,null,null,null,null,null,null,null,null,null,null,null,{"$f":"IF(B1=P1,\"OP já cadastrada, se necessário poderá utilizar vírgula para diferenciar a mesma OP. Exemplo: OP 1234,1 / 1234,2  .....\",\"\")","v":""}]
["Referência :",null,{"$f":"IF(P1<>\"não\",\"\",IF(B3=0,\"\",VLOOKUP(B3,Ref!A:B,2,FALSE)))","v":""},null,null,null,null,null,null,null,null,null,null,null,null,{"$f":"IF(B1=0,\"- - - - - -\",IF(B2=0,\"- - - - - -\",IF(B3=0,\"- - - - - -\",\"Cadastrar\")))","v":"- - - - - -"}]
["Cores :",null,null,null,null,null,null,null,null,null,null,null,null,null,null,{"$f":"Cliente!F1","v":"Cliente"}]
["Tamanhos :"]
["Qtde de Peças :"]
[{"$f":"CONCATENATE(Cliente!F1,\" :\")","v":"Cliente :"}]
["Previsão Entrega :",null,null,null,null,null,null,null,"Observações que costumam utilizar, para facilitar nas novas OPs. (opcional)"]
["Observações \npara esta OP:",null,null,null,null,null,null,null,"                                             ***   CLIENTE ESPECIAL   ***\n*** Verificar instruções das etiquetas conforme ficha técnica ***"]
[]
[{"$f":"CONCATENATE(\"Observações do cadastro \",Cliente!F1)","v":"Observações do cadastro Cliente"},{"$f":"IF(B7=0,\"\",IF(ISERROR(VLOOKUP(B7,Cliente!A:B,2,FALSE)),\"\",VLOOKUP(B7,Cliente!A:B,2,FALSE)))","v":""},null,null,null,null,null,null,"Utilizar etiquetas do Cliente.\nColocar TAGs do Cliente nas peças quando embaladas."]
[]
[null,null,null,null,null,null,null,null,"Observação: 3ª opção\nLinha 2\nLinha3"]
[]
[]
[]
[]
[]
[]
[]
[{"$f":"B1","v":0},null,{"$f":"B2","v":"2016-09-16"},{"$f":"B3","v":0},{"$f":"C3","v":""},{"$f":"B4","v":0},{"$f":"C4","v":0},{"$f":"D4","v":0},0,0,0,0,0,0,0,{"$f":"B5","v":0},{"$f":"C5","v":0},0,0,0,0,0,0,0,0,{"$f":"B6","v":0},{"$f":"B7","v":0},{"$f":"B8","v":"00:00:00"},{"$f":"B9","v":0}]

{"sheet":"Consulta OP","index":8,"n_rows":9,"n_cols":14,"rows_kept":9,"cut":false,"hidden":false,"merged":[[6,1,6,5],[8,1,8,6]]}
["Nº OP :",{"$f":"IF($N$1=0,\"\",OFFSET('BD da OP'!A1,$N$1,0))","v":0.2},null,null,null,null,null,null,null,null,null,null,null,2]
["Data Emissão :",{"$f":"IF($N$1=0,\"\",OFFSET('BD da OP'!C1,$N$1,0))","v":"2016-08-28"}]
["Referência :",{"$f":"IF($N$1=0,\"\",OFFSET('BD da OP'!D1,$N$1,0))","v":10000},{"$f":"IF($N$1=0,\"\",OFFSET('BD da OP'!E1,$N$1,0))","v":"Camiseta básica lisa"}]
["Cores :",{"$f":"IF($N$1=0,\"\",OFFSET('BD da OP'!F1,$N$1,0))","v":"Branco"},{"$f":"IF($N$1=0,\"\",OFFSET('BD da OP'!G1,$N$1,0))","v":"Laranja"},{"$f":"IF($N$1=0,\"\",OFFSET('BD da OP'!H1,$N$1,0))","v":"Marinho"},{"$f":"IF($N$1=0,\"\",OFFSET('BD da OP'!I1,$N$1,0))","v":0},{"$f":"IF($N$1=0,\"\",OFFSET('BD da OP'!J1,$N$1,0))","v":0},{"$f":"IF($N$1=0,\"\",OFFSET('BD da OP'!K1,$N$1,0))","v":0},{"$f":"IF($N$1=0,\"\",OFFSET('BD da OP'!L1,$N$1,0))","v":0},{"$f":"IF($N$1=0,\"\",OFFSET('BD da OP'!M1,$N$1,0))","v":0},{"$f":"IF($N$1=0,\"\",OFFSET('BD da OP'!N1,$N$1,0))","v":0},{"$f":"IF($N$1=0,\"\",OFFSET('BD da OP'!O1,$N$1,0))","v":0}]
["Tamanhos :",{"$f":"IF($N$1=0,\"\",OFFSET('BD da OP'!P1,$N$1,0))","v":"PP"},{"$f":"IF($N$1=0,\"\",OFFSET('BD da OP'!Q1,$N$1,0))","v":"P"},{"$f":"IF($N$1=0,\"\",OFFSET('BD da OP'!R1,$N$1,0))","v":"M"},{"$f":"IF($N$1=0,\"\",OFFSET('BD da OP'!S1,$N$1,0))","v":"G"},{"$f":"IF($N$1=0,\"\",OFFSET('BD da OP'!T1,$N$1,0))","v":0},{"$f":"IF($N$1=0,\"\",OFFSET('BD da OP'!U1,$N$1,0))","v":0},{"$f":"IF($N$1=0,\"\",OFFSET('BD da OP'!V1,$N$1,0))","v":0},{"$f":"IF($N$1=0,\"\",OFFSET('BD da OP'!W1,$N$1,0))","v":0},{"$f":"IF($N$1=0,\"\",OFFSET('BD da OP'!X1,$N$1,0))","v":0},{"$f":"IF($N$1=0,\"\",OFFSET('BD da OP'!Y1,$N$1,0))","v":0}]
["Qtde de Peças :",{"$f":"IF($N$1=0,\"\",OFFSET('BD da OP'!Z1,$N$1,0))","v":1500}]
["Cliente :",{"$f":"IF($N$1=0,\"\",OFFSET('BD da OP'!AA1,$N$1,0))","v":"Pepe"}]
["Previsão Entrega :",{"$f":"IF($N$1=0,\"\",OFFSET('BD da OP'!AB1,$N$1,0))","v":"2016-09-25"}]
["Observações \npara esta OP:",{"$f":"IF($N$1=0,\"\",IF(ISERROR(VLOOKUP(B1,'BD da OP'!A:AC,29,FALSE)),\"\",VLOOKUP(B1,'BD da OP'!A:AC,29,FALSE)))","v":"****   CLIENTE ESPECIAL  ****\nUtilizar etiquetas de composição e bordada enviadas pelo Cliente.\nColocar TAGs do Cliente nas peças quando forem embaladas."}]

{"sheet":"BD da OP","index":9,"n_rows":3,"n_cols":29,"rows_kept":3,"cut":false,"hidden":false,"merged":[]}
["Nº OP.   .","Concatenar","Data\nEmissão   .","Ref.","Descrição\nda Ref.","Cor\n1","Cor\n2","Cor\n3","Cor\n4","Cor\n5","Cor\n6","Cor\n7","Cor\n8","Cor\n9","Cor\n10","Tam\n1","Tam\n2","Tam\n3","Tam\n4","Tam\n5","Tam\n6","Tam\n7","Tam\n8","Tam\n9","Tam\n10","Qtde\nPeças","Cliente","Previsão\nEntrega","Observações"]
[0.1,{"$f":"CONCATENATE(\"Nº OP:  \",A2,\"  -  Ref:  \",D2)","v":"Nº OP:  0,1  -  Ref:  10150"},"2016-09-05",10150,"Camiseta básica lisa c/ bordado no peito","Branco","Laranja","Marinho",0,0,0,0,0,0,0,"PP","P","M","G",0,0,0,0,0,0,800,"Magazine de Confecções Ltda.","2016-10-05","                                             ***   CLIENTE ESPECIAL   ***\n*** Verificar instruções das etiquetas conforme ficha técnica ***"]
[0.2,{"$f":"CONCATENATE(\"Nº OP:  \",A3,\"  -  Ref:  \",D3)","v":"Nº OP:  0,2  -  Ref:  10000"},"2016-08-28",10000,"Camiseta básica lisa","Branco","Laranja","Marinho",0,0,0,0,0,0,0,"PP","P","M","G",0,0,0,0,0,0,1500,"Pepe","2016-09-25","****   CLIENTE ESPECIAL  ****\nUtilizar etiquetas de composição e bordada enviadas pelo Cliente.\nColocar TAGs do Cliente nas peças quando forem embaladas."]

{"sheet":"Operações","index":10,"n_rows":19,"n_cols":4,"rows_kept":19,"cut":false,"hidden":false,"merged":[]}
["Descrição das Operações","Tipo de\nMáquina","Tipo de\nAparelho","Tempo\nPadrão"]
["Bainha 2 ag. barra"]
["Bainha 2 ag. mangas"]
["Colocar tag na peça"]
["Dobrar peça e embalar"]
["Fechar laterais c/ etiq"]
["Fechar ombros"]
["Fechar ombros e laterais"]
["Fechar ombros e laterais c/ etiq"]
["Fechar ribana decote e pregar"]
["Fechar/pregar mangas tubular"]
["Fechar/pregar ribana decote"]
["Limpar fios"]
["Marcar meio decote"]
["Pregar etiqueta decote"]
["Pregar mangas fechada"]
["Rematar mangas"]
["Revisar e limpar fios"]
["Separar mangas c/ tesoura"]

{"sheet":"Ref","index":11,"n_rows":3,"n_cols":2,"rows_kept":3,"cut":false,"hidden":false,"merged":[]}
["Ref.","Descrição da Referência"]
[10000,"Camiseta básica lisa"]
[10150,"Camiseta com estampa na frente"]

{"sheet":"Cores","index":12,"n_rows":13,"n_cols":1,"rows_kept":13,"cut":false,"hidden":false,"merged":[]}
["Cores"]
["Amarelo"]
["Azul"]
["Bigode"]
["Branco"]
["Cinza"]
["Destroyed"]
["Laranja"]
["Marinho"]
["Preto"]
["Resinado"]
["Verde"]
["Vermelho"]

{"sheet":"Tamanhos","index":13,"n_rows":22,"n_cols":1,"rows_kept":22,"cut":false,"hidden":false,"merged":[]}
["Tamanhos"]
["01"]
["02"]
["03"]
["10"]
["12"]
["14"]
["16"]
["2"]
["34"]
["36"]
["38"]
["4"]
["40"]
["42"]
["44"]
["6"]
["8"]
["G"]
["GG"]
["M"]
["P"]